date,department/service,beneficiary,amount,summary of purpose,category,transaction number,vendor number
01.01.2018,LEISURE DIRECTORATE,BUSINESS OF CULTURE LTD,"3,500.00",ADMINISTRATION,PROFESSIONAL FEES,5902283784,1000062282
02.01.2018,ENVIRONMENT DIRECTORATE,ABC FOOD SAFETY LTD,"-1,250.00",FOOD SAFETY,PROFESSIONAL FEES,5902284110,1000043162
02.01.2018,ENVIRONMENT DIRECTORATE,ABC FOOD SAFETY LTD,"1,250.00",FOOD SAFETY,PROFESSIONAL FEES,5902284102,1000043162
03.01.2018,ADULT SOCIAL CARE,REDACTED PERSONAL DATA,264.8,APPOINTEESHIPS,OTHER PAYMENTS FOR CLIENTS,5902283882,REDACTED
03.01.2018,ADULT SOCIAL CARE,MEDACS HOMECARE,621.5,HOSPITAL DISCHARGE TEAM,PARKING CHARGES,5902284000,11287415
03.01.2018,ADULT SOCIAL CARE,MEDACS HOMECARE,"1,100.44",HOSPITAL DISCHARGE TEAM,CAR MILEAGE EXPENSES,5902283998,11287415
03.01.2018,ADULT SOCIAL CARE,MEDACS HOMECARE,"23,716.00",HOSPITAL DISCHARGE TEAM,HOMECARE - IC,5902283999,11287415
03.01.2018,ADULT SOCIAL CARE,REDACTED PERSONAL DATA,-730.57,LD LTS 18-64,SUPPORTED LIVING,2102758363,REDACTED
03.01.2018,ADULT SOCIAL CARE,AGE UK LEWISHAM & SOUTHWARK,"53,000.00",LOCAL COMMUNITY OFFER,EXTERNAL AGENCIES AND BODIES,5902283886,1507154
03.01.2018,ADULT SOCIAL CARE,SWK DISABLEMENT ASSN,"20,000.00",LOCAL COMMUNITY OFFER,EXTERNAL AGENCIES AND BODIES,5902283901,1000011698
03.01.2018,ADULT SOCIAL CARE,SOUTHWARK PENSIONERS CENTRE,"7,075.00",LOCAL COMMUNITY OFFER,EXTERNAL AGENCIES AND BODIES,5902283904,1000027831
03.01.2018,ADULT SOCIAL CARE,SOUTHWARK PENSIONERS CENTRE,"12,500.00",LOCAL COMMUNITY OFFER,EXTERNAL AGENCIES AND BODIES,5902283903,1000027831
03.01.2018,ADULT SOCIAL CARE,LEONARD CHESHIRE DISABILITY,"22,500.00",LOCAL COMMUNITY OFFER,EXTERNAL AGENCIES AND BODIES,5902283914,1000065128
03.01.2018,ADULT SOCIAL CARE,CAREWATCH LEWISHAM,"12,082.00",REABLEMENT SERVICE,HOMECARE - C&V,5902284011,1000042627
03.01.2018,ADULT SOCIAL CARE,TUNSTALL HEALTHCARE (UK) LTD,"5,620.50",SOUTHWARK RESOURCE CENTRE,EQUIPMENT PURCHASE & REPAIR,5902283872,1012297
03.01.2018,ASSET MANAGEMENT,C&C BUILDERS LTD,"5,844.80",ADAPTATIONS,BUILDING R&M,2102764993,3000001986
03.01.2018,ASSET MANAGEMENT,C&C BUILDERS LTD,"6,700.65",ADAPTATIONS,BUILDING R&M,2102764994,3000001986
03.01.2018,ASSET MANAGEMENT,HODGE JONES & ALLEN,"4,500.00",DISREPAIR,LEGAL FEES & COURT COSTS,5902284046,11011881
03.01.2018,CHILDREN AND ADULT,REDACTED PERSONAL DATA,335.34,FRIENDS & FAMILY FOSTERING,PAYMENTS TO CARERS,2102765035,REDACTED
03.01.2018,CHILDREN AND ADULT,REDACTED PERSONAL DATA,382.3,FRIENDS & FAMILY FOSTERING,PAYMENTS TO CARERS,2102765028,REDACTED
03.01.2018,CHILDREN AND ADULT,REDACTED PERSONAL DATA,476.08,FRIENDS & FAMILY FOSTERING,PAYMENTS TO CARERS,2102765019,REDACTED
03.01.2018,CHILDREN AND ADULT,REDACTED PERSONAL DATA,776.08,FRIENDS & FAMILY FOSTERING,PAYMENTS TO CARERS,2102765012,REDACTED
03.01.2018,CHILDREN AND ADULT,REDACTED PERSONAL DATA,767.66,FRIENDS & FAMILY FOSTERING,PAYMENTS TO CARERS,2102765016,REDACTED
03.01.2018,CHILDREN AND ADULT,REDACTED PERSONAL DATA,682.3,FRIENDS & FAMILY FOSTERING,PAYMENTS TO CARERS,2102765014,REDACTED
03.01.2018,CHILDREN AND ADULT,REDACTED PERSONAL DATA,682.3,FRIENDS & FAMILY FOSTERING,PAYMENTS TO CARERS,2102765034,REDACTED
03.01.2018,CHILDREN AND ADULT,REDACTED PERSONAL DATA,776.08,FRIENDS & FAMILY FOSTERING,PAYMENTS TO CARERS,2102765038,REDACTED
03.01.2018,CHILDREN AND ADULT,REDACTED PERSONAL DATA,635.34,FRIENDS & FAMILY FOSTERING,PAYMENTS TO CARERS,2102765021,REDACTED
03.01.2018,CHILDREN AND ADULT,REDACTED PERSONAL DATA,682.3,FRIENDS & FAMILY FOSTERING,PAYMENTS TO CARERS,2102765015,REDACTED
03.01.2018,CHILDREN AND ADULT,REDACTED PERSONAL DATA,682.3,FRIENDS & FAMILY FOSTERING,PAYMENTS TO CARERS,2102765037,REDACTED
03.01.2018,CHILDREN AND ADULT,REDACTED PERSONAL DATA,329.42,FRIENDS & FAMILY FOSTERING,PAYMENTS TO CARERS,2102765031,REDACTED
03.01.2018,CHILDREN AND ADULT,REDACTED PERSONAL DATA,682.3,FRIENDS & FAMILY FOSTERING,PAYMENTS TO CARERS,2102765022,REDACTED
03.01.2018,CHILDREN AND ADULT,REDACTED PERSONAL DATA,776.08,FRIENDS & FAMILY FOSTERING,PAYMENTS TO CARERS,2102765025,REDACTED
03.01.2018,CHILDREN AND ADULT,REDACTED PERSONAL DATA,682.3,FRIENDS & FAMILY FOSTERING,PAYMENTS TO CARERS,2102765032,REDACTED
03.01.2018,CHILDREN AND ADULT,REDACTED PERSONAL DATA,682.3,FRIENDS & FAMILY FOSTERING,PAYMENTS TO CARERS,2102765013,REDACTED
03.01.2018,CHILDREN AND ADULT,REDACTED PERSONAL DATA,682.3,FRIENDS & FAMILY FOSTERING,PAYMENTS TO CARERS,2102765027,REDACTED
03.01.2018,CHILDREN AND ADULT,REDACTED PERSONAL DATA,768.12,FRIENDS & FAMILY FOSTERING,PAYMENTS TO CARERS,2102765042,REDACTED
03.01.2018,CHILDREN AND ADULT,REDACTED PERSONAL DATA,682.3,FRIENDS & FAMILY FOSTERING,PAYMENTS TO CARERS,2102765041,REDACTED
03.01.2018,CHILDREN AND ADULT,REDACTED PERSONAL DATA,776.08,FRIENDS & FAMILY FOSTERING,PAYMENTS TO CARERS,2102765040,REDACTED
03.01.2018,CHILDREN AND ADULT,REDACTED PERSONAL DATA,776.08,FRIENDS & FAMILY FOSTERING,PAYMENTS TO CARERS,2102765024,REDACTED
03.01.2018,CHILDREN AND ADULT,REDACTED PERSONAL DATA,382.3,FRIENDS & FAMILY FOSTERING,PAYMENTS TO CARERS,2102765020,REDACTED
03.01.2018,CHILDREN AND ADULT,REDACTED PERSONAL DATA,682.3,FRIENDS & FAMILY FOSTERING,PAYMENTS TO CARERS,2102765023,REDACTED
03.01.2018,CHILDREN AND ADULT,REDACTED PERSONAL DATA,682.3,FRIENDS & FAMILY FOSTERING,PAYMENTS TO CARERS,2102765026,REDACTED
03.01.2018,CHILDREN AND ADULT,REDACTED PERSONAL DATA,682.3,FRIENDS & FAMILY FOSTERING,PAYMENTS TO CARERS,2102765043,REDACTED
03.01.2018,CHILDREN AND ADULT,REDACTED PERSONAL DATA,476.08,FRIENDS & FAMILY FOSTERING,PAYMENTS TO CARERS,2102765033,REDACTED
03.01.2018,CHILDREN AND ADULT,REDACTED PERSONAL DATA,578.12,FRIENDS & FAMILY FOSTERING,PAYMENTS TO CARERS,2102765018,REDACTED
03.01.2018,CHILDREN AND ADULT,REDACTED PERSONAL DATA,272.05,FRIENDS & FAMILY FOSTERING,PAYMENTS TO CARERS,2102765029,REDACTED
03.01.2018,CHILDREN AND ADULT,REDACTED PERSONAL DATA,382.3,FRIENDS & FAMILY FOSTERING,PAYMENTS TO CARERS,2102765011,REDACTED
03.01.2018,CHILDREN AND ADULT,REDACTED PERSONAL DATA,335.34,FRIENDS & FAMILY FOSTERING,PAYMENTS TO CARERS,2102765036,REDACTED
03.01.2018,CHILDREN AND ADULT,REDACTED PERSONAL DATA,334.34,FRIENDS & FAMILY FOSTERING,PAYMENTS TO CARERS,2102765017,REDACTED
03.01.2018,CHILDREN AND ADULT,REDACTED PERSONAL DATA,335.34,FRIENDS & FAMILY FOSTERING,PAYMENTS TO CARERS,2102765030,REDACTED
03.01.2018,CHILDREN'S SERVICES,BELLENDEN PRIMARY SCHOOL,"-10,260.00",BELLENDEN JMI,"SCHOOLS CAPITATION, STANDARDS FUND",2102757338,5001000007
03.01.2018,CHILDREN'S SERVICES,CAMBRIDGE HOUSE & TALBOT,"4,586.75",CAMBRIDGE HOUSE,EXTERNAL AGENCIES AND BODIES,5902283884,1139414
03.01.2018,CHILDREN'S SERVICES,REDACTED PERSONAL DATA,798.12,DISABILITY & HIV,PAYMENTS TO CARERS,2102765137,REDACTED
03.01.2018,CHILDREN'S SERVICES,REDACTED PERSONAL DATA,888.12,DISABILITY & HIV,PAYMENTS TO CARERS,2102765214,REDACTED
03.01.2018,CHILDREN'S SERVICES,REDACTED PERSONAL DATA,798.12,DISABILITY & HIV,PAYMENTS TO CARERS,2102765160,REDACTED
03.01.2018,CHILDREN'S SERVICES,REDACTED PERSONAL DATA,806.08,DISABILITY & HIV,PAYMENTS TO CARERS,2102765049,REDACTED
03.01.2018,CHILDREN'S SERVICES,REDACTED PERSONAL DATA,888.12,DISABILITY & HIV,PAYMENTS TO CARERS,2102765175,REDACTED
03.01.2018,CHILDREN'S SERVICES,REDACTED PERSONAL DATA,665.34,DISABILITY & HIV,PAYMENTS TO CARERS,2102765061,REDACTED
03.01.2018,CHILDREN'S SERVICES,REDACTED PERSONAL DATA,665.34,DISABILITY & HIV,PAYMENTS TO CARERS,2102765056,REDACTED
03.01.2018,CHILDREN'S SERVICES,REDACTED PERSONAL DATA,712.3,DISABILITY & HIV,PAYMENTS TO CARERS,2102765170,REDACTED
03.01.2018,CHILDREN'S SERVICES,REDACTED PERSONAL DATA,776.08,DISABILITY & HIV,PAYMENTS TO CARERS,2102765152,REDACTED
03.01.2018,CHILDREN'S SERVICES,REDACTED PERSONAL DATA,806.08,DISABILITY & HIV,PAYMENTS TO CARERS,2102765063,REDACTED
03.01.2018,CHILDREN'S SERVICES,REDACTED PERSONAL DATA,798.12,DISABILITY & HIV,PAYMENTS TO CARERS,2102765180,REDACTED
03.01.2018,CHILDREN'S SERVICES,REDACTED PERSONAL DATA,806.08,DISABILITY & HIV,PAYMENTS TO CARERS,2102765057,REDACTED
03.01.2018,CHILDREN'S SERVICES,REDACTED PERSONAL DATA,806.08,DISABILITY & HIV,PAYMENTS TO CARERS,2102765114,REDACTED
03.01.2018,CHILDREN'S SERVICES,REDACTED PERSONAL DATA,712.3,DISABILITY & HIV,PAYMENTS TO CARERS,2102765121,REDACTED
03.01.2018,CHILDREN'S SERVICES,REDACTED PERSONAL DATA,806.08,DISABILITY & HIV,PAYMENTS TO CARERS,2102765091,REDACTED
03.01.2018,CHILDREN'S SERVICES,REDACTED PERSONAL DATA,806.08,DISABILITY & HIV,PAYMENTS TO CARERS,2102765135,REDACTED
03.01.2018,CHILDREN'S SERVICES,REDACTED PERSONAL DATA,806.08,DISABILITY & HIV,PAYMENTS TO CARERS,2102765249,REDACTED
03.01.2018,CHILDREN'S SERVICES,REDACTED PERSONAL DATA,712.3,DISABILITY & HIV,PAYMENTS TO CARERS,2102765141,REDACTED
03.01.2018,CHILDREN'S SERVICES,REDACTED PERSONAL DATA,806.08,DISABILITY & HIV,PAYMENTS TO CARERS,2102765162,REDACTED
03.01.2018,CHILDREN'S SERVICES,REDACTED PERSONAL DATA,888.12,DISABILITY & HIV,PAYMENTS TO CARERS,2102765223,REDACTED
03.01.2018,CHILDREN'S SERVICES,REDACTED PERSONAL DATA,888.12,DISABILITY & HIV,PAYMENTS TO CARERS,2102765176,REDACTED
03.01.2018,CHILDREN'S SERVICES,REDACTED PERSONAL DATA,300,DISABILITY & HIV,ADDITIONAL PAYMENTS TO AGENCIES/CARERS,2102765070,REDACTED
03.01.2018,CHILDREN'S SERVICES,REDACTED PERSONAL DATA,575.77,DISABILITY & HIV,PAYMENTS TO CARERS,2102765248,REDACTED
03.01.2018,CHILDREN'S SERVICES,REDACTED PERSONAL DATA,798.12,DISABILITY & HIV,PAYMENTS TO CARERS,2102765051,REDACTED
03.01.2018,CHILDREN'S SERVICES,REDACTED PERSONAL DATA,798.12,DISABILITY & HIV,PAYMENTS TO CARERS,2102765189,REDACTED
03.01.2018,CHILDREN'S SERVICES,REDACTED PERSONAL DATA,798.12,DISABILITY & HIV,PAYMENTS TO CARERS,2102765117,REDACTED
03.01.2018,CHILDREN'S SERVICES,REDACTED PERSONAL DATA,806.08,DISABILITY & HIV,PAYMENTS TO CARERS,2102765118,REDACTED
03.01.2018,CHILDREN'S SERVICES,REDACTED PERSONAL DATA,806.08,DISABILITY & HIV,PAYMENTS TO CARERS,2102765120,REDACTED
03.01.2018,CHILDREN'S SERVICES,REDACTED PERSONAL DATA,858.12,DISABILITY & HIV,PAYMENTS TO CARERS,2102765072,REDACTED
03.01.2018,CHILDREN'S SERVICES,REDACTED PERSONAL DATA,858.12,DISABILITY & HIV,PAYMENTS TO CARERS,2102765256,REDACTED
03.01.2018,CHILDREN'S SERVICES,REDACTED PERSONAL DATA,924.2,DISABILITY & HIV,PAYMENTS TO CARERS,2102765275,REDACTED
03.01.2018,CHILDREN'S SERVICES,REDACTED PERSONAL DATA,682.3,DISABILITY & HIV,PAYMENTS TO CARERS,2102765196,REDACTED
03.01.2018,CHILDREN'S SERVICES,REDACTED PERSONAL DATA,858.12,DISABILITY & HIV,PAYMENTS TO CARERS,2102765148,REDACTED
03.01.2018,CHILDREN'S SERVICES,REDACTED PERSONAL DATA,712.3,DISABILITY & HIV,PAYMENTS TO CARERS,2102765216,REDACTED
03.01.2018,CHILDREN'S SERVICES,REDACTED PERSONAL DATA,888.12,DISABILITY & HIV,PAYMENTS TO CARERS,2102765202,REDACTED
03.01.2018,CHILDREN'S SERVICES,REDACTED PERSONAL DATA,798.12,DISABILITY & HIV,PAYMENTS TO CARERS,2102765203,REDACTED
03.01.2018,CHILDREN'S SERVICES,REDACTED PERSONAL DATA,665.34,DISABILITY & HIV,PAYMENTS TO CARERS,2102765044,REDACTED
03.01.2018,CHILDREN'S SERVICES,REDACTED PERSONAL DATA,712.3,DISABILITY & HIV,PAYMENTS TO CARERS,2102765179,REDACTED
03.01.2018,CHILDREN'S SERVICES,REDACTED PERSONAL DATA,712.3,DISABILITY & HIV,PAYMENTS TO CARERS,2102765283,REDACTED
03.01.2018,CHILDREN'S SERVICES,REDACTED PERSONAL DATA,991.48,DISABILITY & HIV,PAYMENTS TO CARERS,2102765156,REDACTED
03.01.2018,CHILDREN'S SERVICES,REDACTED PERSONAL DATA,798.12,DISABILITY & HIV,PAYMENTS TO CARERS,2102765127,REDACTED
03.01.2018,CHILDREN'S SERVICES,REDACTED PERSONAL DATA,798.12,DISABILITY & HIV,PAYMENTS TO CARERS,2102765237,REDACTED
03.01.2018,CHILDREN'S SERVICES,REDACTED PERSONAL DATA,888.12,DISABILITY & HIV,PAYMENTS TO CARERS,2102765149,REDACTED
03.01.2018,CHILDREN'S SERVICES,REDACTED PERSONAL DATA,380.63,DISABILITY & HIV,PAYMENTS TO CARERS,2102765246,REDACTED
03.01.2018,CHILDREN'S SERVICES,REDACTED PERSONAL DATA,798.12,DISABILITY & HIV,PAYMENTS TO CARERS,2102765205,REDACTED
03.01.2018,CHILDREN'S SERVICES,REDACTED PERSONAL DATA,888.12,DISABILITY & HIV,PAYMENTS TO CARERS,2102765244,REDACTED
03.01.2018,CHILDREN'S SERVICES,REDACTED PERSONAL DATA,798.12,DISABILITY & HIV,PAYMENTS TO CARERS,2102765131,REDACTED
03.01.2018,CHILDREN'S SERVICES,REDACTED PERSONAL DATA,806.08,DISABILITY & HIV,PAYMENTS TO CARERS,2102765261,REDACTED
03.01.2018,CHILDREN'S SERVICES,REDACTED PERSONAL DATA,806.08,DISABILITY & HIV,PAYMENTS TO CARERS,2102765195,REDACTED
03.01.2018,CHILDREN'S SERVICES,REDACTED PERSONAL DATA,806.08,DISABILITY & HIV,PAYMENTS TO CARERS,2102765197,REDACTED
03.01.2018,CHILDREN'S SERVICES,REDACTED PERSONAL DATA,798.12,DISABILITY & HIV,PAYMENTS TO CARERS,2102765124,REDACTED
03.01.2018,CHILDREN'S SERVICES,REDACTED PERSONAL DATA,888.12,DISABILITY & HIV,PAYMENTS TO CARERS,2102765068,REDACTED
03.01.2018,CHILDREN'S SERVICES,REDACTED PERSONAL DATA,806.08,DISABILITY & HIV,PAYMENTS TO CARERS,2102765088,REDACTED
03.01.2018,CHILDREN'S SERVICES,REDACTED PERSONAL DATA,798.12,DISABILITY & HIV,PAYMENTS TO CARERS,2102765128,REDACTED
03.01.2018,CHILDREN'S SERVICES,REDACTED PERSONAL DATA,888.12,DISABILITY & HIV,PAYMENTS TO CARERS,2102765104,REDACTED
03.01.2018,CHILDREN'S SERVICES,REDACTED PERSONAL DATA,888.12,DISABILITY & HIV,PAYMENTS TO CARERS,2102765106,REDACTED
03.01.2018,CHILDREN'S SERVICES,REDACTED PERSONAL DATA,665.34,DISABILITY & HIV,PAYMENTS TO CARERS,2102765045,REDACTED
03.01.2018,CHILDREN'S SERVICES,REDACTED PERSONAL DATA,798.12,DISABILITY & HIV,PAYMENTS TO CARERS,2102765263,REDACTED
03.01.2018,CHILDREN'S SERVICES,REDACTED PERSONAL DATA,888.12,DISABILITY & HIV,PAYMENTS TO CARERS,2102765098,REDACTED
03.01.2018,CHILDREN'S SERVICES,REDACTED PERSONAL DATA,888.12,DISABILITY & HIV,PAYMENTS TO CARERS,2102765108,REDACTED
03.01.2018,CHILDREN'S SERVICES,REDACTED PERSONAL DATA,712.3,DISABILITY & HIV,PAYMENTS TO CARERS,2102765224,REDACTED
03.01.2018,CHILDREN'S SERVICES,REDACTED PERSONAL DATA,712.3,DISABILITY & HIV,PAYMENTS TO CARERS,2102765096,REDACTED
03.01.2018,CHILDREN'S SERVICES,REDACTED PERSONAL DATA,888.12,DISABILITY & HIV,PAYMENTS TO CARERS,2102765247,REDACTED
03.01.2018,CHILDREN'S SERVICES,REDACTED PERSONAL DATA,806.08,DISABILITY & HIV,PAYMENTS TO CARERS,2102765220,REDACTED
03.01.2018,CHILDREN'S SERVICES,REDACTED PERSONAL DATA,806.08,DISABILITY & HIV,PAYMENTS TO CARERS,2102765230,REDACTED
03.01.2018,CHILDREN'S SERVICES,REDACTED PERSONAL DATA,806.08,DISABILITY & HIV,PAYMENTS TO CARERS,2102765281,REDACTED
03.01.2018,CHILDREN'S SERVICES,REDACTED PERSONAL DATA,570.08,DISABILITY & HIV,PAYMENTS TO CARERS,2102765047,REDACTED
03.01.2018,CHILDREN'S SERVICES,REDACTED PERSONAL DATA,300,DISABILITY & HIV,ADDITIONAL PAYMENTS TO AGENCIES/CARERS,2102765251,REDACTED
03.01.2018,CHILDREN'S SERVICES,REDACTED PERSONAL DATA,888.12,DISABILITY & HIV,PAYMENTS TO CARERS,2102765235,REDACTED
03.01.2018,CHILDREN'S SERVICES,REDACTED PERSONAL DATA,"1,849.36",DISABILITY & HIV,PAYMENTS TO CARERS,2102765252,REDACTED
03.01.2018,CHILDREN'S SERVICES,REDACTED PERSONAL DATA,570.08,DISABILITY & HIV,PAYMENTS TO CARERS,2102765192,REDACTED
03.01.2018,CHILDREN'S SERVICES,REDACTED PERSONAL DATA,806.08,DISABILITY & HIV,PAYMENTS TO CARERS,2102765082,REDACTED
03.01.2018,CHILDREN'S SERVICES,REDACTED PERSONAL DATA,806.08,DISABILITY & HIV,PAYMENTS TO CARERS,2102765171,REDACTED
03.01.2018,CHILDREN'S SERVICES,REDACTED PERSONAL DATA,712.3,DISABILITY & HIV,PAYMENTS TO CARERS,2102765125,REDACTED
03.01.2018,CHILDREN'S SERVICES,REDACTED PERSONAL DATA,806.08,DISABILITY & HIV,PAYMENTS TO CARERS,2102765186,REDACTED
03.01.2018,CHILDREN'S SERVICES,REDACTED PERSONAL DATA,806.08,DISABILITY & HIV,PAYMENTS TO CARERS,2102765150,REDACTED
03.01.2018,CHILDREN'S SERVICES,REDACTED PERSONAL DATA,888.12,DISABILITY & HIV,PAYMENTS TO CARERS,2102765266,REDACTED
03.01.2018,CHILDREN'S SERVICES,REDACTED PERSONAL DATA,665.34,DISABILITY & HIV,PAYMENTS TO CARERS,2102765270,REDACTED
03.01.2018,CHILDREN'S SERVICES,REDACTED PERSONAL DATA,"1,094.60",DISABILITY & HIV,PAYMENTS TO CARERS,2102765228,REDACTED
03.01.2018,CHILDREN'S SERVICES,REDACTED PERSONAL DATA,"1,291.42",DISABILITY & HIV,PAYMENTS TO CARERS,2102765188,REDACTED
03.01.2018,CHILDREN'S SERVICES,REDACTED PERSONAL DATA,665.34,DISABILITY & HIV,PAYMENTS TO CARERS,2102765085,REDACTED
03.01.2018,CHILDREN'S SERVICES,REDACTED PERSONAL DATA,665.34,DISABILITY & HIV,PAYMENTS TO CARERS,2102765274,REDACTED
03.01.2018,CHILDREN'S SERVICES,REDACTED PERSONAL DATA,712.3,DISABILITY & HIV,PAYMENTS TO CARERS,2102765243,REDACTED
03.01.2018,CHILDREN'S SERVICES,REDACTED PERSONAL DATA,712.3,DISABILITY & HIV,PAYMENTS TO CARERS,2102765259,REDACTED
03.01.2018,CHILDREN'S SERVICES,REDACTED PERSONAL DATA,806.08,DISABILITY & HIV,PAYMENTS TO CARERS,2102765105,REDACTED
03.01.2018,CHILDREN'S SERVICES,REDACTED PERSONAL DATA,888.12,DISABILITY & HIV,PAYMENTS TO CARERS,2102765272,REDACTED
03.01.2018,CHILDREN'S SERVICES,REDACTED PERSONAL DATA,888.12,DISABILITY & HIV,PAYMENTS TO CARERS,2102765177,REDACTED
03.01.2018,CHILDREN'S SERVICES,REDACTED PERSONAL DATA,888.12,DISABILITY & HIV,PAYMENTS TO CARERS,2102765183,REDACTED
03.01.2018,CHILDREN'S SERVICES,REDACTED PERSONAL DATA,798.12,DISABILITY & HIV,PAYMENTS TO CARERS,2102765231,REDACTED
03.01.2018,CHILDREN'S SERVICES,REDACTED PERSONAL DATA,806.08,DISABILITY & HIV,PAYMENTS TO CARERS,2102765083,REDACTED
03.01.2018,CHILDREN'S SERVICES,REDACTED PERSONAL DATA,806.08,DISABILITY & HIV,PAYMENTS TO CARERS,2102765109,REDACTED
03.01.2018,CHILDREN'S SERVICES,REDACTED PERSONAL DATA,712.3,DISABILITY & HIV,PAYMENTS TO CARERS,2102765265,REDACTED
03.01.2018,CHILDREN'S SERVICES,REDACTED PERSONAL DATA,"1,094.60",DISABILITY & HIV,PAYMENTS TO CARERS,2102765064,REDACTED
03.01.2018,CHILDREN'S SERVICES,REDACTED PERSONAL DATA,712.3,DISABILITY & HIV,PAYMENTS TO CARERS,2102765217,REDACTED
03.01.2018,CHILDREN'S SERVICES,REDACTED PERSONAL DATA,806.08,DISABILITY & HIV,PAYMENTS TO CARERS,2102765081,REDACTED
03.01.2018,CHILDREN'S SERVICES,REDACTED PERSONAL DATA,806.08,DISABILITY & HIV,PAYMENTS TO CARERS,2102765134,REDACTED
03.01.2018,CHILDREN'S SERVICES,REDACTED PERSONAL DATA,888.12,DISABILITY & HIV,PAYMENTS TO CARERS,2102765099,REDACTED
03.01.2018,CHILDREN'S SERVICES,REDACTED PERSONAL DATA,888.12,DISABILITY & HIV,PAYMENTS TO CARERS,2102765140,REDACTED
03.01.2018,CHILDREN'S SERVICES,REDACTED PERSONAL DATA,776.08,DISABILITY & HIV,PAYMENTS TO CARERS,2102765201,REDACTED
03.01.2018,CHILDREN'S SERVICES,REDACTED PERSONAL DATA,806.08,DISABILITY & HIV,PAYMENTS TO CARERS,2102765095,REDACTED
03.01.2018,CHILDREN'S SERVICES,REDACTED PERSONAL DATA,991.42,DISABILITY & HIV,PAYMENTS TO CARERS,2102765168,REDACTED
03.01.2018,CHILDREN'S SERVICES,REDACTED PERSONAL DATA,991.42,DISABILITY & HIV,PAYMENTS TO CARERS,2102765226,REDACTED
03.01.2018,CHILDREN'S SERVICES,REDACTED PERSONAL DATA,665.34,DISABILITY & HIV,PAYMENTS TO CARERS,2102765204,REDACTED
03.01.2018,CHILDREN'S SERVICES,REDACTED PERSONAL DATA,712.3,DISABILITY & HIV,PAYMENTS TO CARERS,2102765076,REDACTED
03.01.2018,CHILDREN'S SERVICES,REDACTED PERSONAL DATA,806.08,DISABILITY & HIV,PAYMENTS TO CARERS,2102765209,REDACTED
03.01.2018,CHILDREN'S SERVICES,REDACTED PERSONAL DATA,635.34,DISABILITY & HIV,PAYMENTS TO CARERS,2102765143,REDACTED
03.01.2018,CHILDREN'S SERVICES,REDACTED PERSONAL DATA,665.34,DISABILITY & HIV,PAYMENTS TO CARERS,2102765159,REDACTED
03.01.2018,CHILDREN'S SERVICES,REDACTED PERSONAL DATA,806.08,DISABILITY & HIV,PAYMENTS TO CARERS,2102765157,REDACTED
03.01.2018,CHILDREN'S SERVICES,REDACTED PERSONAL DATA,798.12,DISABILITY & HIV,PAYMENTS TO CARERS,2102765100,REDACTED
03.01.2018,CHILDREN'S SERVICES,REDACTED PERSONAL DATA,712.3,DISABILITY & HIV,PAYMENTS TO CARERS,2102765280,REDACTED
03.01.2018,CHILDREN'S SERVICES,REDACTED PERSONAL DATA,806.08,DISABILITY & HIV,PAYMENTS TO CARERS,2102765267,REDACTED
03.01.2018,CHILDREN'S SERVICES,REDACTED PERSONAL DATA,665.34,DISABILITY & HIV,PAYMENTS TO CARERS,2102765184,REDACTED
03.01.2018,CHILDREN'S SERVICES,REDACTED PERSONAL DATA,712.3,DISABILITY & HIV,PAYMENTS TO CARERS,2102765213,REDACTED
03.01.2018,CHILDREN'S SERVICES,REDACTED PERSONAL DATA,806.08,DISABILITY & HIV,PAYMENTS TO CARERS,2102765071,REDACTED
03.01.2018,CHILDREN'S SERVICES,REDACTED PERSONAL DATA,888.12,DISABILITY & HIV,PAYMENTS TO CARERS,2102765103,REDACTED
03.01.2018,CHILDREN'S SERVICES,REDACTED PERSONAL DATA,806.08,DISABILITY & HIV,PAYMENTS TO CARERS,2102765054,REDACTED
03.01.2018,CHILDREN'S SERVICES,REDACTED PERSONAL DATA,854.28,DISABILITY & HIV,PAYMENTS TO CARERS,2102765123,REDACTED
03.01.2018,CHILDREN'S SERVICES,REDACTED PERSONAL DATA,806.08,DISABILITY & HIV,PAYMENTS TO CARERS,2102765178,REDACTED
03.01.2018,CHILDREN'S SERVICES,REDACTED PERSONAL DATA,806.08,DISABILITY & HIV,PAYMENTS TO CARERS,2102765191,REDACTED
03.01.2018,CHILDREN'S SERVICES,REDACTED PERSONAL DATA,806.08,DISABILITY & HIV,PAYMENTS TO CARERS,2102765273,REDACTED
03.01.2018,CHILDREN'S SERVICES,REDACTED PERSONAL DATA,798.12,DISABILITY & HIV,PAYMENTS TO CARERS,2102765092,REDACTED
03.01.2018,CHILDREN'S SERVICES,REDACTED PERSONAL DATA,888.12,DISABILITY & HIV,PAYMENTS TO CARERS,2102765113,REDACTED
03.01.2018,CHILDREN'S SERVICES,REDACTED PERSONAL DATA,888.12,DISABILITY & HIV,PAYMENTS TO CARERS,2102765199,REDACTED
03.01.2018,CHILDREN'S SERVICES,REDACTED PERSONAL DATA,902.3,DISABILITY & HIV,PAYMENTS TO CARERS,2102765185,REDACTED
03.01.2018,CHILDREN'S SERVICES,REDACTED PERSONAL DATA,902.3,DISABILITY & HIV,PAYMENTS TO CARERS,2102765215,REDACTED
03.01.2018,CHILDREN'S SERVICES,REDACTED PERSONAL DATA,712.3,DISABILITY & HIV,PAYMENTS TO CARERS,2102765163,REDACTED
03.01.2018,CHILDREN'S SERVICES,REDACTED PERSONAL DATA,806.08,DISABILITY & HIV,PAYMENTS TO CARERS,2102765136,REDACTED
03.01.2018,CHILDREN'S SERVICES,REDACTED PERSONAL DATA,776.08,DISABILITY & HIV,PAYMENTS TO CARERS,2102765258,REDACTED
03.01.2018,CHILDREN'S SERVICES,REDACTED PERSONAL DATA,806.08,DISABILITY & HIV,PAYMENTS TO CARERS,2102765218,REDACTED
03.01.2018,CHILDREN'S SERVICES,REDACTED PERSONAL DATA,806.08,DISABILITY & HIV,PAYMENTS TO CARERS,2102765260,REDACTED
03.01.2018,CHILDREN'S SERVICES,REDACTED PERSONAL DATA,806.08,DISABILITY & HIV,PAYMENTS TO CARERS,2102765182,REDACTED
03.01.2018,CHILDREN'S SERVICES,REDACTED PERSONAL DATA,300,DISABILITY & HIV,PAYMENTS TO CARERS,2102765233,REDACTED
03.01.2018,CHILDREN'S SERVICES,REDACTED PERSONAL DATA,712.3,DISABILITY & HIV,PAYMENTS TO CARERS,2102765181,REDACTED
03.01.2018,CHILDREN'S SERVICES,REDACTED PERSONAL DATA,888.12,DISABILITY & HIV,PAYMENTS TO CARERS,2102765111,REDACTED
03.01.2018,CHILDREN'S SERVICES,REDACTED PERSONAL DATA,742.3,DISABILITY & HIV,PAYMENTS TO CARERS,2102765155,REDACTED
03.01.2018,CHILDREN'S SERVICES,REDACTED PERSONAL DATA,682.3,DISABILITY & HIV,PAYMENTS TO CARERS,2102765241,REDACTED
03.01.2018,CHILDREN'S SERVICES,REDACTED PERSONAL DATA,776.08,DISABILITY & HIV,PAYMENTS TO CARERS,2102765284,REDACTED
03.01.2018,CHILDREN'S SERVICES,REDACTED PERSONAL DATA,798.12,DISABILITY & HIV,PAYMENTS TO CARERS,2102765207,REDACTED
03.01.2018,CHILDREN'S SERVICES,REDACTED PERSONAL DATA,"1,379.08",DISABILITY & HIV,PAYMENTS TO CARERS,2102765133,REDACTED
03.01.2018,CHILDREN'S SERVICES,REDACTED PERSONAL DATA,776.08,DISABILITY & HIV,PAYMENTS TO CARERS,2102765245,REDACTED
03.01.2018,CHILDREN'S SERVICES,REDACTED PERSONAL DATA,806.08,DISABILITY & HIV,PAYMENTS TO CARERS,2102765210,REDACTED
03.01.2018,CHILDREN'S SERVICES,REDACTED PERSONAL DATA,798.12,DISABILITY & HIV,PAYMENTS TO CARERS,2102765208,REDACTED
03.01.2018,CHILDREN'S SERVICES,REDACTED PERSONAL DATA,665.34,DISABILITY & HIV,PAYMENTS TO CARERS,2102765282,REDACTED
03.01.2018,CHILDREN'S SERVICES,REDACTED PERSONAL DATA,712.3,DISABILITY & HIV,PAYMENTS TO CARERS,2102765130,REDACTED
03.01.2018,CHILDREN'S SERVICES,REDACTED PERSONAL DATA,682.3,DISABILITY & HIV,PAYMENTS TO CARERS,2102765222,REDACTED
03.01.2018,CHILDREN'S SERVICES,REDACTED PERSONAL DATA,712.3,DISABILITY & HIV,PAYMENTS TO CARERS,2102765144,REDACTED
03.01.2018,CHILDREN'S SERVICES,REDACTED PERSONAL DATA,712.3,DISABILITY & HIV,PAYMENTS TO CARERS,2102765229,REDACTED
03.01.2018,CHILDREN'S SERVICES,REDACTED PERSONAL DATA,855.2,DISABILITY & HIV,PAYMENTS TO CARERS,2102765065,REDACTED
03.01.2018,CHILDREN'S SERVICES,REDACTED PERSONAL DATA,682.3,DISABILITY & HIV,PAYMENTS TO CARERS,2102765236,REDACTED
03.01.2018,CHILDREN'S SERVICES,REDACTED PERSONAL DATA,682.3,DISABILITY & HIV,PAYMENTS TO CARERS,2102765276,REDACTED
03.01.2018,CHILDREN'S SERVICES,REDACTED PERSONAL DATA,806.08,DISABILITY & HIV,PAYMENTS TO CARERS,2102765050,REDACTED
03.01.2018,CHILDREN'S SERVICES,REDACTED PERSONAL DATA,682.3,DISABILITY & HIV,PAYMENTS TO CARERS,2102765193,REDACTED
03.01.2018,CHILDREN'S SERVICES,REDACTED PERSONAL DATA,682.3,DISABILITY & HIV,PAYMENTS TO CARERS,2102765060,REDACTED
03.01.2018,CHILDREN'S SERVICES,REDACTED PERSONAL DATA,682.3,DISABILITY & HIV,PAYMENTS TO CARERS,2102765101,REDACTED
03.01.2018,CHILDREN'S SERVICES,REDACTED PERSONAL DATA,858.12,DISABILITY & HIV,PAYMENTS TO CARERS,2102765089,REDACTED
03.01.2018,CHILDREN'S SERVICES,REDACTED PERSONAL DATA,949.76,DISABILITY & HIV,PAYMENTS TO CARERS,2102765146,REDACTED
03.01.2018,CHILDREN'S SERVICES,REDACTED PERSONAL DATA,776.08,DISABILITY & HIV,PAYMENTS TO CARERS,2102765074,REDACTED
03.01.2018,CHILDREN'S SERVICES,REDACTED PERSONAL DATA,776.08,DISABILITY & HIV,PAYMENTS TO CARERS,2102765086,REDACTED
03.01.2018,CHILDREN'S SERVICES,REDACTED PERSONAL DATA,682.3,DISABILITY & HIV,PAYMENTS TO CARERS,2102765153,REDACTED
03.01.2018,CHILDREN'S SERVICES,REDACTED PERSONAL DATA,"1,158.12",DISABILITY & HIV,PAYMENTS TO CARERS,2102765112,REDACTED
03.01.2018,CHILDREN'S SERVICES,REDACTED PERSONAL DATA,665.34,DISABILITY & HIV,PAYMENTS TO CARERS,2102765145,REDACTED
03.01.2018,CHILDREN'S SERVICES,REDACTED PERSONAL DATA,888.12,DISABILITY & HIV,PAYMENTS TO CARERS,2102765212,REDACTED
03.01.2018,CHILDREN'S SERVICES,REDACTED PERSONAL DATA,682.3,DISABILITY & HIV,PAYMENTS TO CARERS,2102765250,REDACTED
03.01.2018,CHILDREN'S SERVICES,REDACTED PERSONAL DATA,635.34,DISABILITY & HIV,PAYMENTS TO CARERS,2102765075,REDACTED
03.01.2018,CHILDREN'S SERVICES,REDACTED PERSONAL DATA,682.3,DISABILITY & HIV,PAYMENTS TO CARERS,2102765107,REDACTED
03.01.2018,CHILDREN'S SERVICES,REDACTED PERSONAL DATA,888.12,DISABILITY & HIV,PAYMENTS TO CARERS,2102765225,REDACTED
03.01.2018,CHILDREN'S SERVICES,REDACTED PERSONAL DATA,300,DISABILITY & HIV,PAYMENTS TO CARERS,2102765116,REDACTED
03.01.2018,CHILDREN'S SERVICES,REDACTED PERSONAL DATA,862.4,DISABILITY & HIV,PAYMENTS TO CARERS,2102765198,REDACTED
03.01.2018,CHILDREN'S SERVICES,REDACTED PERSONAL DATA,888.12,DISABILITY & HIV,PAYMENTS TO CARERS,2102765080,REDACTED
03.01.2018,CHILDREN'S SERVICES,REDACTED PERSONAL DATA,888.12,DISABILITY & HIV,PAYMENTS TO CARERS,2102765232,REDACTED
03.01.2018,CHILDREN'S SERVICES,REDACTED PERSONAL DATA,768.12,DISABILITY & HIV,PAYMENTS TO CARERS,2102765046,REDACTED
03.01.2018,CHILDREN'S SERVICES,REDACTED PERSONAL DATA,858.12,DISABILITY & HIV,PAYMENTS TO CARERS,2102765066,REDACTED
03.01.2018,CHILDREN'S SERVICES,REDACTED PERSONAL DATA,776.08,DISABILITY & HIV,PAYMENTS TO CARERS,2102765147,REDACTED
03.01.2018,CHILDREN'S SERVICES,REDACTED PERSONAL DATA,776.08,DISABILITY & HIV,PAYMENTS TO CARERS,2102765234,REDACTED
03.01.2018,CHILDREN'S SERVICES,REDACTED PERSONAL DATA,776.08,DISABILITY & HIV,PAYMENTS TO CARERS,2102765110,REDACTED
03.01.2018,CHILDREN'S SERVICES,REDACTED PERSONAL DATA,682.3,DISABILITY & HIV,PAYMENTS TO CARERS,2102765167,REDACTED
03.01.2018,CHILDREN'S SERVICES,REDACTED PERSONAL DATA,774.54,DISABILITY & HIV,PAYMENTS TO CARERS,2102765269,REDACTED
03.01.2018,CHILDREN'S SERVICES,REDACTED PERSONAL DATA,635.34,DISABILITY & HIV,PAYMENTS TO CARERS,2102765093,REDACTED
03.01.2018,CHILDREN'S SERVICES,REDACTED PERSONAL DATA,682.3,DISABILITY & HIV,PAYMENTS TO CARERS,2102765122,REDACTED
03.01.2018,CHILDREN'S SERVICES,REDACTED PERSONAL DATA,635.34,DISABILITY & HIV,PAYMENTS TO CARERS,2102765077,REDACTED
03.01.2018,CHILDREN'S SERVICES,REDACTED PERSONAL DATA,776.08,DISABILITY & HIV,PAYMENTS TO CARERS,2102765253,REDACTED
03.01.2018,CHILDREN'S SERVICES,REDACTED PERSONAL DATA,476.08,DISABILITY & HIV,PAYMENTS TO CARERS,2102765053,REDACTED
03.01.2018,CHILDREN'S SERVICES,ARGOS BUSINESS SOLUTIONS LTD,282.91,LEAVING CARE GRANT,OTHER PAYMENTS FOR CLIENTS,5902283876,1000001734
03.01.2018,CHILDREN'S SERVICES,SOUTHWARK INCLUSIVE LEARNING SERVICE,"18,233.00",PUPIL PREMIUM,"SCHOOLS CAPITATION, STANDARDS FUND",5902283996,5001000105
03.01.2018,CHILDREN'S SERVICES,ALBION PRIMARY SCHOOL,"47,190.00",PUPIL PREMIUM,"SCHOOLS CAPITATION, STANDARDS FUND",5902283924,5001000000
03.01.2018,CHILDREN'S SERVICES,ALFRED SALTER PRIMARY SCHOOL,"47,730.00",PUPIL PREMIUM,"SCHOOLS CAPITATION, STANDARDS FUND",5902283925,5001000005
03.01.2018,CHILDREN'S SERVICES,BELLENDEN PRIMARY SCHOOL,"24,565.00",PUPIL PREMIUM,"SCHOOLS CAPITATION, STANDARDS FUND",5902283926,5001000007
03.01.2018,CHILDREN'S SERVICES,BEORMUND PRIMARY SCHOOL,"9,240.00",PUPIL PREMIUM,"SCHOOLS CAPITATION, STANDARDS FUND",5902283927,5001000008
03.01.2018,CHILDREN'S SERVICES,BESSEMER GRANGE PRIMARY SCHOOL,"45,210.00",PUPIL PREMIUM,"SCHOOLS CAPITATION, STANDARDS FUND",5902283928,5001000009
03.01.2018,CHILDREN'S SERVICES,BETHLEM & MAUDSLEY HOSPITAL SCHOOL,"1,636.25",PUPIL PREMIUM,"SCHOOLS CAPITATION, STANDARDS FUND",5902283929,5001000010
03.01.2018,CHILDREN'S SERVICES,BOUCHER C OF E PRIMARY SCHOOL,"20,130.00",PUPIL PREMIUM,"SCHOOLS CAPITATION, STANDARDS FUND",5902283930,5001000011
03.01.2018,CHILDREN'S SERVICES,BRUNSWICK PARK PRIMARY SCHOOL,"81,800.00",PUPIL PREMIUM,"SCHOOLS CAPITATION, STANDARDS FUND",5902283931,5001000013
03.01.2018,CHILDREN'S SERVICES,CAMELOT PRIMARY SCHOOL,"62,515.00",PUPIL PREMIUM,"SCHOOLS CAPITATION, STANDARDS FUND",5902283932,5001000014
03.01.2018,CHILDREN'S SERVICES,CHARLES DICKENS PRIMARY SCHOOL,"49,605.00",PUPIL PREMIUM,"SCHOOLS CAPITATION, STANDARDS FUND",5902283933,5001000015
03.01.2018,CHILDREN'S SERVICES,CHARLOTTE  SHARMAN PRIMARY SCHOOL,"43,305.00",PUPIL PREMIUM,"SCHOOLS CAPITATION, STANDARDS FUND",5902283934,5001000016
03.01.2018,CHILDREN'S SERVICES,ST JOSEPHS RC JUNIOR  SCHOOL,"29,040.00",PUPIL PREMIUM,"SCHOOLS CAPITATION, STANDARDS FUND",5902283935,5001000017
03.01.2018,CHILDREN'S SERVICES,ST JOSEPHS CATHOLIC INFANTS SCHOOL,"13,860.00",PUPIL PREMIUM,"SCHOOLS CAPITATION, STANDARDS FUND",5902283936,5001000018
03.01.2018,CHILDREN'S SERVICES,ST JUDES CHURCH OF ENGLAND PRIMARY,"11,220.00",PUPIL PREMIUM,"SCHOOLS CAPITATION, STANDARDS FUND",5902283937,5001000019
03.01.2018,CHILDREN'S SERVICES,CHERRY GARDEN SCHOOL,"10,560.00",PUPIL PREMIUM,"SCHOOLS CAPITATION, STANDARDS FUND",5902283938,5001000020
03.01.2018,CHILDREN'S SERVICES,COBOURG PRIMARY SCHOOL,"54,780.00",PUPIL PREMIUM,"SCHOOLS CAPITATION, STANDARDS FUND",5902283939,5001000021
03.01.2018,CHILDREN'S SERVICES,COMBER GROVE PRIMARY SCHOOL,"33,990.00",PUPIL PREMIUM,"SCHOOLS CAPITATION, STANDARDS FUND",5902283940,5001000022
03.01.2018,CHILDREN'S SERVICES,CRAMPTON PRIMARY SCHOOL,"26,320.00",PUPIL PREMIUM,"SCHOOLS CAPITATION, STANDARDS FUND",5902283941,5001000023
03.01.2018,CHILDREN'S SERVICES,CRAWFORD PRIMARY SCHOOL,"69,115.00",PUPIL PREMIUM,"SCHOOLS CAPITATION, STANDARDS FUND",5902283942,5001000024
03.01.2018,CHILDREN'S SERVICES,DOG KENNEL HILL PRIMARY SCHOOL,"36,300.00",PUPIL PREMIUM,"SCHOOLS CAPITATION, STANDARDS FUND",5902283943,5001000025
03.01.2018,CHILDREN'S SERVICES,DULWICH VILLAGE CE INFANTS SCHOOL,"8,090.00",PUPIL PREMIUM,"SCHOOLS CAPITATION, STANDARDS FUND",5902283944,5001000027
03.01.2018,CHILDREN'S SERVICES,GOODRICH PRIMARY SCHOOL,"50,950.00",PUPIL PREMIUM,"SCHOOLS CAPITATION, STANDARDS FUND",5902283945,5001000028
03.01.2018,CHILDREN'S SERVICES,GRANGE PRIMARY SCHOOL,"62,700.00",PUPIL PREMIUM,"SCHOOLS CAPITATION, STANDARDS FUND",5902283946,5001000029
03.01.2018,CHILDREN'S SERVICES,ENGLISH MARTYRS RC PRIMARY SCHOOL,"42,975.00",PUPIL PREMIUM,"SCHOOLS CAPITATION, STANDARDS FUND",5902283947,5001000030
03.01.2018,CHILDREN'S SERVICES,EVELINA HOSPITAL SCHOOL,"1,870.00",PUPIL PREMIUM,"SCHOOLS CAPITATION, STANDARDS FUND",5902283948,5001000031
03.01.2018,CHILDREN'S SERVICES,PHOENIX PRIMARY SCHOOL,"62,115.00",PUPIL PREMIUM,"SCHOOLS CAPITATION, STANDARDS FUND",5902283949,5001000032
03.01.2018,CHILDREN'S SERVICES,FRIARS PRIMARY SCHOOL,"23,100.00",PUPIL PREMIUM,"SCHOOLS CAPITATION, STANDARDS FUND",5902283950,5001000033
03.01.2018,CHILDREN'S SERVICES,HEBER PRIMARY SCHOOL,"23,100.00",PUPIL PREMIUM,"SCHOOLS CAPITATION, STANDARDS FUND",5902283951,5001000035
03.01.2018,CHILDREN'S SERVICES,HOLLYDALE PRIMARY SCHOOL,"38,280.00",PUPIL PREMIUM,"SCHOOLS CAPITATION, STANDARDS FUND",5902283952,5001000036
03.01.2018,CHILDREN'S SERVICES,ILDERTON PRIMARY SCHOOL,"53,235.00",PUPIL PREMIUM,"SCHOOLS CAPITATION, STANDARDS FUND",5902283953,5001000037
03.01.2018,CHILDREN'S SERVICES,IVYDALE PRIMARY SCHOOL,"42,450.00",PUPIL PREMIUM,"SCHOOLS CAPITATION, STANDARDS FUND",5902283954,5001000038
03.01.2018,CHILDREN'S SERVICES,JOHN RUSKIN PRIMARY SCHOOL,"66,000.00",PUPIL PREMIUM,"SCHOOLS CAPITATION, STANDARDS FUND",5902283955,5001000040
03.01.2018,CHILDREN'S SERVICES,KEYWORTH PRIMARY SCHOOL,"57,090.00",PUPIL PREMIUM,"SCHOOLS CAPITATION, STANDARDS FUND",5902283956,5001000041
03.01.2018,CHILDREN'S SERVICES,DULWICH WOOD PRIMARY SCHOOL,"34,650.00",PUPIL PREMIUM,"SCHOOLS CAPITATION, STANDARDS FUND",5902283957,5001000042
03.01.2018,CHILDREN'S SERVICES,LYNDHURST PRIMARY SCHOOL,"38,425.00",PUPIL PREMIUM,"SCHOOLS CAPITATION, STANDARDS FUND",5902283958,5001000043
03.01.2018,CHILDREN'S SERVICES,HAYMERLE SCHOOL,"22,770.00",PUPIL PREMIUM,"SCHOOLS CAPITATION, STANDARDS FUND",5902283959,5001000045
03.01.2018,CHILDREN'S SERVICES,HIGHSHORE SCHOOL,"15,290.00",PUPIL PREMIUM,"SCHOOLS CAPITATION, STANDARDS FUND",5902283960,5001000046
03.01.2018,CHILDREN'S SERVICES,MICHAEL FARADAY PRIMARY SCHOOL,"61,485.00",PUPIL PREMIUM,"SCHOOLS CAPITATION, STANDARDS FUND",5902283961,5001000048
03.01.2018,CHILDREN'S SERVICES,NOTRE DAME RC GIRLS SCHOOL,"79,256.25",PUPIL PREMIUM,"SCHOOLS CAPITATION, STANDARDS FUND",5902283962,5001000050
03.01.2018,CHILDREN'S SERVICES,OLIVER GOLDSMITH PRIMARY SCHOOL,"33,010.00",PUPIL PREMIUM,"SCHOOLS CAPITATION, STANDARDS FUND",5902283963,5001000051
03.01.2018,CHILDREN'S SERVICES,PETER HILLS CE SCHOOL,"23,505.00",PUPIL PREMIUM,"SCHOOLS CAPITATION, STANDARDS FUND",5902283964,5001000053
03.01.2018,CHILDREN'S SERVICES,PILGRIM'S WAY PRIMARY SCHOOL,"35,310.00",PUPIL PREMIUM,"SCHOOLS CAPITATION, STANDARDS FUND",5902283965,5001000054
03.01.2018,CHILDREN'S SERVICES,RIVERSIDE PRIMARY SCHOOL,"60,865.00",PUPIL PREMIUM,"SCHOOLS CAPITATION, STANDARDS FUND",5902283966,5001000056
03.01.2018,CHILDREN'S SERVICES,ROBERT BROWNING PRIMARY SCHOOL,"46,200.00",PUPIL PREMIUM,"SCHOOLS CAPITATION, STANDARDS FUND",5902283967,5001000057
03.01.2018,CHILDREN'S SERVICES,ROTHERHITHE PRIMARY SCHOOL,"86,460.00",PUPIL PREMIUM,"SCHOOLS CAPITATION, STANDARDS FUND",5902283968,5001000058
03.01.2018,CHILDREN'S SERVICES,SNOWSFIELDS PRIMARY SCHOOL,"25,740.00",PUPIL PREMIUM,"SCHOOLS CAPITATION, STANDARDS FUND",5902283969,5001000061
03.01.2018,CHILDREN'S SERVICES,SOUTHWARK PARK PRIMARY SCHOOL,"47,110.00",PUPIL PREMIUM,"SCHOOLS CAPITATION, STANDARDS FUND",5902283970,5001000062
03.01.2018,CHILDREN'S SERVICES,SPA SCHOOL,"9,116.25",PUPIL PREMIUM,"SCHOOLS CAPITATION, STANDARDS FUND",5902283971,5001000063
03.01.2018,CHILDREN'S SERVICES,ST ANTHONYS RC SCHOOL,"17,450.00",PUPIL PREMIUM,"SCHOOLS CAPITATION, STANDARDS FUND",5902283972,5001000064
03.01.2018,CHILDREN'S SERVICES,ST FRANCESCA CABRINI PRIMARY SCHOOL,"42,900.00",PUPIL PREMIUM,"SCHOOLS CAPITATION, STANDARDS FUND",5902283973,5001000065
03.01.2018,CHILDREN'S SERVICES,ST FRANCIS'S RC PRIMARY SCHOOL,"34,980.00",PUPIL PREMIUM,"SCHOOLS CAPITATION, STANDARDS FUND",5902283974,5001000067
03.01.2018,CHILDREN'S SERVICES,ST GEORGES RC SCHOOL,"31,495.00",PUPIL PREMIUM,"SCHOOLS CAPITATION, STANDARDS FUND",5902283975,5001000068
03.01.2018,CHILDREN'S SERVICES,ST GEORGES CE SCHOOL,"17,305.00",PUPIL PREMIUM,"SCHOOLS CAPITATION, STANDARDS FUND",5902283976,5001000069
03.01.2018,CHILDREN'S SERVICES,ST JAMES CE SCHOOL,"85,430.00",PUPIL PREMIUM,"SCHOOLS CAPITATION, STANDARDS FUND",5902283977,5001000070
03.01.2018,CHILDREN'S SERVICES,ST JAMES THE GREAT RC SCHOOL,"22,440.00",PUPIL PREMIUM,"SCHOOLS CAPITATION, STANDARDS FUND",5902283978,5001000071
03.01.2018,CHILDREN'S SERVICES,ST JOHNS WALWORTH CE SCHOOL,"22,440.00",PUPIL PREMIUM,"SCHOOLS CAPITATION, STANDARDS FUND",5902283979,5001000072
03.01.2018,CHILDREN'S SERVICES,ST JOHNS & ST CLEMENTS CE SCHOOL,"24,630.00",PUPIL PREMIUM,"SCHOOLS CAPITATION, STANDARDS FUND",5902283980,5001000073
03.01.2018,CHILDREN'S SERVICES,THE ST THOMAS THE APOSTLE COLLEGE,"67,320.00",PUPIL PREMIUM,"SCHOOLS CAPITATION, STANDARDS FUND",5902283981,5001000074
03.01.2018,CHILDREN'S SERVICES,ST JOHNS RC PRIMARY SCHOOL,"28,710.00",PUPIL PREMIUM,"SCHOOLS CAPITATION, STANDARDS FUND",5902283982,5001000075
03.01.2018,CHILDREN'S SERVICES,ST JOSEPHS CATHOLIC SCHOOL,"22,255.00",PUPIL PREMIUM,"SCHOOLS CAPITATION, STANDARDS FUND",5902283983,5001000076
03.01.2018,CHILDREN'S SERVICES,ST JOSEPHS RC PRIMARY SCHOOL,"25,410.00",PUPIL PREMIUM,"SCHOOLS CAPITATION, STANDARDS FUND",5902283984,5001000077
03.01.2018,CHILDREN'S SERVICES,ST JOSEPHS CATHOLIC PRIMARY SCHOOL,"20,420.00",PUPIL PREMIUM,"SCHOOLS CAPITATION, STANDARDS FUND",5902283985,5001000078
03.01.2018,CHILDREN'S SERVICES,ST MARY MAGDALENE CE SCHOOL,"25,845.00",PUPIL PREMIUM,"SCHOOLS CAPITATION, STANDARDS FUND",5902283986,5001000080
03.01.2018,CHILDREN'S SERVICES,ST PAULS CE SCHOOL,"43,560.00",PUPIL PREMIUM,"SCHOOLS CAPITATION, STANDARDS FUND",5902283987,5001000082
03.01.2018,CHILDREN'S SERVICES,ST PETERS CE SCHOOL,"8,090.00",PUPIL PREMIUM,"SCHOOLS CAPITATION, STANDARDS FUND",5902283988,5001000083
03.01.2018,CHILDREN'S SERVICES,ST SAVIOURS & ST OLAVES SCHOOL,"67,554.00",PUPIL PREMIUM,"SCHOOLS CAPITATION, STANDARDS FUND",5902283989,5001000084
03.01.2018,CHILDREN'S SERVICES,SURREY SQUARE JUNIOR SCHOOL,"51,810.00",PUPIL PREMIUM,"SCHOOLS CAPITATION, STANDARDS FUND",5902283990,5001000087
03.01.2018,CHILDREN'S SERVICES,CATHEDRAL SCHOOL OF ST SAVIOUR & MARY,"12,025.00",PUPIL PREMIUM,"SCHOOLS CAPITATION, STANDARDS FUND",5902283991,5001000088
03.01.2018,CHILDREN'S SERVICES,TOWER BRIDGE PRIMARY SCHOOL,"33,330.00",PUPIL PREMIUM,"SCHOOLS CAPITATION, STANDARDS FUND",5902283992,5001000095
03.01.2018,CHILDREN'S SERVICES,TOWNSEND PRIMARY SCHOOL,"31,350.00",PUPIL PREMIUM,"SCHOOLS CAPITATION, STANDARDS FUND",5902283993,5001000096
03.01.2018,CHILDREN'S SERVICES,TUKE SCHOOL,"7,672.50",PUPIL PREMIUM,"SCHOOLS CAPITATION, STANDARDS FUND",5902283994,5001000097
03.01.2018,CHILDREN'S SERVICES,VICTORY SCHOOL,"21,780.00",PUPIL PREMIUM,"SCHOOLS CAPITATION, STANDARDS FUND",5902283995,5001000098
03.01.2018,CHILDREN'S SERVICES,REDACTED PERSONAL DATA,500,STAYING PUT,PAYMENTS TO CARERS,2102765078,REDACTED
03.01.2018,CHILDREN'S SERVICES,REDACTED PERSONAL DATA,500,STAYING PUT,PAYMENTS TO CARERS,2102765079,REDACTED
03.01.2018,CHILDREN'S SERVICES,REDACTED PERSONAL DATA,500,STAYING PUT,PAYMENTS TO CARERS,2102765239,REDACTED
03.01.2018,CHILDREN'S SERVICES,REDACTED PERSONAL DATA,500,STAYING PUT,PAYMENTS TO CARERS,2102765166,REDACTED
03.01.2018,CHILDREN'S SERVICES,REDACTED PERSONAL DATA,500,STAYING PUT,PAYMENTS TO CARERS,2102765279,REDACTED
03.01.2018,CHILDREN'S SERVICES,REDACTED PERSONAL DATA,500,STAYING PUT,PAYMENTS TO CARERS,2102765221,REDACTED
03.01.2018,CHILDREN'S SERVICES,REDACTED PERSONAL DATA,"1,464.29",STAYING PUT,PAYMENTS TO CARERS,2102765254,REDACTED
03.01.2018,CHILDREN'S SERVICES,REDACTED PERSONAL DATA,"2,035.71",STAYING PUT,PAYMENTS TO CARERS,2102765262,REDACTED
03.01.2018,CHILDREN'S SERVICES,REDACTED PERSONAL DATA,500,STAYING PUT,PAYMENTS TO CARERS,2102765169,REDACTED
03.01.2018,CHILDREN'S SERVICES,REDACTED PERSONAL DATA,500,STAYING PUT,PAYMENTS TO CARERS,2102765097,REDACTED
03.01.2018,CHILDREN'S SERVICES,REDACTED PERSONAL DATA,"1,964.29",STAYING PUT,PAYMENTS TO CARERS,2102765102,REDACTED
03.01.2018,CHILDREN'S SERVICES,REDACTED PERSONAL DATA,500,STAYING PUT,PAYMENTS TO CARERS,2102765211,REDACTED
03.01.2018,CHILDREN'S SERVICES,REDACTED PERSONAL DATA,500,STAYING PUT,PAYMENTS TO CARERS,2102765200,REDACTED
03.01.2018,CHILDREN'S SERVICES,REDACTED PERSONAL DATA,373.46,STAYING PUT,PAYMENTS TO CARERS,2102765129,REDACTED
03.01.2018,CHILDREN'S SERVICES,REDACTED PERSONAL DATA,500,STAYING PUT,PAYMENTS TO CARERS,2102765069,REDACTED
03.01.2018,CHILDREN'S SERVICES,REDACTED PERSONAL DATA,"3,266.92",STAYING PUT,PAYMENTS TO CARERS,2102765285,REDACTED
03.01.2018,CHILDREN'S SERVICES,REDACTED PERSONAL DATA,500,STAYING PUT,PAYMENTS TO CARERS,2102765165,REDACTED
03.01.2018,CHILDREN'S SERVICES,REDACTED PERSONAL DATA,500,STAYING PUT,PAYMENTS TO CARERS,2102765059,REDACTED
03.01.2018,CHILDREN'S SERVICES,REDACTED PERSONAL DATA,500,STAYING PUT,PAYMENTS TO CARERS,2102765187,REDACTED
03.01.2018,CHILDREN'S SERVICES,REDACTED PERSONAL DATA,500,STAYING PUT,PAYMENTS TO CARERS,2102765090,REDACTED
03.01.2018,CHILDREN'S SERVICES,REDACTED PERSONAL DATA,500,STAYING PUT,PAYMENTS TO CARERS,2102765151,REDACTED
03.01.2018,CHILDREN'S SERVICES,REDACTED PERSONAL DATA,500,STAYING PUT,PAYMENTS TO CARERS,2102760686,REDACTED
03.01.2018,CHILDREN'S SERVICES,REDACTED PERSONAL DATA,500,STAYING PUT,PAYMENTS TO CARERS,2102765173,REDACTED
03.01.2018,CHILDREN'S SERVICES,REDACTED PERSONAL DATA,500,STAYING PUT,PAYMENTS TO CARERS,2102765094,REDACTED
03.01.2018,CHILDREN'S SERVICES,REDACTED PERSONAL DATA,500,STAYING PUT,PAYMENTS TO CARERS,2102765067,REDACTED
03.01.2018,CHILDREN'S SERVICES,REDACTED PERSONAL DATA,500,STAYING PUT,PAYMENTS TO CARERS,2102765194,REDACTED
03.01.2018,CHILDREN'S SERVICES,REDACTED PERSONAL DATA,500,STAYING PUT,PAYMENTS TO CARERS,2102765278,REDACTED
03.01.2018,CHILDREN'S SERVICES,REDACTED PERSONAL DATA,464.28,STAYING PUT,PAYMENTS TO CARERS,2102765119,REDACTED
03.01.2018,CHILDREN'S SERVICES,REDACTED PERSONAL DATA,500,STAYING PUT,PAYMENTS TO CARERS,2102765139,REDACTED
03.01.2018,CHILDREN'S SERVICES,REDACTED PERSONAL DATA,888.12,STAYING PUT,PAYMENTS TO CARERS,2102765242,REDACTED
03.01.2018,CHILDREN'S SERVICES,REDACTED PERSONAL DATA,500,STAYING PUT,PAYMENTS TO CARERS,2102765158,REDACTED
03.01.2018,CHILDREN'S SERVICES,REDACTED PERSONAL DATA,500,STAYING PUT,PAYMENTS TO CARERS,2102765055,REDACTED
03.01.2018,CHILDREN'S SERVICES,REDACTED PERSONAL DATA,500,STAYING PUT,PAYMENTS TO CARERS,2102765172,REDACTED
03.01.2018,COMMUNITIES,HOME OFFICE SHARED SERVICES CENTRE,"13,700.35",NO RECOURSE TO PUBLIC FUNDS,PROFESSIONAL FEES,5902283870,1000058719
03.01.2018,COMMUNITIES,HOME OFFICE SHARED SERVICES CENTRE,"15,854.39",NO RECOURSE TO PUBLIC FUNDS,PROFESSIONAL FEES,5902283869,1000058719
03.01.2018,COMMUNITIES,NORBURY PROPERTY SERVICES,"5,301.00",NO RECOURSE TO PUBLIC FUNDS,ACCOMMODATION CHARGES,5902284029,1000075566
03.01.2018,COMMUNITIES,SOUTHWARK GROUP OF TENANTS ORGANISATION,"59,662.50",TENANTS FUND,GRANTS,5902283885,1479419
03.01.2018,COMMUNITIES,ST FAITHS COMMUNITY CENTRE,"5,115.25",VCS GRANTS,GRANTS,5902283883,1039446
03.01.2018,COMMUNITIES,TIME & TALENTS ASSOCIATION,"1,067.75",VCS GRANTS,GRANTS,5902283888,1757632
03.01.2018,COMMUNITIES,TIME & TALENTS ASSOCIATION,"3,475.50",VCS GRANTS,GRANTS,5902283887,1757632
03.01.2018,COMMUNITIES,LONDON WILDLIFE TRUST,"7,968.75",VCS GRANTS,GRANTS,5902283889,1832374
03.01.2018,COMMUNITIES,SOUTHWARK CITIZENS ADVICE,"5,600.00",VCS GRANTS,GRANTS,5902283890,1874379
03.01.2018,COMMUNITIES,EAST DULWICH COMMUNITY CENTRE,"1,740.00",VCS GRANTS,GRANTS,5902283891,1968633
03.01.2018,COMMUNITIES,SOMALI INTEGRATION & DEVELOPMENT ASSOCIATION,"13,222.50",VCS GRANTS,GRANTS,5902283892,11048946
03.01.2018,COMMUNITIES,BEORMUND COMMUNITY CENTRE,"17,437.25",VCS GRANTS,GRANTS,5902283893,11048982
03.01.2018,COMMUNITIES,BEDE HSE,"3,475.50",VCS GRANTS,GRANTS,5902283894,11248731
03.01.2018,COMMUNITIES,CAMBRIDGE HOUSE & TALBOT,"3,475.50",VCS GRANTS,GRANTS,5902283895,11248874
03.01.2018,COMMUNITIES,PECAN LTD,"6,429.00",VCS GRANTS,GRANTS,5902283897,11263114
03.01.2018,COMMUNITIES,PECAN LTD,"6,863.00",VCS GRANTS,GRANTS,5902283896,11263114
03.01.2018,COMMUNITIES,SURREY DOCKS FARM PROVIDENT SOCIETY,"10,678.25",VCS GRANTS,GRANTS,5902283898,1000000958
03.01.2018,COMMUNITIES,ORGANISATION OF BLIND AFRICANS & CARIBBEANS,"4,084.25",VCS GRANTS,GRANTS,5902283899,1000002281
03.01.2018,COMMUNITIES,AAINA WOMEN GROUP,"8,018.25",VCS GRANTS,GRANTS,5902283900,1000002442
03.01.2018,COMMUNITIES,SOUTHWARK PENSIONERS CENTRE,"28,355.25",VCS GRANTS,GRANTS,5902283902,1000027831
03.01.2018,COMMUNITIES,SWK DAY CTR FOR ASYLUM SEEKERS,"11,330.25",VCS GRANTS,GRANTS,5902283906,1000040491
03.01.2018,COMMUNITIES,AYLESBURY EVERY WOMAN'S CENTRE,"3,600.00",VCS GRANTS,GRANTS,5902283907,1000042216
03.01.2018,COMMUNITIES,WORKING WITH MEN,"3,600.00",VCS GRANTS,GRANTS,5902283908,1000046010
03.01.2018,COMMUNITIES,COOLTAN ARTS,"3,187.50",VCS GRANTS,GRANTS,5902283909,1000050416
03.01.2018,COMMUNITIES,MENTAL FIGHT CLUB,"1,870.00",VCS GRANTS,GRANTS,5902283910,1000051170
03.01.2018,COMMUNITIES,CRYSTAL PALACE COMM DEV TRUST,"2,264.75",VCS GRANTS,GRANTS,5902283911,1000054200
03.01.2018,COMMUNITIES,LATIN AMERICAN DISABLED PEOPLE PROJECT,"4,000.00",VCS GRANTS,GRANTS,5902283912,1000058588
03.01.2018,COMMUNITIES,LATIN AMERICAN WOMEN'S RIGHTS SERVICES,"3,400.00",VCS GRANTS,GRANTS,5902283915,1000068356
03.01.2018,COMMUNITIES,PAXTON GREEN TIME BANK,"3,600.00",VCS GRANTS,GRANTS,5902283919,1000070648
03.01.2018,COMMUNITIES,BLACKFRIARS SETTLEMENT,"5,574.75",VCS GRANTS,GRANTS,5902283920,1000071456
03.01.2018,COMMUNITIES,BERMONDSEY COMMUNITY KITCHEN,"3,500.00",VCS GRANTS,GRANTS,5902283921,1000075477
03.01.2018,COMMUNITIES,THE BIKE PROJECT,"3,750.00",VCS GRANTS,GRANTS,5902283922,1000077217
03.01.2018,COMMUNITIES,SOUTHWARK TRAVELLERS' ACTION,"5,750.00",VCS GRANTS,GRANTS,5902283923,1000077795
03.01.2018,ELECTORAL SVCES,CONSORT TENANTS ASSOCIATION,300,GLA ELECTIONS,HIRE OF ROOMS/HALLS,5902284001,1000044799
03.01.2018,ENVIRONMENT AND LEISURE,LDA DESIGN CONSULTING LTD,"3,100.00",CAPITAL PS (LEISURE),CONSTRUCTION FEES  - EXTERNAL,5902283865,1000031830
03.01.2018,ENVIRONMENT AND LEISURE,BAILY GARNER,-696.6,CAPITAL PS (LEISURE),CONSTRUCTION FEES  - EXTERNAL,5902284164,1000033754
03.01.2018,ENVIRONMENT AND LEISURE,BAILY GARNER,696.6,CAPITAL PS (LEISURE),CONSTRUCTION FEES  - EXTERNAL,5902283019,1000033754
03.01.2018,ENVIRONMENT AND LEISURE,GROUND CONTROL LIMITED,"22,996.75",CAPITAL PS (LEISURE),CONSTRUCTION MAIN CONTRACT,2102765003,3000001551
03.01.2018,ENVIRONMENT AND LEISURE,CLEMENT WINDOWS LTD,"4,044.00",CAPITAL PS (LEISURE),CONSTRUCTION FEES  - EXTERNAL,2102764998,3000002015
03.01.2018,ENVIRONMENT AND SOCIAL REGENERATION,MOULD GROWTH CONSULTANTS LTD,"1,863.40",STORES/LOGISTICS,CREDITORS -GR/IR CLEARING ACCOUNT,5902284047,1003075
03.01.2018,ENVIRONMENT DIRECTORATE,GREENHAM TRADING LTD,"4,022.86",ESTATE CLEANING-GENERAL,MATERIALS,5902284018,1000006610
03.01.2018,ENVIRONMENT DIRECTORATE,HENRY SHEACH LAWNMOWER SERVICES LTD,284.93,STREET CLEANING-GENERAL,EQUIPMENT PURCHASE & REPAIR,5902284022,1000045980
03.01.2018,HOUSING GENERAL FUND,WESSEX  LIFT CO LTD,"10,732.00",CAPITAL PS (HOUSING GF),CAPITAL GRANTS,5902283875,1174672
03.01.2018,HOUSING GENERAL FUND,WESSEX  LIFT CO LTD,"11,727.00",CAPITAL PS (HOUSING GF),CAPITAL GRANTS,5902283874,1174672
03.01.2018,HOUSING HRA,POTTER RAPER AND PARTNERS,"4,890.24",CAPITAL PS (HRA),CONSTRUCTION FEES  - EXTERNAL,5902283878,1009369
03.01.2018,HOUSING HRA,CALFORD SEADEN LLP,"3,781.03",CAPITAL PS (HRA),CONSTRUCTION FEES  - EXTERNAL,5902283864,1061592
03.01.2018,HOUSING HRA,CALFORD SEADEN LLP,"3,874.10",CAPITAL PS (HRA),CONSTRUCTION FEES  - EXTERNAL,5902283863,1061592
03.01.2018,HOUSING HRA,CALFORD SEADEN LLP,"6,106.95",CAPITAL PS (HRA),CONSTRUCTION FEES  - EXTERNAL,5902283862,1061592
03.01.2018,HOUSING HRA,CALFORD SEADEN LLP,"7,761.60",CAPITAL PS (HRA),CONSTRUCTION FEES  - EXTERNAL,5902284009,1061592
03.01.2018,HOUSING HRA,ENGIE REGENERATION (APOLLO) LTD,"15,877.75",CAPITAL PS (HRA),CONSTRUCTION MAIN CONTRACT -CERTIFICATED,2102765006,4000449
03.01.2018,HOUSING HRA,ENGIE REGENERATION (APOLLO) LTD,"119,638.24",CAPITAL PS (HRA),CONSTRUCTION MAIN CONTRACT -CERTIFICATED,2102765005,4000449
03.01.2018,HOUSING HRA,ENGIE REGENERATION (APOLLO) LTD,"302,316.91",CAPITAL PS (HRA),CONSTRUCTION MAIN CONTRACT -CERTIFICATED,2102765004,4000449
03.01.2018,HOUSING HRA,A & E ELKINS LTD,"38,872.51",CAPITAL PS (HRA),CONSTRUCTION MAIN CONTRACT -CERTIFICATED,2102765001,4012501
03.01.2018,HOUSING HRA,A & E ELKINS LTD,"71,349.00",CAPITAL PS (HRA),CONSTRUCTION MAIN CONTRACT -CERTIFICATED,2102765000,4012501
03.01.2018,HOUSING HRA,A & E ELKINS LTD,"75,875.50",CAPITAL PS (HRA),CONSTRUCTION MAIN CONTRACT -CERTIFICATED,2102765002,4012501
03.01.2018,HOUSING HRA,GIA,"2,500.00",CAPITAL PS (HRA),CONSTRUCTION FEES  - EXTERNAL,5902283873,1000054892
03.01.2018,HOUSING HRA,DURKAN LTD,"290,270.26",CAPITAL PS (HRA),CONSTRUCTION MAIN CONTRACT -CERTIFICATED,2102764999,3000000960
03.01.2018,HOUSING HRA,MORGAN SINDALL PLC,"563,612.00",CAPITAL PS (HRA),CONSTR'N SUB CONTRACT - NON CERTIFICATED,2102765007,3000001556
03.01.2018,HOUSING HRA,AITCHISON RAFFETY,"4,567.00",CAPITAL PS (REGEN),LAND & BUILDINGS ACQUISITION FEES,5902283866,1000080532
03.01.2018,HOUSING HRA,KENT COUNTY COUNCIL - LASER,301.58,RESIDENT SERVICES BUSINESS SUPPORT,ELECTRICITY,DIRECT DEBIT PAYMENT,-
03.01.2018,HOUSING STRATEGY AND OPTIONS,CIVICA UK LTD,"23,024.40",HOMELESS & HOUSING OPTIONS MGT,PROFESSIONAL FEES,5902283868,1730625
03.01.2018,LEISURE DIRECTORATE,EDF ENERGY PLC,274.15,CEMETERIES,ELECTRICITY,5902284048,1008746
03.01.2018,LEISURE DIRECTORATE,CASTLE WATER LTD,424.57,CEMETERIES,WATER,5902284027,1000078867
03.01.2018,LEISURE DIRECTORATE,TECHNICAL SURFACES,450,G M HARMWORTH A TEAM,GROUNDS MAINTENANCE,5902284013,1000011451
03.01.2018,LEISURE DIRECTORATE,QUADRON SERVICES LIMITED,261.76,G M HARMWORTH A TEAM,GROUNDS MAINTENANCE,5902284002,1000066528
03.01.2018,LEISURE DIRECTORATE,QUADRON SERVICES LIMITED,261.76,G M HARMWORTH A TEAM,GROUNDS MAINTENANCE,5902284004,1000066528
03.01.2018,LEISURE DIRECTORATE,QUADRON SERVICES LIMITED,285.04,G M HARMWORTH A TEAM,GROUNDS MAINTENANCE,5902284017,1000066528
03.01.2018,LEISURE DIRECTORATE,QUADRON SERVICES LIMITED,287.5,G M HARMWORTH A TEAM,GROUNDS MAINTENANCE,5902284003,1000066528
03.01.2018,LEISURE DIRECTORATE,QUADRON SERVICES LIMITED,348.48,G M HARMWORTH A TEAM,GROUNDS MAINTENANCE,5902284015,1000066528
03.01.2018,LEISURE DIRECTORATE,QUADRON SERVICES LIMITED,354.64,G M HARMWORTH A TEAM,GROUNDS MAINTENANCE,5902284006,1000066528
03.01.2018,LEISURE DIRECTORATE,QUADRON SERVICES LIMITED,570.08,G M HARMWORTH A TEAM,GROUNDS MAINTENANCE,5902284010,1000066528
03.01.2018,LEISURE DIRECTORATE,CONWAY AECOM LTD,752.94,SOUTHWARK AREA TEAM,OTHER R&M,2102764997,3000001595
03.01.2018,LEISURE DIRECTORATE,CONWAY AECOM LTD,"1,829.02",SOUTHWARK AREA TEAM,OTHER R&M,2102764995,3000001595
03.01.2018,LEISURE DIRECTORATE,CONWAY AECOM LTD,"4,955.02",SOUTHWARK AREA TEAM,OTHER R&M,2102764996,3000001595
03.01.2018,MODERNISATION HGF,TMP (UK) LIMITED,928,ADVERTISING,RECRUITMENT ADVERTISING,5902284008,1000041810
03.01.2018,PLANNING AND TRANSPORT,CONWAY AECOM LTD,"3,937.53",TRANSPORT POLICY AND PROGRAMS,CONSULTANTS SERVICES,5902284012,1000071205
03.01.2018,PUBLIC HEALTH,IMPROVEMENT AND DEVELOPMENT AGENCY,"28,000.00",SEXUAL HEALTH - ADVICE,OTHER PUBLIC AGENCY GRANTS & CONTRIBUTIONS,2102764992,1000017731
03.01.2018,REGENERATION,TREE SHEPHERD LTD,"2,837.50",MASTER PLAN-H/WAY & TRANS INTERCHANGE,PROFESSIONAL FEES,5902283997,1000076895
03.01.2018,RESIDENT SERVICES,LONDON TOOLS LIMITED,295,TA HOSTELS,MATERIALS,5902284043,1000003017
03.01.2018,RESIDENT SERVICES,LONDON TOOLS LIMITED,315,TA HOSTELS,MATERIALS,5902284036,1000003017
03.01.2018,RESIDENT SERVICES,NPOWER,"-1,959.98",TA HOSTELS,ELECTRICITY,5902278309,1000064203
03.01.2018,RESIDENT SERVICES,NPOWER,"1,080.70",TA HOSTELS,ELECTRICITY,5902279178,1000064203
03.01.2018,RESIDENT SERVICES,NPOWER,"1,433.87",TA HOSTELS,ELECTRICITY,5902284019,1000064203
03.01.2018,RESIDENT SERVICES,PPROPERTYPLACEBOOK LTD,"1,860.00",TA PLACEMENTS,EXTERNAL AGENCIES AND BODIES,5902284014,1000077817
04.01.2018,ADULT SOCIAL CARE,FOUNTAIN CARE LTD,329.4,APPOINTEESHIPS,OTHER PAYMENTS FOR CLIENTS,2102765326,1000066815
04.01.2018,ADULT SOCIAL CARE,REDACTED PERSONAL DATA,343.6,APPOINTEESHIPS,OTHER PAYMENTS FOR CLIENTS,2102765310,REDACTED
04.01.2018,ADULT SOCIAL CARE,REDACTED PERSONAL DATA,500,APPOINTEESHIPS,OTHER PAYMENTS FOR CLIENTS,5902284149,REDACTED
04.01.2018,ADULT SOCIAL CARE,NESTOR PRIMECARE SERVICES LTD,"52,284.96",EXTRA CARE CONTRACT,HOMECARE - SPOT,5902284130,11098703
04.01.2018,ASSET MANAGEMENT,LONDON TOOLS LIMITED,284,REPAIRS OPERATIONS,MATERIALS,5902284096,1000003017
04.01.2018,CHIEF EXECUTIVE,LANDOLT & BROWN,"67,141.60",CAPITAL PS (REGEN),CONSTRUCTION FEES - ARCHITECT,5902284133,1000069588
04.01.2018,CHILDREN'S SERVICES,REDACTED PERSONAL DATA,"-1,000.00",LEAVING CARE GRANT,OTHER PAYMENTS FOR CLIENTS,2102705724,REDACTED
04.01.2018,CHILDREN'S SERVICES,REDACTED PERSONAL DATA,"1,000.00",LEAVING CARE GRANT,OTHER PAYMENTS FOR CLIENTS,2102765469,REDACTED
04.01.2018,CHILDREN'S SERVICES,YOUNG FUTURES,"-1,300.00",S24 CLA,EXTERNAL AGENCIES AND BODIES,5902284192,1000059563
04.01.2018,CHILDREN'S SERVICES,YOUNG FUTURES,"-1,040.00",S24 CLA,EXTERNAL AGENCIES AND BODIES,5902284191,1000059563
04.01.2018,CHILDREN'S SERVICES,HOLMDENE HOUSING SERVICES,300,SEMI INDEPENDENT,EXTERNAL AGENCIES AND BODIES,5902284114,1000058072
04.01.2018,CHILDREN'S SERVICES,YOUNG FUTURES,"1,040.00",SEMI INDEPENDENT,RESIDENTIAL CARE,2102444576,1000059563
04.01.2018,CHILDREN'S SERVICES,YOUNG FUTURES,"1,300.00",SEMI INDEPENDENT,RESIDENTIAL CARE,2102444578,1000059563
04.01.2018,CHILDREN'S SERVICES,EDF ENERGY PLC,464.38,SUMMERHOUSE - EX416 - 5015232,ELECTRICITY,5902284180,1008746
04.01.2018,CHILDREN'S SERVICES,EDF ENERGY PLC,"1,003.60",SUMMERHOUSE - EX416 - 5015232,ELECTRICITY,5902284178,1008746
04.01.2018,COMMUNITIES,KINDLY PROPERTIES,"21,399.00",NO RECOURSE TO PUBLIC FUNDS,ACCOMMODATION CHARGES,5902284118,1000060734
04.01.2018,COMMUNITIES,J & M OASIS LTD,-489.6,NO RECOURSE TO PUBLIC FUNDS,ACCOMMODATION CHARGES,5902283229,1000072169
04.01.2018,CUSTOMER EXPERIENCE HGF,FORWARD VENDING AND CATERING LTD,250.36,CORONER'S,CATERING MATERIALS & SUPPLIES,5902284123,1000048381
04.01.2018,CUSTOMER EXPERIENCE HGF,MEDICUSLEX LTD,650,CORONER'S,PROFESSIONAL FEES,5902284119,1000076733
04.01.2018,CUSTOMER EXPERIENCE HGF,IMPERIAL COLLEGE PROJECTS LTD,296,CORONER'S,PROFESSIONAL FEES,5902284217,1000080106
04.01.2018,CUSTOMER EXPERIENCE HGF,IMPERIAL COLLEGE PROJECTS LTD,324,CORONER'S,PROFESSIONAL FEES,5902284209,1000080106
04.01.2018,CUSTOMER EXPERIENCE HGF,IMPERIAL COLLEGE PROJECTS LTD,356,CORONER'S,PROFESSIONAL FEES,5902284221,1000080106
04.01.2018,CUSTOMER EXPERIENCE HGF,IMPERIAL COLLEGE PROJECTS LTD,364,CORONER'S,PROFESSIONAL FEES,5902284156,1000080106
04.01.2018,CUSTOMER EXPERIENCE HGF,IMPERIAL COLLEGE PROJECTS LTD,388,CORONER'S,PROFESSIONAL FEES,5902284151,1000080106
04.01.2018,CUSTOMER EXPERIENCE HGF,IMPERIAL COLLEGE PROJECTS LTD,408,CORONER'S,PROFESSIONAL FEES,5902284155,1000080106
04.01.2018,CUSTOMER EXPERIENCE HGF,IMPERIAL COLLEGE PROJECTS LTD,408,CORONER'S,PROFESSIONAL FEES,5902284160,1000080106
04.01.2018,CUSTOMER EXPERIENCE HGF,IMPERIAL COLLEGE PROJECTS LTD,476,CORONER'S,PROFESSIONAL FEES,5902284153,1000080106
04.01.2018,CUSTOMER EXPERIENCE HGF,IMPERIAL COLLEGE PROJECTS LTD,492,CORONER'S,PROFESSIONAL FEES,5902284152,1000080106
04.01.2018,CUSTOMER EXPERIENCE HGF,IMPERIAL COLLEGE PROJECTS LTD,492,CORONER'S,PROFESSIONAL FEES,5902284154,1000080106
04.01.2018,CUSTOMER EXPERIENCE HGF,IMPERIAL COLLEGE PROJECTS LTD,500,CORONER'S,PROFESSIONAL FEES,5902284203,1000080106
04.01.2018,CUSTOMER EXPERIENCE HGF,IMPERIAL COLLEGE PROJECTS LTD,536,CORONER'S,PROFESSIONAL FEES,5902284159,1000080106
04.01.2018,CUSTOMER EXPERIENCE HGF,IMPERIAL COLLEGE PROJECTS LTD,544,CORONER'S,PROFESSIONAL FEES,5902284161,1000080106
04.01.2018,CUSTOMER EXPERIENCE HGF,GALAXY LETTINGS LTD,"52,406.80",NIGHTLY TA (NSC),EXTERNAL AGENCIES AND BODIES,5902284214,1000055897
04.01.2018,CUSTOMER EXPERIENCE HGF,EDEN ESTATES LONDON LTD,"34,035.00",NIGHTLY TA (NSC),EXTERNAL AGENCIES AND BODIES,5902284213,1000061217
04.01.2018,CUSTOMER EXPERIENCE HGF,K3 PROPERTY MANAGEMENT LTD,"15,544.00",NIGHTLY TA (NSC),EXTERNAL AGENCIES AND BODIES,5902284201,1000068219
04.01.2018,CUSTOMER EXPERIENCE HGF,J & M OASIS LTD,"-6,000.00",NIGHTLY TA (NSC),EXTERNAL AGENCIES AND BODIES,5902284228,1000072169
04.01.2018,CUSTOMER EXPERIENCE HGF,J & M OASIS LTD,"24,000.00",NIGHTLY TA (NSC),EXTERNAL AGENCIES AND BODIES,5902284222,1000072169
04.01.2018,ENVIRONMENT AND SOCIAL REGENERATION,PPG ARCHITECTURAL COATINGS,280.5,STORES/LOGISTICS,CREDITORS -GR/IR CLEARING ACCOUNT,5902284172,11063178
04.01.2018,ENVIRONMENT AND SOCIAL REGENERATION,EYRE & ELLISTON LTD,308,STORES/LOGISTICS,CREDITORS -GR/IR CLEARING ACCOUNT,5902284137,1000056664
04.01.2018,ENVIRONMENT AND SOCIAL REGENERATION,EYRE & ELLISTON LTD,504,STORES/LOGISTICS,CREDITORS -GR/IR CLEARING ACCOUNT,5902284135,1000056664
04.01.2018,ENVIRONMENT AND SOCIAL REGENERATION,EYRE & ELLISTON LTD,518.4,STORES/LOGISTICS,CREDITORS -GR/IR CLEARING ACCOUNT,5902284138,1000056664
04.01.2018,ENVIRONMENT AND SOCIAL REGENERATION,EYRE & ELLISTON LTD,"1,232.00",STORES/LOGISTICS,CREDITORS -GR/IR CLEARING ACCOUNT,5902284131,1000056664
04.01.2018,ENVIRONMENT DIRECTORATE,AUTOMOTIVE LEASING,"1,532.98",CAR LEASING CTRL A/C,VEHICLE LEASING CHARGES,5902284244,11014756
04.01.2018,ENVIRONMENT DIRECTORATE,AUTOMOTIVE LEASING,"1,613.09",CAR LEASING CTRL A/C,VEHICLE LEASING CHARGES,5902284244,11014756
04.01.2018,ENVIRONMENT DIRECTORATE,HITACHI CAPITAL VEHICLE SOLN LTD,"2,862.04",CAR LEASING CTRL A/C,VEHICLE LEASING CHARGES,5902284239,1000007619
04.01.2018,ENVIRONMENT DIRECTORATE,HITACHI CAPITAL VEHICLE SOLN LTD,"2,907.02",CAR LEASING CTRL A/C,VEHICLE LEASING CHARGES,5902284239,1000007619
04.01.2018,ENVIRONMENT DIRECTORATE,R J MOTORS LIMITED,989.85,COMMERCIAL VEH CTRL A/C,VEHICLE REPAIRS & MAINTENANCE,5902284182,1000047106
04.01.2018,ENVIRONMENT DIRECTORATE,R J MOTORS LIMITED,"1,398.13",COMMERCIAL VEH CTRL A/C,VEHICLE REPAIRS & MAINTENANCE,5902284181,1000047106
04.01.2018,ENVIRONMENT DIRECTORATE,DAGENHAM MOTORS,364,COMMERCIAL VEH CTRL A/C,HIRED VEHICLES,5902284230,1000065891
04.01.2018,ENVIRONMENT DIRECTORATE,PACE ACCIDENT REPAIRS CENTRE LTD,"2,739.39",FLEET INSURANCE WORKS,TRANSPORT INSURANCE COSTS,5902284184,1000069899
04.01.2018,ENVIRONMENT DIRECTORATE,TFL TELESALES / OYSTER FULFILMENT,350,PROJECT SUPPORT,PUBLIC TRANSPORT,5902284231,1000059727
04.01.2018,ENVIRONMENT DIRECTORATE,JUDGE AND PRIESTLEY SOLICITORS,769.5,SASBU,LEGAL FEES & COURT COSTS,5902284146,1472217
04.01.2018,ENVIRONMENT DIRECTORATE,JUDGE AND PRIESTLEY SOLICITORS,"2,552.50",SASBU,LEGAL FEES & COURT COSTS,5902284147,1472217
04.01.2018,ENVIRONMENT DIRECTORATE,EDF ENERGY PLC,-481.69,STREET TRADING A/C,CATERING MATERIALS & SUPPLIES,5902284240,1008746
04.01.2018,ENVIRONMENT DIRECTORATE,EDF ENERGY PLC,"1,072.77",STREET TRADING A/C,CATERING MATERIALS & SUPPLIES,5902284238,1008746
04.01.2018,HOUSING GENERAL FUND,TRINITY CONSTRUCTION SERVICES LTD,"7,033.00",CAPITAL PS (HOUSING GF),CAPITAL GRANTS,5902284103,1000058327
04.01.2018,HOUSING HRA,POTTER RAPER AND PARTNERS,"4,985.10",CAPITAL PS (HRA),CONSTRUCTION FEES  - EXTERNAL,5902284124,1009369
04.01.2018,HOUSING HRA,POTTER RAPER AND PARTNERS,"8,003.30",CAPITAL PS (HRA),CONSTRUCTION FEES  - EXTERNAL,5902284121,1009369
04.01.2018,HOUSING HRA,CALFORD SEADEN LLP,853.82,CAPITAL PS (HRA),CONSTRUCTION FEES  - EXTERNAL,5902284115,1061592
04.01.2018,HOUSING HRA,CALFORD SEADEN LLP,952.56,CAPITAL PS (HRA),CONSTRUCTION FEES  - EXTERNAL,5902284125,1061592
04.01.2018,HOUSING HRA,CALFORD SEADEN LLP,"1,527.65",CAPITAL PS (HRA),CONSTRUCTION FEES  - EXTERNAL,5902284109,1061592
04.01.2018,HOUSING HRA,CALFORD SEADEN LLP,"2,328.56",CAPITAL PS (HRA),CONSTRUCTION FEES  - EXTERNAL,5902284195,1061592
04.01.2018,HOUSING HRA,CALFORD SEADEN LLP,"5,084.30",CAPITAL PS (HRA),CONSTRUCTION FEES  - EXTERNAL,5902284116,1061592
04.01.2018,HOUSING HRA,MUSEUM OF LONDON,-581.25,CAPITAL PS (HRA),CONSTRUCTION FEES  - EXTERNAL,5902284326,1104637
04.01.2018,HOUSING HRA,MUSEUM OF LONDON,581.25,CAPITAL PS (HRA),CONSTRUCTION FEES  - EXTERNAL,5902279471,1104637
04.01.2018,HOUSING HRA,OPEN COMMUNITIES LTD,"2,646.00",CAPITAL PS (HRA),CONSTRUCTION FEES  - EXTERNAL,5902284126,1000065800
04.01.2018,LEISURE DIRECTORATE,LONDON TOOLS LIMITED,333.75,BURGESS AREA TEAM,MATERIALS,5902284098,1000003017
04.01.2018,LEISURE DIRECTORATE,NPOWER LTD,307.4,CEMETERIES,ELECTRICITY,5902284112,1000078994
04.01.2018,LEISURE DIRECTORATE,KENT COUNTY COUNCIL - LASER,"1,117.72",DULWICH LIBRARY,ELECTRICITY,5902284211,1000012926
04.01.2018,LEISURE DIRECTORATE,QUADRON SERVICES LIMITED,317.76,G M HARMWORTH A TEAM,GROUNDS MAINTENANCE,5902284198,1000066528
04.01.2018,MODERNISATION HGF,COMENSURA LTD,"2,461.69",MONTHLY ADMIN FEE,AGENCY STAFF,5902284162,1000051261
04.01.2018,MODERNISATION HGF,ROSEMARY POTTS,"3,650.00",OCCUPATIONAL ASSESSMENT,CONSULTANTS SERVICES,5902284179,1738708
04.01.2018,MODERNISATION HGF,WEST ASSOCIATES,750,OCCUPATIONAL ASSESSMENT,CONSULTANTS SERVICES,5902284183,1000065374
04.01.2018,MODERNISATION HGF,COMENSURA LTD,"272,371.35",WEEKLY PAYMENTS,AGENCY STAFF,5902284162,1000051261
04.01.2018,PLANNING AND TRANSPORT,SOUTHWARK NEWSPAPER LTD,504,DEVELOPMENT CONTROL ADMINSTRATION,MARKETING & PUBLICITY SERVICES,5902284234,1556957
04.01.2018,RESIDENT SERVICES,A & H PEST CONTROL LTD,490,PECKHAM,PEST CONTROL,5902284215,11230875
04.01.2018,RESIDENT SERVICES,A & H PEST CONTROL LTD,590,PECKHAM,PEST CONTROL,5902284216,11230875
04.01.2018,RESIDENT SERVICES,A & H PEST CONTROL LTD,990,ROTHERHITHE,PEST CONTROL,5902284219,11230875
04.01.2018,RESIDENT SERVICES,LONDON TOOLS LIMITED,254.75,SUPPORTED HOSTELS,MATERIALS,5902284101,1000003017
04.01.2018,RESIDENT SERVICES,LONDON TOOLS LIMITED,286,TA HOSTELS,MATERIALS,5902284075,1000003017
04.01.2018,RESIDENT SERVICES,LONDON TOOLS LIMITED,355,TA HOSTELS,MATERIALS,5902284077,1000003017
04.01.2018,RESIDENT SERVICES,KINDLY PROPERTIES,887,TA PLACEMENTS,EXTERNAL AGENCIES AND BODIES,5902284207,1000060734
04.01.2018,RESIDENT SERVICES,KINDLY PROPERTIES,"1,225.00",TA PLACEMENTS,EXTERNAL AGENCIES AND BODIES,5902284207,1000060734
04.01.2018,RESIDENT SERVICES,KINDLY PROPERTIES,"1,598.00",TA PLACEMENTS,EXTERNAL AGENCIES AND BODIES,5902284207,1000060734
04.01.2018,RESIDENT SERVICES,KINDLY PROPERTIES,"3,627.00",TA PLACEMENTS,EXTERNAL AGENCIES AND BODIES,5902284208,1000060734
04.01.2018,RESIDENT SERVICES,KINDLY PROPERTIES,"5,928.00",TA PLACEMENTS,EXTERNAL AGENCIES AND BODIES,5902284208,1000060734
04.01.2018,RESIDENT SERVICES,D SINGH PROPERTIES LTD,"1,332.00",TA PLACEMENTS,EXTERNAL AGENCIES AND BODIES,5902284090,1000068030
04.01.2018,RESIDENT SERVICES,K3 PROPERTY MANAGEMENT LTD,"1,350.00",TA PLACEMENTS,EXTERNAL AGENCIES AND BODIES,5902284097,1000068219
04.01.2018,RESIDENT SERVICES,TAAKSVALE HOUSING LTD,"2,700.00",TA PLACEMENTS,EXTERNAL AGENCIES AND BODIES,5902284068,1000073665
04.01.2018,RESIDENT SERVICES,CROWN HOUSING LTD,510.5,TA PLACEMENTS,EXTERNAL AGENCIES AND BODIES,5902284083,1000075070
04.01.2018,RESIDENT SERVICES,CROWN HOUSING LTD,554.5,TA PLACEMENTS,EXTERNAL AGENCIES AND BODIES,5902284083,1000075070
04.01.2018,RESIDENT SERVICES,A & H PEST CONTROL LTD,580,WALWORTH EAST,PEST CONTROL,5902284218,11230875
04.01.2018,SOUTHWARK BUILDING SERVICES,N & C BUILDING MATERIALS,719.62,DEPOT COSTS,MATERIALS,5902284165,1005586
04.01.2018,SOUTHWARK BUILDING SERVICES,N & C BUILDING MATERIALS,449,ELECTRICAL TEAM - ELECTRICIAN,MATERIALS,5902284166,1005586
05.01.2018,ADULT SOCIAL CARE,CHOICE SUPPORT,480,APPOINTEESHIPS,OTHER PAYMENTS FOR CLIENTS,2102765342,1104183
05.01.2018,ADULT SOCIAL CARE,EQUINOX CARE,"1,090.20",APPOINTEESHIPS,OTHER PAYMENTS FOR CLIENTS,2102765349,11325422
05.01.2018,ADULT SOCIAL CARE,AMBLESIDE LODGE,720,APPOINTEESHIPS,OTHER PAYMENTS FOR CLIENTS,2102765376,1000042535
05.01.2018,ADULT SOCIAL CARE,HEXAGON HOUSING ASSOCIATION LTD,537.08,APPOINTEESHIPS,OTHER PAYMENTS FOR CLIENTS,2102765352,1000056905
05.01.2018,ADULT SOCIAL CARE,RIGHT SUPPORT MANAGEMENT LTD,500,APPOINTEESHIPS,OTHER PAYMENTS FOR CLIENTS,2102765366,1000070289
05.01.2018,ADULT SOCIAL CARE,METRO HOMECARE LTD,680,APPOINTEESHIPS,OTHER PAYMENTS FOR CLIENTS,2102765357,1000070695
05.01.2018,ADULT SOCIAL CARE,LONDON CYRENIANS HOUSING LTD,600,APPOINTEESHIPS,OTHER PAYMENTS FOR CLIENTS,2102765353,1000078600
05.01.2018,ADULT SOCIAL CARE,ELIZABETH PETERS CARE HOMES LTD,280,APPOINTEESHIPS,OTHER PAYMENTS FOR CLIENTS,2102765347,1000078858
05.01.2018,ADULT SOCIAL CARE,DANSHELL GROUP,280,APPOINTEESHIPS,OTHER PAYMENTS FOR CLIENTS,2102765346,1000079284
05.01.2018,ADULT SOCIAL CARE,POP INN CAFE,280,APPOINTEESHIPS,OTHER PAYMENTS FOR CLIENTS,2102765365,1000079353
05.01.2018,ADULT SOCIAL CARE,CYGNET HOSPITAL BURY,340,APPOINTEESHIPS,OTHER PAYMENTS FOR CLIENTS,2102765345,1000079492
05.01.2018,ADULT SOCIAL CARE,REDACTED PERSONAL DATA,320,APPOINTEESHIPS,OTHER PAYMENTS FOR CLIENTS,2102765344,REDACTED
05.01.2018,ADULT SOCIAL CARE,REDACTED PERSONAL DATA,260,APPOINTEESHIPS,OTHER PAYMENTS FOR CLIENTS,2102765363,REDACTED
05.01.2018,ADULT SOCIAL CARE,REDACTED PERSONAL DATA,558.32,APPOINTEESHIPS,OTHER PAYMENTS FOR CLIENTS,2102765364,REDACTED
05.01.2018,ADULT SOCIAL CARE,REDACTED PERSONAL DATA,575,APPOINTEESHIPS,OTHER PAYMENTS FOR CLIENTS,2102765341,REDACTED
05.01.2018,ADULT SOCIAL CARE,SURREY DOCKS FARM PROVIDENT SOCIETY,720,LD LTS 18-64,DAYCARE,2102765455,1000000958
05.01.2018,ADULT SOCIAL CARE,AKARI CARE LTD (BEECHCROFT),"-12,653.03",MEM LTS 65+,NURSING PLACEMENTS FEES,2102765526,1000073834
05.01.2018,ADULT SOCIAL CARE,AKARI CARE LTD (BEECHCROFT),"-10,495.03",MEM LTS 65+,NURSING PLACEMENTS FEES,2102738830,1000073834
05.01.2018,ADULT SOCIAL CARE,AKARI CARE LTD (BEECHCROFT),"-3,544.00",MEM LTS 65+,COSTS RECOVERED,2102738289,1000073834
05.01.2018,ADULT SOCIAL CARE,AKARI CARE LTD (BEECHCROFT),"-3,544.00",MEM LTS 65+,RECOVERABLE COSTS INCL. HEALTH,2102765527,1000073834
05.01.2018,ADULT SOCIAL CARE,AKARI CARE LTD (BEECHCROFT),"-2,945.95",MEM LTS 65+,COSTS RECOVERED,2102765529,1000073834
05.01.2018,ADULT SOCIAL CARE,AKARI CARE LTD (BEECHCROFT),"-2,945.95",MEM LTS 65+,RECOVERABLE COSTS INCL. HEALTH,2102738831,1000073834
05.01.2018,ADULT SOCIAL CARE,AKARI CARE LTD (BEECHCROFT),"-2,214.28",MEM LTS 65+,NURSING PLACEMENTS FEES,2102765536,1000073834
05.01.2018,ADULT SOCIAL CARE,AKARI CARE LTD (BEECHCROFT),-620.2,MEM LTS 65+,COSTS RECOVERED,2102751091,1000073834
05.01.2018,ADULT SOCIAL CARE,AKARI CARE LTD (BEECHCROFT),-620.2,MEM LTS 65+,RECOVERABLE COSTS INCL. HEALTH,2102765537,1000073834
05.01.2018,ADULT SOCIAL CARE,AKARI CARE LTD (BEECHCROFT),620.2,MEM LTS 65+,COSTS RECOVERED,2102765535,1000073834
05.01.2018,ADULT SOCIAL CARE,AKARI CARE LTD (BEECHCROFT),620.2,MEM LTS 65+,RECOVERABLE COSTS INCL. HEALTH,2102751093,1000073834
05.01.2018,ADULT SOCIAL CARE,AKARI CARE LTD (BEECHCROFT),"2,214.28",MEM LTS 65+,NURSING PLACEMENTS FEES,2102751092,1000073834
05.01.2018,ADULT SOCIAL CARE,AKARI CARE LTD (BEECHCROFT),"2,945.95",MEM LTS 65+,COSTS RECOVERED,2102738829,1000073834
05.01.2018,ADULT SOCIAL CARE,AKARI CARE LTD (BEECHCROFT),"2,945.95",MEM LTS 65+,RECOVERABLE COSTS INCL. HEALTH,2102765531,1000073834
05.01.2018,ADULT SOCIAL CARE,AKARI CARE LTD (BEECHCROFT),"3,544.00",MEM LTS 65+,COSTS RECOVERED,2102765525,1000073834
05.01.2018,ADULT SOCIAL CARE,AKARI CARE LTD (BEECHCROFT),"3,544.00",MEM LTS 65+,RECOVERABLE COSTS INCL. HEALTH,2102738291,1000073834
05.01.2018,ADULT SOCIAL CARE,AKARI CARE LTD (BEECHCROFT),"10,495.03",MEM LTS 65+,NURSING PLACEMENTS FEES,2102765530,1000073834
05.01.2018,ADULT SOCIAL CARE,AKARI CARE LTD (BEECHCROFT),"12,653.03",MEM LTS 65+,NURSING PLACEMENTS FEES,2102738290,1000073834
05.01.2018,ADULT SOCIAL CARE,MIHOMECARE LTD,614.52,PHY LTS 18-64,HOMECARE - C&V,2102765447,1000042594
05.01.2018,ADULT SOCIAL CARE,MIHOMECARE LTD,674.93,PHY LTS 18-64,HOMECARE - C&V,2102765449,1000042594
05.01.2018,ADULT SOCIAL CARE,MIHOMECARE LTD,"1,089.28",PHY LTS 18-64,HOMECARE - C&V,2102765445,1000042594
05.01.2018,ADULT SOCIAL CARE,SURREY DOCKS FARM PROVIDENT SOCIETY,500,SOCIAL ISOLATION,DAYCARE,2102765457,1000000958
05.01.2018,ADULT SOCIAL CARE,THE PROVIDENCE PROJECTS REHAB GROUP,"1,038.14",SUB LTS 18-64,PLACEMENTS - REHAB,2102765467,1000032991
05.01.2018,ASSET MANAGEMENT,DG SERVICING,"2,226.90",ADAPTATIONS,BUILDING R&M,5902284360,1000063140
05.01.2018,ASSET MANAGEMENT,PHILCOX GRAY & CO,"2,117.75",DISREPAIR,LEGAL FEES & COURT COSTS,2102765414,11227849
05.01.2018,ASSET MANAGEMENT,PHILCOX GRAY & CO,"2,500.00",DISREPAIR,LEGAL FEES & COURT COSTS,2102765413,11227849
05.01.2018,ASSET MANAGEMENT,BELSHAW & CURTIN SOLICITORS,"6,000.00",DISREPAIR,LEGAL FEES & COURT COSTS,2102765387,1767379
05.01.2018,ASSET MANAGEMENT,A & H PEST CONTROL LTD,590,ENG CONTRACTS (NORTH),PLANNED MAINTENANCE,5902284319,11230875
05.01.2018,ASSET MANAGEMENT,A & H PEST CONTROL LTD,690,ENG CONTRACTS (NORTH),PLANNED MAINTENANCE,5902284304,11230875
05.01.2018,ASSET MANAGEMENT,A & H PEST CONTROL LTD,690,ENG CONTRACTS (NORTH),PLANNED MAINTENANCE,5902284307,11230875
05.01.2018,ASSET MANAGEMENT,A & H PEST CONTROL LTD,760,ENG CONTRACTS (NORTH),PLANNED MAINTENANCE,5902284320,11230875
05.01.2018,ASSET MANAGEMENT,A & H PEST CONTROL LTD,890,ENG CONTRACTS (NORTH),PLANNED MAINTENANCE,5902284315,11230875
05.01.2018,ASSET MANAGEMENT,T BROWN & SONS (HEATING) LTD,"1,906.78",ENG CONTRACTS (NORTH),PLANNED MAINTENANCE,5902284318,1000040191
05.01.2018,ASSET MANAGEMENT,T BROWN & SONS (HEATING) LTD,"2,093.22",ENG CONTRACTS (NORTH),PLANNED MAINTENANCE,5902284318,1000040191
05.01.2018,CENTRAL FUNCTIONS,KENT COUNTY COUNCIL - LASER,"8,791.39",HEATING ACCOUNT,ELECTRICITY,5902284357,1000012926
05.01.2018,CENTRAL FUNCTIONS,KENT COUNTY COUNCIL - LASER,"10,438.80",HEATING ACCOUNT,GAS,5902284359,1000012926
05.01.2018,CENTRAL FUNCTIONS,KENT COUNTY COUNCIL - LASER,"50,754.68",HEATING ACCOUNT,ELECTRICITY,5902284357,1000012926
05.01.2018,CENTRAL FUNCTIONS,KENT COUNTY COUNCIL - LASER,"600,013.56",HEATING ACCOUNT,GAS,5902284359,1000012926
05.01.2018,CENTRAL FUNCTIONS,FRANKLYN SHAW ASSOCIATES LTD,"1,520.00",LEDBURY ESTATE,OTHER R&M,2102765381,3000001465
05.01.2018,CHIEF EXECUTIVE,CYCLE-WORKS LTD,"4,340.00",CAPITAL PS (REGEN),CONST'N MAIN CONTRACT - NON CERTIFICATED,5902284281,1000054163
05.01.2018,CHIEF EXECUTIVE,AFRO-BRAZILIAN ARTS & CULTURAL EXCHANGE INSTITUTE,360,CAPITAL PS (REGEN),CONSTRUCTION FEES,5902284279,1000072302
05.01.2018,CHILDREN AND ADULT,FLEXIBLE NETWORKING SOLUTIONS LTD,"1,485.00",CAPITAL PS (EDUCATION),CONSTRUCTION,5902284301,1000080311
05.01.2018,CHILDREN AND ADULT,CHALK CREATIVES LTD,"1,747.50",CAPITAL PS (EDUCATION),CONSTRUCTION FEES,5902284299,1000080369
05.01.2018,CHILDREN'S SERVICES,REVIVAL,660,ADMIN CURLEW,OTHER PAYMENTS FOR CLIENTS,5902284310,1000027424
05.01.2018,CHILDREN'S SERVICES,REVIVAL,825,ADMIN CURLEW,OTHER PAYMENTS FOR CLIENTS,5902284312,1000027424
05.01.2018,CHILDREN'S SERVICES,THAMES REACH EMPOLYMENT ACADEMY,415,ASSISSTANT DIRECTOR (CHILDREN),REFRESHMENTS FOR MEETINGS,5902284362,1000071468
05.01.2018,CHILDREN'S SERVICES,SHARPE PRITCHARD LLP,406,CATCH 22 INNOVATION GRANT,PAYMENTS FOR LEGAL SERVICES,5902284361,1790085
05.01.2018,CHILDREN'S SERVICES,TARA VINDIS,300,LEGAL,LEGAL FEES & COURT COSTS,2102765430,1000029896
05.01.2018,CHILDREN'S SERVICES,TARA VINDIS,400,LEGAL,LEGAL FEES & COURT COSTS,2102765429,1000029896
05.01.2018,CHILDREN'S SERVICES,TARA VINDIS,475,LEGAL,LEGAL FEES & COURT COSTS,2102765431,1000029896
05.01.2018,CHILDREN'S SERVICES,EMILY RADCLIFFE,350,LEGAL,LEGAL FEES & COURT COSTS,2102765398,1000047317
05.01.2018,CHILDREN'S SERVICES,EMILY RADCLIFFE,475,LEGAL,LEGAL FEES & COURT COSTS,2102765400,1000047317
05.01.2018,CHILDREN'S SERVICES,EMILY RADCLIFFE,750,LEGAL,LEGAL FEES & COURT COSTS,2102765394,1000047317
05.01.2018,CHILDREN'S SERVICES,EMILY RADCLIFFE,750,LEGAL,LEGAL FEES & COURT COSTS,2102765396,1000047317
05.01.2018,CHILDREN'S SERVICES,EMILY RADCLIFFE,750,LEGAL,LEGAL FEES & COURT COSTS,2102765397,1000047317
05.01.2018,CHILDREN'S SERVICES,EMILY RADCLIFFE,750,LEGAL,LEGAL FEES & COURT COSTS,2102765401,1000047317
05.01.2018,CHILDREN'S SERVICES,EMILY RADCLIFFE,750,LEGAL,LEGAL FEES & COURT COSTS,2102765402,1000047317
05.01.2018,CHILDREN'S SERVICES,EMILY RADCLIFFE,"1,875.00",LEGAL,LEGAL FEES & COURT COSTS,2102765395,1000047317
05.01.2018,CHILDREN'S SERVICES,EMILY RADCLIFFE,"1,875.00",LEGAL,LEGAL FEES & COURT COSTS,2102765399,1000047317
05.01.2018,CHILDREN'S SERVICES,OLIVER MILLINGTON,550,LEGAL,LEGAL FEES & COURT COSTS,2102765410,1000051055
05.01.2018,CHILDREN'S SERVICES,TABITHA BARRAN,300,LEGAL,LEGAL FEES & COURT COSTS,2102765426,1000053940
05.01.2018,CHILDREN'S SERVICES,TABITHA BARRAN,475,LEGAL,LEGAL FEES & COURT COSTS,2102765424,1000053940
05.01.2018,CHILDREN'S SERVICES,TABITHA BARRAN,750,LEGAL,LEGAL FEES & COURT COSTS,2102765423,1000053940
05.01.2018,CHILDREN'S SERVICES,TABITHA BARRAN,750,LEGAL,LEGAL FEES & COURT COSTS,2102765425,1000053940
05.01.2018,CHILDREN'S SERVICES,TABITHA BARRAN,750,LEGAL,LEGAL FEES & COURT COSTS,2102765427,1000053940
05.01.2018,CHILDREN'S SERVICES,TABITHA BARRAN,"2,750.00",LEGAL,LEGAL FEES & COURT COSTS,2102765422,1000053940
05.01.2018,CHILDREN'S SERVICES,ED LAMB,300,LEGAL,LEGAL FEES & COURT COSTS,2102765392,1000058531
05.01.2018,CHILDREN'S SERVICES,ED LAMB,300,LEGAL,LEGAL FEES & COURT COSTS,2102765393,1000058531
05.01.2018,CHILDREN'S SERVICES,TIM PARKER,375,LEGAL,LEGAL FEES & COURT COSTS,2102765433,1000061949
05.01.2018,CHILDREN'S SERVICES,TOM RESTALL,370,LEGAL,LEGAL FEES & COURT COSTS,2102765434,1000063020
05.01.2018,CHILDREN'S SERVICES,TOM RESTALL,375,LEGAL,LEGAL FEES & COURT COSTS,2102765435,1000063020
05.01.2018,CHILDREN'S SERVICES,PAULA DIAZ,325,LEGAL,LEGAL FEES & COURT COSTS,2102765411,1000063943
05.01.2018,CHILDREN'S SERVICES,PAULA DIAZ,325,LEGAL,LEGAL FEES & COURT COSTS,2102765412,1000063943
05.01.2018,CHILDREN'S SERVICES,LAURA BUMPUS,375,LEGAL,LEGAL FEES & COURT COSTS,2102765407,1000064937
05.01.2018,CHILDREN'S SERVICES,DAVID FOWLER,475,LEGAL,LEGAL FEES & COURT COSTS,2102765391,1000067637
05.01.2018,CHILDREN'S SERVICES,DAVID FOWLER,800,LEGAL,LEGAL FEES & COURT COSTS,2102765390,1000067637
05.01.2018,CHILDREN'S SERVICES,BEN ZURAWEL,275,LEGAL,LEGAL FEES & COURT COSTS,2102765388,1000069468
05.01.2018,CHILDREN'S SERVICES,WILLIAM DEAN,270,LEGAL,LEGAL FEES & COURT COSTS,2102765437,1000070780
05.01.2018,CHILDREN'S SERVICES,RICHARD HARRIS,325,LEGAL,LEGAL FEES & COURT COSTS,2102765418,1000075786
05.01.2018,CHILDREN'S SERVICES,RICHARD HARRIS,475,LEGAL,LEGAL FEES & COURT COSTS,2102765415,1000075786
05.01.2018,CHILDREN'S SERVICES,RICHARD HARRIS,475,LEGAL,LEGAL FEES & COURT COSTS,2102765416,1000075786
05.01.2018,CHILDREN'S SERVICES,RICHARD HARRIS,475,LEGAL,LEGAL FEES & COURT COSTS,2102765417,1000075786
05.01.2018,CHILDREN'S SERVICES,GRAINNE MELLON,704.34,LEGAL,LEGAL FEES & COURT COSTS,2102765404,1000080299
05.01.2018,CHILDREN'S SERVICES,CAVENDISH SCHOOL,683.12,PUPIL PREMIUM CURRENT YEAR,EXTERNAL AGENCIES AND BODIES,5902284286,1000024278
05.01.2018,CHILDREN'S SERVICES,CAVENDISH SCHOOL,"3,586.36",PUPIL PREMIUM CURRENT YEAR,EXTERNAL AGENCIES AND BODIES,5902284284,1000024278
05.01.2018,CHILDREN'S SERVICES,CAVENDISH SCHOOL,"4,781.82",PUPIL PREMIUM CURRENT YEAR,EXTERNAL AGENCIES AND BODIES,5902284289,1000024278
05.01.2018,CHILDREN'S SERVICES,HEARTWOOD RESIDENTIAL SERVICES LTD,"11,625.00",RESIDENTIAL,RESIDENTIAL CARE,5902284317,1000075021
05.01.2018,CHILDREN'S SERVICES,CITYGLEN LTD,"1,209.00",S24 CLA,EXTERNAL AGENCIES AND BODIES,5902284323,1000026239
05.01.2018,CHILDREN'S SERVICES,CHERRY GARDEN SCHOOL,"50,000.00",SPECIAL SCHOOL IN YEAR TOP UP CONTINGENC,HIGH NEEDS - TOP UP FUNDING,2102765378,5001000020
05.01.2018,CHILDREN'S SERVICES,CHERRY GARDEN SCHOOL,"50,000.00",SPECIAL SCHOOL IN YEAR TOP UP CONTINGENC,SCHOOLS CAPITATION,2102765377,5001000020
05.01.2018,CHILDREN'S SERVICES,ORCHID CELLMARK LTD,324,SPECIALIST CARE,OTHER PAYMENTS FOR CLIENTS,5902284314,1000078050
05.01.2018,CHILDREN'S SERVICES,J & M OASIS LTD,805,TEMPORARY ACCOMMODATION,EXTERNAL AGENCIES AND BODIES,5902284300,1000072169
05.01.2018,CHILDREN'S SERVICES,REDACTED PERSONAL DATA,300,UNIVERSITY SUPPORT,CLIENT TRANSPORT,2102765471,REDACTED
05.01.2018,CHILDREN'S SERVICES,REDACTED PERSONAL DATA,800,UNIVERSITY SUPPORT,OTHER PAYMENTS FOR CLIENTS,2102765473,REDACTED
05.01.2018,CHILDREN'S SERVICES,REDACTED PERSONAL DATA,300,UNIVERSITY SUPPORT,CLIENT TRANSPORT,2102765479,REDACTED
05.01.2018,CHILDREN'S SERVICES,REDACTED PERSONAL DATA,800,UNIVERSITY SUPPORT,OTHER PAYMENTS FOR CLIENTS,2102765482,REDACTED
05.01.2018,CHILDREN'S SERVICES,REDACTED PERSONAL DATA,"1,750.00",UNIVERSITY SUPPORT,RESIDENTIAL CARE,2102765476,REDACTED
05.01.2018,CLIENT SVCES,AIDAN BRIGGS,"1,575.00",BENEFITS,LEGAL FEES & COURT COSTS,2102765386,1000065541
05.01.2018,COMMUNITIES,COOPER CLOSE CO-OPERATIVE LTD,"14,823.25",COOPERS CLOSE CO-OP,M&M ALLOWANCE CO-OPS,5902284338,1216346
05.01.2018,COMMUNITIES,DELAWYK RESIDENTS MGT ORG LTD,"28,585.00",DELAWYK RMO RENT INCOME,M&M ALLOWANCE CO-OPS,5902284340,1000052920
05.01.2018,COMMUNITIES,DEYNSFORD TENANT MANAGEMENT ORGANISATION,"91,075.25",D'EYNSFORD ESTATE,M&M ALLOWANCE CO-OPS,5902284358,1000075613
05.01.2018,COMMUNITIES,SOUTHWARK CITIZENS ADVICE,"96,550.00",LEGAL GRANTS,EXTERNAL AGENCIES AND BODIES,5902284249,1874379
05.01.2018,COMMUNITIES,ADVISING LONDON,"18,000.00",LEGAL GRANTS,EXTERNAL AGENCIES AND BODIES,5902284246,11292649
05.01.2018,COMMUNITIES,ADVISING LONDON,"78,345.00",LEGAL GRANTS,EXTERNAL AGENCIES AND BODIES,5902284245,11292649
05.01.2018,COMMUNITIES,OPEN COMMUNITIES LTD,"1,764.00",RESIDENT INVOLVEMENT TEAM,PROFESSIONAL FEES,5902284316,1000065800
05.01.2018,CUSTOMER EXPERIENCE HGF,ACCESS INDEPENDENT LTD,"1,051.75",BLUE BADGES,PROFESSIONAL FEES,5902284297,1000059141
05.01.2018,CUSTOMER EXPERIENCE HGF,ACCESS INDEPENDENT LTD,"1,057.25",BLUE BADGES,PROFESSIONAL FEES,5902284296,1000059141
05.01.2018,CUSTOMER EXPERIENCE HGF,BURLINGTON UNIFORMS,267.94,MSSP SUPPORT,"CLOTHING, UNIFORMS & LAUNDRY",5902284252,1000062536
05.01.2018,CUSTOMER EXPERIENCE HGF,QUINARY LTD,"2,662.90",NIGHTLY TA (NSC),EXTERNAL AGENCIES AND BODIES,5902284330,1000029106
05.01.2018,CUSTOMER EXPERIENCE HGF,LIVING ACCOMODATION LTD,"2,170.00",NIGHTLY TA (NSC),EXTERNAL AGENCIES AND BODIES,5902284329,1000063985
05.01.2018,CUSTOMER EXPERIENCE HGF,DELTALET LTD,"1,116.00",NIGHTLY TA (NSC),EXTERNAL AGENCIES AND BODIES,5902284327,1000075113
05.01.2018,CUSTOMER EXPERIENCE HGF,OAK HOUSING LTD,"2,545.10",PSL PLACEMENTS,EXTERNAL AGENCIES AND BODIES,5902284335,1000079310
05.01.2018,ENVIRONMENT AND LEISURE,CJS PLANTS,253.5,CAPITAL PS (LEISURE),CONST'N MAIN CONTRACT - NON CERTIFICATED,5902284346,1000025370
05.01.2018,ENVIRONMENT AND LEISURE,CJS PLANTS,261.24,CAPITAL PS (LEISURE),CONST'N MAIN CONTRACT - NON CERTIFICATED,5902284343,1000025370
05.01.2018,ENVIRONMENT AND LEISURE,CJS PLANTS,285,CAPITAL PS (LEISURE),CONST'N MAIN CONTRACT - NON CERTIFICATED,5902284355,1000025370
05.01.2018,ENVIRONMENT AND LEISURE,KINNEAR LANDSCAPE ARCHITECTS LTD,"3,756.25",CAPITAL PS (LEISURE),CONSTRUCTION FEES  - EXTERNAL,5902284328,1000076981
05.01.2018,ENVIRONMENT AND LEISURE,QUINCEY MASON PRACTICES LTD,"2,000.00",CAPITAL PS (LEISURE),CONSTRUCTION FEES,5902284339,1000079912
05.01.2018,ENVIRONMENT AND LEISURE,QUINCEY MASON PRACTICES LTD,"3,400.00",CAPITAL PS (LEISURE),CONSTRUCTION FEES,5902284336,1000079912
05.01.2018,ENVIRONMENT DIRECTORATE,LEX AUTOLEASE,"-1,296.36",CAR LEASING CTRL A/C,VEHICLE LEASING CHARGES,5902280893,1000069462
05.01.2018,ENVIRONMENT DIRECTORATE,LEX AUTOLEASE,335.37,CAR LEASING CTRL A/C,VEHICLE LEASING CHARGES,5902281975,1000069462
05.01.2018,ENVIRONMENT DIRECTORATE,LEX AUTOLEASE,"8,579.26",CAR LEASING CTRL A/C,VEHICLE LEASING CHARGES,5902284248,1000069462
05.01.2018,ENVIRONMENT DIRECTORATE,LEX AUTOLEASE,"8,676.37",CAR LEASING CTRL A/C,VEHICLE LEASING CHARGES,5902284248,1000069462
05.01.2018,ENVIRONMENT DIRECTORATE,LEX AUTOLEASE,"22,994.24",CAR LEASING CTRL A/C,VEHICLE LEASING CHARGES,5902284250,1000069462
05.01.2018,ENVIRONMENT DIRECTORATE,LEX AUTOLEASE,"23,476.31",CAR LEASING CTRL A/C,VEHICLE LEASING CHARGES,5902284250,1000069462
05.01.2018,ENVIRONMENT DIRECTORATE,CONTEGO SAFETY SOLUTIONS LTD,647.5,MANAGEMENT TEAM,MATERIALS,5902284332,1000077673
05.01.2018,ENVIRONMENT DIRECTORATE,SHARPE PRITCHARD LLP,474,STREET WORKS OVERHEADS,LEGAL FEES & COURT COSTS,2102765421,1790085
05.01.2018,ENVIRONMENT DIRECTORATE,SHARPE PRITCHARD LLP,912,STREET WORKS OVERHEADS,LEGAL FEES & COURT COSTS,2102765419,1790085
05.01.2018,ENVIRONMENT DIRECTORATE,OPUS INTERNATIONAL CONSULTANTS (UK),"1,135.60",TRANSPORT PROJECTS,CONSULTANTS SERVICES,5902284253,1000080000
05.01.2018,ENVIRONMENT DIRECTORATE,OPUS INTERNATIONAL CONSULTANTS (UK),"5,320.00",TRANSPORT PROJECTS,CONSULTANTS SERVICES,5902284287,1000080000
05.01.2018,HOUSING HRA,CALFORD SEADEN LLP,253.94,CAPITAL PS (HRA),CONSTRUCTION FEES  - EXTERNAL,5902284288,1061592
05.01.2018,HOUSING HRA,CALFORD SEADEN LLP,"58,702.79",CAPITAL PS (HRA),CONSTRUCTION FEES  - EXTERNAL,5902284260,1061592
05.01.2018,HOUSING HRA,ENGIE REGENERATION (APOLLO) LTD,"227,975.86",CAPITAL PS (HRA),CONSTRUCTION MAIN CONTRACT -CERTIFICATED,2102765382,4000449
05.01.2018,HOUSING HRA,A & E ELKINS LTD,"169,695.53",CAPITAL PS (HRA),CONSTRUCTION MAIN CONTRACT -CERTIFICATED,2102765380,4012501
05.01.2018,HOUSING HRA,A & E ELKINS LTD,"289,521.27",CAPITAL PS (HRA),CONSTRUCTION MAIN CONTRACT -CERTIFICATED,2102765379,4012501
05.01.2018,HOUSING HRA,SALTASH ENTERPRISES LTD,"37,013.43",CAPITAL PS (HRA),CONSTRUCTION MAIN CONTRACT -CERTIFICATED,2102765384,4013605
05.01.2018,HOUSING HRA,SALTASH ENTERPRISES LTD,"78,964.94",CAPITAL PS (HRA),CONSTRUCTION MAIN CONTRACT -CERTIFICATED,2102765383,4013605
05.01.2018,HOUSING HRA,HAWORTH TOMPKINS LTD,375.57,CAPITAL PS (HRA),CONSTRUCTION FEES  - EXTERNAL,5902284271,1000043607
05.01.2018,HOUSING HRA,HAWORTH TOMPKINS LTD,428.76,CAPITAL PS (HRA),CONSTRUCTION FEES  - EXTERNAL,5902284271,1000043607
05.01.2018,HOUSING HRA,HAWORTH TOMPKINS LTD,804.33,CAPITAL PS (HRA),CONSTRUCTION FEES  - EXTERNAL,5902284269,1000043607
05.01.2018,HOUSING HRA,HAWORTH TOMPKINS LTD,804.33,CAPITAL PS (HRA),CONSTRUCTION FEES  - EXTERNAL,5902284273,1000043607
05.01.2018,HOUSING HRA,HAWORTH TOMPKINS LTD,"6,164.12",CAPITAL PS (HRA),CONSTRUCTION FEES  - EXTERNAL,5902284269,1000043607
05.01.2018,HOUSING HRA,HAWORTH TOMPKINS LTD,"6,164.12",CAPITAL PS (HRA),CONSTRUCTION FEES  - EXTERNAL,5902284271,1000043607
05.01.2018,HOUSING HRA,HAWORTH TOMPKINS LTD,"6,164.12",CAPITAL PS (HRA),CONSTRUCTION FEES  - EXTERNAL,5902284273,1000043607
05.01.2018,HOUSING HRA,HAWORTH TOMPKINS LTD,"8,267.18",CAPITAL PS (HRA),CONSTRUCTION FEES  - EXTERNAL,5902284269,1000043607
05.01.2018,HOUSING HRA,HAWORTH TOMPKINS LTD,"8,267.18",CAPITAL PS (HRA),CONSTRUCTION FEES  - EXTERNAL,5902284271,1000043607
05.01.2018,HOUSING HRA,HAWORTH TOMPKINS LTD,"8,267.18",CAPITAL PS (HRA),CONSTRUCTION FEES  - EXTERNAL,5902284273,1000043607
05.01.2018,HOUSING HRA,HAWORTH TOMPKINS LTD,"27,692.10",CAPITAL PS (HRA),CONSTRUCTION FEES  - EXTERNAL,5902284269,1000043607
05.01.2018,HOUSING HRA,HAWORTH TOMPKINS LTD,"27,692.10",CAPITAL PS (HRA),CONSTRUCTION FEES  - EXTERNAL,5902284271,1000043607
05.01.2018,HOUSING HRA,HAWORTH TOMPKINS LTD,"27,692.10",CAPITAL PS (HRA),CONSTRUCTION FEES  - EXTERNAL,5902284273,1000043607
05.01.2018,HOUSING HRA,MORGAN SINDALL PLC,"539,573.00",CAPITAL PS (HRA),CONSTRUCTION MAIN CONTRACT -CERTIFICATED,2102765385,3000001556
05.01.2018,HOUSING HRA,TROWERS & HAMLINS LLP,350,CAPITAL PS (REGEN),CONSTRUCTION FEES - LEGAL,5902284265,1000016239
05.01.2018,HOUSING HRA,TROWERS & HAMLINS LLP,"3,352.00",CAPITAL PS (REGEN),CONSTRUCTION FEES - LEGAL,5902284265,1000016239
05.01.2018,HOUSING STRATEGY AND OPTIONS,CARIDON PROPERTY SERVICES LTD,"1,836.72",HOMELESS PROJECTS,GRANTS,5902284254,1000065571
05.01.2018,HOUSING STRATEGY AND OPTIONS,JAMES MARTIN MUGWANYA T/A JOHN SMITH REMOVALS,900,HOMELESS PROJECTS,EXTERNAL AGENCIES AND BODIES,5902284258,1000078552
05.01.2018,HOUSING STRATEGY AND OPTIONS,AM PM ESTATES LTD,"1,224.48",HOMELESS PROJECTS,GRANTS,5902284264,1000078587
05.01.2018,HOUSING STRATEGY AND OPTIONS,AM PM ESTATES LTD,"1,224.48",HOMELESS PROJECTS,GRANTS,5902284266,1000078587
05.01.2018,HOUSING STRATEGY AND OPTIONS,AM PM ESTATES LTD,"3,000.00",HOMELESS PROJECTS,GRANTS,5902284267,1000078587
05.01.2018,LEISURE DIRECTORATE,ANDREW THOMPSON,500,ADMINISTRATION,HIRE OF ROOMS/HALLS,5902283542,1000080477
05.01.2018,LEISURE DIRECTORATE,SIMPLY HIRE LTD,"1,033.16",FACILITIES MAINTENANCE,BUILDING R&M,5902284283,1000018354
05.01.2018,LEISURE DIRECTORATE,COMPLETE WEED CONTROL TRADING LTD,295,SOUTHWARK AREA TEAM,GROUNDS MAINTENANCE,5902284325,1000075516
05.01.2018,MODERNISATION HGF,HUNTERS THE FUNITURE COMPANY,349.58,160 TOOLEY ST.,FURNITURE PURCHASE & REPAIR,5902284298,1000065904
05.01.2018,MODERNISATION HGF,NPOWER LTD,463.93,CURLEW HOUSE,ELECTRICITY,5902284350,1000078994
05.01.2018,MODERNISATION HGF,ITEC CONNECT LTD,986.86,TECHNOLOGY,PROFESSIONAL FEES,5902284256,1000080418
05.01.2018,MODERNISATION HGF,ITEC CONNECT LTD,"1,000.00",TECHNOLOGY,PROFESSIONAL FEES,5902284257,1000080418
05.01.2018,MODERNISATION HGF,ITEC CONNECT LTD,"15,285.90",TECHNOLOGY,PROFESSIONAL FEES,5902284259,1000080418
05.01.2018,PLANNING AND TRANSPORT,SECURE-A-FIELD LTD,329.9,BUILDING CONTROL,OFFICE EXPENSES,5902284324,1000072371
05.01.2018,PLANNING AND TRANSPORT,SECURE-A-FIELD LTD,329.9,SUPPORT SERVICES,OFFICE EXPENSES,5902284324,1000072371
05.01.2018,PUBLIC HEALTH,ST GEORGES UNIVERSITY HOSPITALS NHS,"3,078.88",SEXUAL HEALTH - STI,EXTERNAL AGENCIES AND BODIES,5902284344,1000077055
05.01.2018,REGENERATION,TOWN LEGAL LLP,"2,100.00",MASTER PLAN-H/WAY & TRANS INTERCHANGE,LEGAL FEES & COURT COSTS,2102765436,1000079543
05.01.2018,RESIDENT SERVICES,HINDWOODS LTD,"1,109.00",OPERATIONS/OFFICES ACCOMMODATION,LEGAL FEES & COURT COSTS,2102765405,1000044989
05.01.2018,RESIDENT SERVICES,KINDLY PROPERTIES,"2,310.00",TA PLACEMENTS,EXTERNAL AGENCIES AND BODIES,5902284351,1000060734
05.01.2018,RESIDENT SERVICES,KINDLY PROPERTIES,"6,510.00",TA PLACEMENTS,EXTERNAL AGENCIES AND BODIES,5902284348,1000060734
05.01.2018,RESIDENT SERVICES,TAAKSVALE HOUSING LTD,280,TA PLACEMENTS,EXTERNAL AGENCIES AND BODIES,5902284292,1000073665
07.01.2018,HOUSING HRA,POTTER RAPER AND PARTNERS,643.17,CAPITAL PS (HRA),CONSTRUCTION FEES  - EXTERNAL,5902283877,1009369
08.01.2018,ADULT SOCIAL CARE,THREE C'S SUPPORT,360.2,LD LTS 18-64,SUPPORTED LIVING,2102765699,1000033865
08.01.2018,ADULT SOCIAL CARE,THREE C'S SUPPORT,411.6,LD LTS 18-64,SUPPORTED LIVING,2102765715,1000033865
08.01.2018,ADULT SOCIAL CARE,THREE C'S SUPPORT,411.6,LD LTS 18-64,SUPPORTED LIVING,2102765734,1000033865
08.01.2018,ADULT SOCIAL CARE,THREE C'S SUPPORT,720.4,LD LTS 18-64,SUPPORTED LIVING,2102765746,1000033865
08.01.2018,ADULT SOCIAL CARE,THREE C'S SUPPORT,931.49,LD LTS 18-64,SUPPORTED LIVING,2102765717,1000033865
08.01.2018,ADULT SOCIAL CARE,ACT TOO LTD,600,LD LTS 18-64,DAYCARE,2102765695,1000053657
08.01.2018,ADULT SOCIAL CARE,HEALTH PERSONNEL LTD,"3,676.00",LD LTS 18-64,RESIDENTIAL CARE,2102765697,1000076377
08.01.2018,ADULT SOCIAL CARE,TRUECARE HAVEN SUPPORT LTD,"1,027.50",LD LTS 18-64,HOMECARE - SPOT,2102765755,1000078974
08.01.2018,ADULT SOCIAL CARE,REDACTED PERSONAL DATA,"3,682.28",LD LTS 18-64,SUPPORTED LIVING,2102765696,REDACTED
08.01.2018,ADULT SOCIAL CARE,REDACTED PERSONAL DATA,"1,125.12",LD LTS 18-64,SUPPORTED LIVING,2102765694,REDACTED
08.01.2018,ADULT SOCIAL CARE,THREE C'S SUPPORT,949.28,LD LTS 65+,SUPPORTED LIVING,2102765718,1000033865
08.01.2018,ADULT SOCIAL CARE,MIHOMECARE LTD,729.43,MEM LTS 65+,HOMECARE - C&V,2102765944,1000042594
08.01.2018,ADULT SOCIAL CARE,MIHOMECARE LTD,919.08,MEM LTS 65+,HOMECARE - C&V,2102765931,1000042594
08.01.2018,ADULT SOCIAL CARE,MIHOMECARE LTD,919.08,MEM LTS 65+,HOMECARE - C&V,2102765936,1000042594
08.01.2018,ADULT SOCIAL CARE,MIHOMECARE LTD,919.08,MEM LTS 65+,HOMECARE - C&V,2102765937,1000042594
08.01.2018,ADULT SOCIAL CARE,MIHOMECARE LTD,919.08,MEM LTS 65+,HOMECARE - C&V,2102765943,1000042594
08.01.2018,ADULT SOCIAL CARE,CARE DIRECT UK LTD,337.86,MEM LTS 65+,HOMECARE - C&V,2102765728,1000066322
08.01.2018,ADULT SOCIAL CARE,CARE DIRECT UK LTD,565.39,MEM LTS 65+,HOMECARE - SPOT,2102765841,1000066322
08.01.2018,ADULT SOCIAL CARE,METRO HOMECARE LTD,441.28,MEM LTS 65+,HOMECARE - SPOT,2102765906,1000070695
08.01.2018,ADULT SOCIAL CARE,METRO HOMECARE LTD,985.99,MEM LTS 65+,HOMECARE - SPOT,2102765864,1000070695
08.01.2018,ADULT SOCIAL CARE,METRO HOMECARE LTD,"1,061.83",MH LTS 18-64,HOMECARE - SPOT,2102765885,1000070695
08.01.2018,ADULT SOCIAL CARE,PALM TREE RECOVERY CLUB,400,MH LTS 18-64,DAYCARE,2102765787,1000077293
08.01.2018,ADULT SOCIAL CARE,MIHOMECARE LTD,280.83,MH LTS 65+,HOMECARE - C&V,2102765929,1000042594
08.01.2018,ADULT SOCIAL CARE,CARE DIRECT UK LTD,372.33,MH LTS 65+,HOMECARE - SPOT,2102765743,1000066322
08.01.2018,ADULT SOCIAL CARE,METRO HOMECARE LTD,337.86,MH LTS 65+,HOMECARE - C&V,2102765905,1000070695
08.01.2018,ADULT SOCIAL CARE,METRO HOMECARE LTD,434.39,MH LTS 65+,HOMECARE - SPOT,2102765916,1000070695
08.01.2018,ADULT SOCIAL CARE,METRO HOMECARE LTD,448.18,MH LTS 65+,HOMECARE - SPOT,2102765854,1000070695
08.01.2018,ADULT SOCIAL CARE,METRO HOMECARE LTD,579.18,MH LTS 65+,HOMECARE - SPOT,2102765908,1000070695
08.01.2018,ADULT SOCIAL CARE,METRO HOMECARE LTD,723.98,MH LTS 65+,HOMECARE - SPOT,2102765897,1000070695
08.01.2018,ADULT SOCIAL CARE,METRO HOMECARE LTD,"1,006.67",MH LTS 65+,HOMECARE - C&V,2102765889,1000070695
08.01.2018,ADULT SOCIAL CARE,MIHOMECARE LTD,"1,564.64",PHY LTS 18-64,HOMECARE - C&V,2102765927,1000042594
08.01.2018,ADULT SOCIAL CARE,CARE DIRECT UK LTD,317.17,PHY LTS 18-64,HOMECARE - SPOT,2102765808,1000066322
08.01.2018,ADULT SOCIAL CARE,CARE DIRECT UK LTD,641.24,PHY LTS 18-64,HOMECARE - C&V,2102765810,1000066322
08.01.2018,ADULT SOCIAL CARE,CARE DIRECT UK LTD,727.42,PHY LTS 18-64,HOMECARE - SPOT,2102765744,1000066322
08.01.2018,ADULT SOCIAL CARE,METRO HOMECARE LTD,262.01,PHY LTS 18-64,HOMECARE - SPOT,2102765913,1000070695
08.01.2018,ADULT SOCIAL CARE,METRO HOMECARE LTD,275.8,PHY LTS 18-64,HOMECARE - SPOT,2102765893,1000070695
08.01.2018,ADULT SOCIAL CARE,METRO HOMECARE LTD,317.17,PHY LTS 18-64,HOMECARE - SPOT,2102765883,1000070695
08.01.2018,ADULT SOCIAL CARE,METRO HOMECARE LTD,337.86,PHY LTS 18-64,HOMECARE - C&V,2102765869,1000070695
08.01.2018,ADULT SOCIAL CARE,METRO HOMECARE LTD,358.54,PHY LTS 18-64,HOMECARE - SPOT,2102765867,1000070695
08.01.2018,ADULT SOCIAL CARE,METRO HOMECARE LTD,482.65,PHY LTS 18-64,HOMECARE - SPOT,2102765892,1000070695
08.01.2018,ADULT SOCIAL CARE,METRO HOMECARE LTD,682.61,PHY LTS 18-64,HOMECARE - SPOT,2102765855,1000070695
08.01.2018,ADULT SOCIAL CARE,METRO HOMECARE LTD,889.46,PHY LTS 18-64,HOMECARE - C&V,2102765877,1000070695
08.01.2018,ADULT SOCIAL CARE,MIHOMECARE LTD,850.5,PHY LTS 65+,HOMECARE - C&V,2102765928,1000042594
08.01.2018,ADULT SOCIAL CARE,MIHOMECARE LTD,885.04,PHY LTS 65+,HOMECARE - C&V,2102765941,1000042594
08.01.2018,ADULT SOCIAL CARE,MIHOMECARE LTD,"1,055.24",PHY LTS 65+,HOMECARE - C&V,2102765939,1000042594
08.01.2018,ADULT SOCIAL CARE,MIHOMECARE LTD,"1,191.40",PHY LTS 65+,HOMECARE - C&V,2102765932,1000042594
08.01.2018,ADULT SOCIAL CARE,MIHOMECARE LTD,"1,191.40",PHY LTS 65+,HOMECARE - C&V,2102765933,1000042594
08.01.2018,ADULT SOCIAL CARE,MIHOMECARE LTD,"1,191.40",PHY LTS 65+,HOMECARE - C&V,2102765940,1000042594
08.01.2018,ADULT SOCIAL CARE,MIHOMECARE LTD,"1,667.96",PHY LTS 65+,HOMECARE - C&V,2102765935,1000042594
08.01.2018,ADULT SOCIAL CARE,MIHOMECARE LTD,"1,667.96",PHY LTS 65+,HOMECARE - C&V,2102765938,1000042594
08.01.2018,ADULT SOCIAL CARE,MIHOMECARE LTD,"1,667.96",PHY LTS 65+,HOMECARE - C&V,2102765945,1000042594
08.01.2018,ADULT SOCIAL CARE,MIHOMECARE LTD,"1,845.46",PHY LTS 65+,HOMECARE - C&V,2102765934,1000042594
08.01.2018,ADULT SOCIAL CARE,MIHOMECARE LTD,"2,144.52",PHY LTS 65+,HOMECARE - C&V,2102765926,1000042594
08.01.2018,ADULT SOCIAL CARE,MIHOMECARE LTD,"2,144.52",PHY LTS 65+,HOMECARE - C&V,2102765942,1000042594
08.01.2018,ADULT SOCIAL CARE,CARE DIRECT UK LTD,265.46,PHY LTS 65+,HOMECARE - SPOT,2102765745,1000066322
08.01.2018,ADULT SOCIAL CARE,CARE DIRECT UK LTD,265.46,PHY LTS 65+,HOMECARE - SPOT,2102765838,1000066322
08.01.2018,ADULT SOCIAL CARE,CARE DIRECT UK LTD,268.91,PHY LTS 65+,HOMECARE - SPOT,2102765800,1000066322
08.01.2018,ADULT SOCIAL CARE,CARE DIRECT UK LTD,272.35,PHY LTS 65+,HOMECARE - SPOT,2102765722,1000066322
08.01.2018,ADULT SOCIAL CARE,CARE DIRECT UK LTD,286.14,PHY LTS 65+,HOMECARE - C&V,2102765706,1000066322
08.01.2018,ADULT SOCIAL CARE,CARE DIRECT UK LTD,289.59,PHY LTS 65+,HOMECARE - SPOT,2102765830,1000066322
08.01.2018,ADULT SOCIAL CARE,CARE DIRECT UK LTD,293.04,PHY LTS 65+,HOMECARE - SPOT,2102765802,1000066322
08.01.2018,ADULT SOCIAL CARE,CARE DIRECT UK LTD,306.83,PHY LTS 65+,HOMECARE - SPOT,2102765700,1000066322
08.01.2018,ADULT SOCIAL CARE,CARE DIRECT UK LTD,334.41,PHY LTS 65+,HOMECARE - SPOT,2102765730,1000066322
08.01.2018,ADULT SOCIAL CARE,CARE DIRECT UK LTD,337.86,PHY LTS 65+,HOMECARE - SPOT,2102765832,1000066322
08.01.2018,ADULT SOCIAL CARE,CARE DIRECT UK LTD,342.78,PHY LTS 65+,HOMECARE - SPOT,2102765741,1000066322
08.01.2018,ADULT SOCIAL CARE,CARE DIRECT UK LTD,427.49,PHY LTS 65+,HOMECARE - SPOT,2102765726,1000066322
08.01.2018,ADULT SOCIAL CARE,CARE DIRECT UK LTD,434.39,PHY LTS 65+,HOMECARE - SPOT,2102765710,1000066322
08.01.2018,ADULT SOCIAL CARE,CARE DIRECT UK LTD,472.31,PHY LTS 65+,HOMECARE - SPOT,2102765756,1000066322
08.01.2018,ADULT SOCIAL CARE,CARE DIRECT UK LTD,475.76,PHY LTS 65+,HOMECARE - SPOT,2102765806,1000066322
08.01.2018,ADULT SOCIAL CARE,CARE DIRECT UK LTD,496.44,PHY LTS 65+,HOMECARE - SPOT,2102765765,1000066322
08.01.2018,ADULT SOCIAL CARE,CARE DIRECT UK LTD,530.92,PHY LTS 65+,HOMECARE - SPOT,2102765713,1000066322
08.01.2018,ADULT SOCIAL CARE,CARE DIRECT UK LTD,530.92,PHY LTS 65+,HOMECARE - SPOT,2102765794,1000066322
08.01.2018,ADULT SOCIAL CARE,CARE DIRECT UK LTD,551.6,PHY LTS 65+,HOMECARE - SPOT,2102765749,1000066322
08.01.2018,ADULT SOCIAL CARE,CARE DIRECT UK LTD,655.03,PHY LTS 65+,HOMECARE - SPOT,2102765698,1000066322
08.01.2018,ADULT SOCIAL CARE,CARE DIRECT UK LTD,655.03,PHY LTS 65+,HOMECARE - SPOT,2102765764,1000066322
08.01.2018,ADULT SOCIAL CARE,CARE DIRECT UK LTD,689.5,PHY LTS 65+,HOMECARE - SPOT,2102765805,1000066322
08.01.2018,ADULT SOCIAL CARE,CARE DIRECT UK LTD,723.98,PHY LTS 65+,HOMECARE - SPOT,2102765762,1000066322
08.01.2018,ADULT SOCIAL CARE,METRO HOMECARE LTD,258.56,PHY LTS 65+,HOMECARE - SPOT,2102765861,1000070695
08.01.2018,ADULT SOCIAL CARE,METRO HOMECARE LTD,310.28,PHY LTS 65+,HOMECARE - SPOT,2102765924,1000070695
08.01.2018,ADULT SOCIAL CARE,METRO HOMECARE LTD,313.72,PHY LTS 65+,HOMECARE - SPOT,2102765863,1000070695
08.01.2018,ADULT SOCIAL CARE,METRO HOMECARE LTD,317.17,PHY LTS 65+,HOMECARE - SPOT,2102765859,1000070695
08.01.2018,ADULT SOCIAL CARE,METRO HOMECARE LTD,317.17,PHY LTS 65+,HOMECARE - SPOT,2102765899,1000070695
08.01.2018,ADULT SOCIAL CARE,METRO HOMECARE LTD,337.86,PHY LTS 65+,HOMECARE - C&V,2102765910,1000070695
08.01.2018,ADULT SOCIAL CARE,METRO HOMECARE LTD,337.86,PHY LTS 65+,HOMECARE - SPOT,2102765922,1000070695
08.01.2018,ADULT SOCIAL CARE,METRO HOMECARE LTD,361.99,PHY LTS 65+,HOMECARE - SPOT,2102765894,1000070695
08.01.2018,ADULT SOCIAL CARE,METRO HOMECARE LTD,361.99,PHY LTS 65+,HOMECARE - SPOT,2102765911,1000070695
08.01.2018,ADULT SOCIAL CARE,METRO HOMECARE LTD,386.12,PHY LTS 65+,HOMECARE - SPOT,2102765896,1000070695
08.01.2018,ADULT SOCIAL CARE,METRO HOMECARE LTD,386.12,PHY LTS 65+,HOMECARE - SPOT,2102765915,1000070695
08.01.2018,ADULT SOCIAL CARE,METRO HOMECARE LTD,427.49,PHY LTS 65+,HOMECARE - SPOT,2102765904,1000070695
08.01.2018,ADULT SOCIAL CARE,METRO HOMECARE LTD,434.39,PHY LTS 65+,HOMECARE - SPOT,2102765865,1000070695
08.01.2018,ADULT SOCIAL CARE,METRO HOMECARE LTD,475.76,PHY LTS 65+,HOMECARE - SPOT,2102765847,1000070695
08.01.2018,ADULT SOCIAL CARE,METRO HOMECARE LTD,475.76,PHY LTS 65+,HOMECARE - SPOT,2102765884,1000070695
08.01.2018,ADULT SOCIAL CARE,METRO HOMECARE LTD,506.78,PHY LTS 65+,HOMECARE - SPOT,2102765857,1000070695
08.01.2018,ADULT SOCIAL CARE,METRO HOMECARE LTD,537.81,PHY LTS 65+,HOMECARE - C&V,2102765852,1000070695
08.01.2018,ADULT SOCIAL CARE,METRO HOMECARE LTD,541.26,PHY LTS 65+,HOMECARE - C&V,2102765903,1000070695
08.01.2018,ADULT SOCIAL CARE,METRO HOMECARE LTD,551.6,PHY LTS 65+,HOMECARE - SPOT,2102765875,1000070695
08.01.2018,ADULT SOCIAL CARE,METRO HOMECARE LTD,648.13,PHY LTS 65+,HOMECARE - SPOT,2102765862,1000070695
08.01.2018,ADULT SOCIAL CARE,METRO HOMECARE LTD,817.06,PHY LTS 65+,HOMECARE - SPOT,2102765881,1000070695
08.01.2018,ADULT SOCIAL CARE,METRO HOMECARE LTD,910.14,PHY LTS 65+,HOMECARE - SPOT,2102765849,1000070695
08.01.2018,ADULT SOCIAL CARE,METRO HOMECARE LTD,930.83,PHY LTS 65+,HOMECARE - SPOT,2102765912,1000070695
08.01.2018,ADULT SOCIAL CARE,METRO HOMECARE LTD,"1,027.36",PHY LTS 65+,HOMECARE - SPOT,2102765887,1000070695
08.01.2018,ADULT SOCIAL CARE,METRO HOMECARE LTD,"1,061.83",PHY LTS 65+,HOMECARE - SPOT,2102765882,1000070695
08.01.2018,ADULT SOCIAL CARE,METRO HOMECARE LTD,"1,079.07",PHY LTS 65+,HOMECARE - SPOT,2102765909,1000070695
08.01.2018,ADULT SOCIAL CARE,METRO HOMECARE LTD,"1,103.20",PHY LTS 65+,HOMECARE - SPOT,2102765890,1000070695
08.01.2018,ADULT SOCIAL CARE,METRO HOMECARE LTD,"1,303.16",PHY LTS 65+,HOMECARE - SPOT,2102765853,1000070695
08.01.2018,ADULT SOCIAL CARE,METRO HOMECARE LTD,"1,385.90",PHY LTS 65+,HOMECARE - SPOT,2102765907,1000070695
08.01.2018,ADULT SOCIAL CARE,METRO HOMECARE LTD,"1,447.95",PHY LTS 65+,HOMECARE - SPOT,2102765898,1000070695
08.01.2018,ADULT SOCIAL CARE,METRO HOMECARE LTD,"1,737.54",PHY LTS 65+,HOMECARE - SPOT,2102765914,1000070695
08.01.2018,ADULT SOCIAL CARE,METRO HOMECARE LTD,"1,768.57",PHY LTS 65+,HOMECARE - SPOT,2102765878,1000070695
08.01.2018,ADULT SOCIAL CARE,CAREWATCH LEWISHAM,"10,757.20",REABLEMENT SERVICE,HOMECARE - C&V,5902284414,1000042627
08.01.2018,ADULT SOCIAL CARE,LAMBETH MENCAP,"1,174.20",SOCIAL ISOLATION,SUPPORTED LIVING,2102765716,1000005477
08.01.2018,ADULT SOCIAL CARE,CARE DIRECT UK LTD,268.91,SOCIAL ISOLATION,HOMECARE - SPOT,2102765840,1000066322
08.01.2018,ADULT SOCIAL CARE,METRO HOMECARE LTD,537.81,SOCIAL ISOLATION,HOMECARE - SPOT,2102765879,1000070695
08.01.2018,ADULT SOCIAL CARE,METRO HOMECARE LTD,668.82,SUB LTS 18-64,HOMECARE - C&V,2102765851,1000070695
08.01.2018,ADULT SOCIAL CARE,METRO HOMECARE LTD,"1,003.22",SUB LTS 18-64,HOMECARE - C&V,2102765856,1000070695
08.01.2018,ADULT SOCIAL CARE,CARE O LINE,"3,016.25",TRANSITION 14 - 18 YEARS,SECTION 17 PAYMENTS TO AGENCIES/CARERS,2102765675,11241743
08.01.2018,ADULT SOCIAL CARE,CARE O LINE,"3,016.25",TRANSITION 14 - 18 YEARS,SECTION 17 PAYMENTS TO AGENCIES/CARERS,2102765686,11241743
08.01.2018,ADULT SOCIAL CARE,PEOPLE PLUS,"4,048.00",TRANSITION 14 - 18 YEARS,PAYMENTS TO CLIENTS (DIRECT PAYMENTS),2102765789,1000061886
08.01.2018,ASSET MANAGEMENT,HIGHER ELEVATION LTD,"2,135.00",ADAPTATIONS,BUILDING R&M,5902284377,1000067328
08.01.2018,ASSET MANAGEMENT,POTTER RAPER AND PARTNERS,"1,072.82",DEVELOPMENT DELIVERY,PROFESSIONAL FEES,5902284380,1009369
08.01.2018,ASSET MANAGEMENT,ALTAIR CONSULTANCY AND ADVISORY SERVICES,"2,380.00",DEVELOPMENT DELIVERY,PROFESSIONAL FEES,5902284386,1000080546
08.01.2018,ASSET MANAGEMENT,ANTHONY GOLD SOLICITORS,600,DISREPAIR,LEGAL FEES & COURT COSTS,5902284370,1000050198
08.01.2018,CENTRAL FUNCTIONS,EDF ENERGY PLC,566.41,HEATING ACCOUNT,ELECTRICITY,5902284383,1008746
08.01.2018,CENTRAL FUNCTIONS,CAPITA BUSINESS SERVICES LTD,"25,567.42",OPERATIONAL TEAM,OTHER CONTRACTORS,5902284528,1000049446
08.01.2018,CHIEF EXECUTIVE,KENT COUNTY COUNCIL - LASER,758.66,CAPITAL PS (REGEN),CONSTRUCTION MAIN CONTRACT -CERTIFICATED,5902284387,1000012926
08.01.2018,CHILDREN AND ADULT,INTEGRATED SERVICES PROGRAMME,"5,176.38",AGENCY FOSTERING,EXTERNAL AGENCIES AND BODIES,2102765583,1642068
08.01.2018,CHILDREN AND ADULT,INTEGRATED SERVICES PROGRAMME,"5,176.38",AGENCY FOSTERING,EXTERNAL AGENCIES AND BODIES,2102765599,1642068
08.01.2018,CHILDREN AND ADULT,INTEGRATED SERVICES PROGRAMME,"5,176.38",AGENCY FOSTERING,EXTERNAL AGENCIES AND BODIES,2102765608,1642068
08.01.2018,CHILDREN AND ADULT,INTEGRATED SERVICES PROGRAMME,"5,176.38",AGENCY FOSTERING,EXTERNAL AGENCIES AND BODIES,2102765616,1642068
08.01.2018,CHILDREN AND ADULT,INTEGRATED SERVICES PROGRAMME,"5,336.34",AGENCY FOSTERING,EXTERNAL AGENCIES AND BODIES,2102765582,1642068
08.01.2018,CHILDREN AND ADULT,INTEGRATED SERVICES PROGRAMME,"5,336.34",AGENCY FOSTERING,EXTERNAL AGENCIES AND BODIES,2102765590,1642068
08.01.2018,CHILDREN AND ADULT,INTEGRATED SERVICES PROGRAMME,"5,336.34",AGENCY FOSTERING,EXTERNAL AGENCIES AND BODIES,2102765591,1642068
08.01.2018,CHILDREN AND ADULT,INTEGRATED SERVICES PROGRAMME,"6,443.35",AGENCY FOSTERING,EXTERNAL AGENCIES AND BODIES,2102765575,1642068
08.01.2018,CHILDREN AND ADULT,ETHELBERT SPECIALIST HOMES,"3,678.11",AGENCY FOSTERING,EXTERNAL AGENCIES AND BODIES,2102765569,1796129
08.01.2018,CHILDREN AND ADULT,ETHELBERT SPECIALIST HOMES,"3,678.11",AGENCY FOSTERING,EXTERNAL AGENCIES AND BODIES,2102765570,1796129
08.01.2018,CHILDREN AND ADULT,ETHELBERT SPECIALIST HOMES,"3,678.11",AGENCY FOSTERING,EXTERNAL AGENCIES AND BODIES,2102765573,1796129
08.01.2018,CHILDREN AND ADULT,ETHELBERT SPECIALIST HOMES,"3,882.40",AGENCY FOSTERING,EXTERNAL AGENCIES AND BODIES,2102765589,1796129
08.01.2018,CHILDREN AND ADULT,ETHELBERT SPECIALIST HOMES,"3,882.40",AGENCY FOSTERING,EXTERNAL AGENCIES AND BODIES,2102765598,1796129
08.01.2018,CHILDREN AND ADULT,FIVE RIVERS CHILD CARE LTD,"3,365.71",AGENCY FOSTERING,EXTERNAL AGENCIES AND BODIES,2102765559,1000018792
08.01.2018,CHILDREN AND ADULT,FIVE RIVERS CHILD CARE LTD,"6,527.71",AGENCY FOSTERING,EXTERNAL AGENCIES AND BODIES,2102765568,1000018792
08.01.2018,CHILDREN AND ADULT,THE XCEL 2000 PARTNERSHIP LTD,"3,356.86",AGENCY FOSTERING,EXTERNAL AGENCIES AND BODIES,2102765614,1000024427
08.01.2018,CHILDREN AND ADULT,TIME FOR CHILDREN LTD,"3,100.00",AGENCY FOSTERING,EXTERNAL AGENCIES AND BODIES,2102765611,1000024439
08.01.2018,CHILDREN AND ADULT,SANKOFA CARE LTD,"3,593.21",AGENCY FOSTERING,EXTERNAL AGENCIES AND BODIES,2102765567,1000030717
08.01.2018,CHILDREN AND ADULT,SANKOFA CARE LTD,"3,593.21",AGENCY FOSTERING,EXTERNAL AGENCIES AND BODIES,2102765622,1000030717
08.01.2018,CHILDREN AND ADULT,SANKOFA CARE LTD,"3,929.87",AGENCY FOSTERING,EXTERNAL AGENCIES AND BODIES,2102765571,1000030717
08.01.2018,CHILDREN AND ADULT,SANKOFA CARE LTD,"4,538.71",AGENCY FOSTERING,EXTERNAL AGENCIES AND BODIES,2102765612,1000030717
08.01.2018,CHILDREN AND ADULT,SYNERGY FOSTERING LTD,"3,671.27",AGENCY FOSTERING,EXTERNAL AGENCIES AND BODIES,2102765617,1000031559
08.01.2018,CHILDREN AND ADULT,SYNERGY FOSTERING LTD,"3,671.29",AGENCY FOSTERING,EXTERNAL AGENCIES AND BODIES,2102765574,1000031559
08.01.2018,CHILDREN AND ADULT,KENT HOMEFINDING & FOSTERING LTD,"9,123.30",AGENCY FOSTERING,EXTERNAL AGENCIES AND BODIES,2102765595,1000033978
08.01.2018,CHILDREN AND ADULT,MOMENTS FOSTERING LTD,"4,495.00",AGENCY FOSTERING,EXTERNAL AGENCIES AND BODIES,2102765566,1000037317
08.01.2018,CHILDREN AND ADULT,MOMENTS FOSTERING LTD,"5,535.67",AGENCY FOSTERING,EXTERNAL AGENCIES AND BODIES,2102765587,1000037317
08.01.2018,CHILDREN AND ADULT,CHILDREN OF COLOUR,"3,472.00",AGENCY FOSTERING,EXTERNAL AGENCIES AND BODIES,2102765615,1000044955
08.01.2018,CHILDREN AND ADULT,CHILDREN OF COLOUR,"3,472.00",AGENCY FOSTERING,EXTERNAL AGENCIES AND BODIES,2102765623,1000044955
08.01.2018,CHILDREN AND ADULT,CHILDREN OF COLOUR,"3,558.80",AGENCY FOSTERING,EXTERNAL AGENCIES AND BODIES,2102765557,1000044955
08.01.2018,CHILDREN AND ADULT,CHILDREN OF COLOUR,"4,251.43",AGENCY FOSTERING,EXTERNAL AGENCIES AND BODIES,2102765627,1000044955
08.01.2018,CHILDREN AND ADULT,COMPASS FOSTERING LONDON LTD,"2,749.30",AGENCY FOSTERING,EXTERNAL AGENCIES AND BODIES,2102765592,1000057908
08.01.2018,CHILDREN AND ADULT,COMPASS FOSTERING LONDON LTD,"2,878.00",AGENCY FOSTERING,EXTERNAL AGENCIES AND BODIES,2102765558,1000057908
08.01.2018,CHILDREN AND ADULT,COMPASS FOSTERING LONDON LTD,"3,077.99",AGENCY FOSTERING,EXTERNAL AGENCIES AND BODIES,2102765606,1000057908
08.01.2018,CHILDREN AND ADULT,COMPASS FOSTERING LONDON LTD,"3,272.67",AGENCY FOSTERING,EXTERNAL AGENCIES AND BODIES,2102765597,1000057908
08.01.2018,CHILDREN AND ADULT,COMPASS FOSTERING LONDON LTD,"3,844.75",AGENCY FOSTERING,EXTERNAL AGENCIES AND BODIES,2102765600,1000057908
08.01.2018,CHILDREN AND ADULT,CHILDREN FIRST FOSTERING AGENCY LTD,"3,875.00",AGENCY FOSTERING,EXTERNAL AGENCIES AND BODIES,2102765596,1000060081
08.01.2018,CHILDREN AND ADULT,CHILDREN FIRST FOSTERING AGENCY LTD,"3,875.00",AGENCY FOSTERING,EXTERNAL AGENCIES AND BODIES,2102765601,1000060081
08.01.2018,CHILDREN AND ADULT,CHILDREN OF ALL NATIONS LTD,"4,108.43",AGENCY FOSTERING,EXTERNAL AGENCIES AND BODIES,2102765619,1000060151
08.01.2018,CHILDREN AND ADULT,CHILDREN OF ALL NATIONS LTD,"4,108.43",AGENCY FOSTERING,EXTERNAL AGENCIES AND BODIES,2102765620,1000060151
08.01.2018,CHILDREN AND ADULT,CHILDREN OF ALL NATIONS LTD,"4,565.19",AGENCY FOSTERING,EXTERNAL AGENCIES AND BODIES,2102765624,1000060151
08.01.2018,CHILDREN AND ADULT,RYANCARE FOSTERING,"3,541.75",AGENCY FOSTERING,EXTERNAL AGENCIES AND BODIES,2102765565,1000062376
08.01.2018,CHILDREN AND ADULT,BARNARDOS SERVICES LTD,"3,559.11",AGENCY FOSTERING,EXTERNAL AGENCIES AND BODIES,2102765621,1000063730
08.01.2018,CHILDREN AND ADULT,FOLLOWING WHISPERS FAMILY SERVICE LTD,"5,978.61",AGENCY FOSTERING,EXTERNAL AGENCIES AND BODIES,2102765603,1000065611
08.01.2018,CHILDREN AND ADULT,FOLLOWING WHISPERS FAMILY SERVICE LTD,"6,525.50",AGENCY FOSTERING,EXTERNAL AGENCIES AND BODIES,2102765561,1000065611
08.01.2018,CHILDREN AND ADULT,ANCHOR FOSTERCARE,"3,268.64",AGENCY FOSTERING,EXTERNAL AGENCIES AND BODIES,2102765594,1000065675
08.01.2018,CHILDREN AND ADULT,ANCHOR FOSTERCARE,"3,268.64",AGENCY FOSTERING,EXTERNAL AGENCIES AND BODIES,2102765605,1000065675
08.01.2018,CHILDREN AND ADULT,ANCHOR FOSTERCARE,"3,799.67",AGENCY FOSTERING,EXTERNAL AGENCIES AND BODIES,2102765593,1000065675
08.01.2018,CHILDREN AND ADULT,SWIIS FOSTER CARE LTD,697.97,AGENCY FOSTERING,EXTERNAL AGENCIES AND BODIES,2102765628,1000069633
08.01.2018,CHILDREN AND ADULT,FOSTERCARE UK LTD,"3,197.43",AGENCY FOSTERING,EXTERNAL AGENCIES AND BODIES,2102765609,1000073002
08.01.2018,CHILDREN AND ADULT,COMPASS FOSTERING SOUTH LTD,"2,889.60",AGENCY FOSTERING,EXTERNAL AGENCIES AND BODIES,2102765607,1000073772
08.01.2018,CHILDREN AND ADULT,COMPASS FOSTERING SOUTH LTD,"3,077.99",AGENCY FOSTERING,EXTERNAL AGENCIES AND BODIES,2102765613,1000073772
08.01.2018,CHILDREN AND ADULT,COMPASS FOSTERING SOUTH LTD,"3,308.10",AGENCY FOSTERING,EXTERNAL AGENCIES AND BODIES,2102765572,1000073772
08.01.2018,CHILDREN AND ADULT,WELCOME FOSTER CARE LTD,"3,321.34",AGENCY FOSTERING,EXTERNAL AGENCIES AND BODIES,2102765604,1000074586
08.01.2018,CHILDREN AND ADULT,WELCOME FOSTER CARE LTD,"3,764.33",AGENCY FOSTERING,EXTERNAL AGENCIES AND BODIES,2102765563,1000074586
08.01.2018,CHILDREN AND ADULT,WELCOME FOSTER CARE LTD,"3,764.33",AGENCY FOSTERING,EXTERNAL AGENCIES AND BODIES,2102765586,1000074586
08.01.2018,CHILDREN AND ADULT,ASCENT FOSTERING AGENCY LTD,"5,690.67",AGENCY FOSTERING,EXTERNAL AGENCIES AND BODIES,2102765626,1000074714
08.01.2018,CHILDREN AND ADULT,MOSAIC FOSTER CARE LTD,"1,125.00",AGENCY FOSTERING,EXTERNAL AGENCIES AND BODIES,2102765581,1000076259
08.01.2018,CHILDREN AND ADULT,MOSAIC FOSTER CARE LTD,"6,642.68",AGENCY FOSTERING,EXTERNAL AGENCIES AND BODIES,2102765584,1000076259
08.01.2018,CHILDREN AND ADULT,MOSAIC FOSTER CARE LTD,"6,975.00",AGENCY FOSTERING,EXTERNAL AGENCIES AND BODIES,2102765579,1000076259
08.01.2018,CHILDREN AND ADULT,RAINBOW FOSTERING SERVICES LTD,"3,377.76",AGENCY FOSTERING,EXTERNAL AGENCIES AND BODIES,2102765564,1000076620
08.01.2018,CHILDREN AND ADULT,YOUNG PEOPLE AT HEART LTD,"3,100.00",AGENCY FOSTERING,EXTERNAL AGENCIES AND BODIES,2102765580,1000076694
08.01.2018,CHILDREN AND ADULT,DIAGRAMA FOUNDATION CHILDREN SERVICES,"3,835.14",AGENCY FOSTERING,EXTERNAL AGENCIES AND BODIES,2102765618,1000078697
08.01.2018,CHILDREN AND ADULT,PARENT AND CHILD FOSTERING ASSESSMENTS,"5,314.28",AGENCY FOSTERING,EXTERNAL AGENCIES AND BODIES,2102765588,1000078962
08.01.2018,CHILDREN AND ADULT,HELP ME GROW FOSTERING SERVICES LTD,"2,869.67",AGENCY FOSTERING,EXTERNAL AGENCIES AND BODIES,2102765562,1000079302
08.01.2018,CHILDREN AND ADULT,HELP ME GROW FOSTERING SERVICES LTD,"2,869.67",AGENCY FOSTERING,EXTERNAL AGENCIES AND BODIES,2102765576,1000079302
08.01.2018,CHILDREN AND ADULT,HELP ME GROW FOSTERING SERVICES LTD,"3,188.35",AGENCY FOSTERING,EXTERNAL AGENCIES AND BODIES,2102765560,1000079302
08.01.2018,CHILDREN AND ADULT,HELP ME GROW FOSTERING SERVICES LTD,"3,188.35",AGENCY FOSTERING,EXTERNAL AGENCIES AND BODIES,2102765585,1000079302
08.01.2018,CHILDREN AND ADULT,HELP ME GROW FOSTERING SERVICES LTD,"5,757.01",AGENCY FOSTERING,EXTERNAL AGENCIES AND BODIES,2102765602,1000079302
08.01.2018,CHILDREN AND ADULT,SHINING STARS FOSTERING AGENCY LTD,"3,542.68",AGENCY FOSTERING,EXTERNAL AGENCIES AND BODIES,2102765610,1000079431
08.01.2018,CHILDREN AND ADULT,CONNECT FOSTERING SERVICES LTD,"3,520.71",AGENCY FOSTERING,EXTERNAL AGENCIES AND BODIES,2102765625,1000079969
08.01.2018,CHILDREN AND ADULT,FOSTERING FOR YOU LTD,"3,443.39",AGENCY FOSTERING,EXTERNAL AGENCIES AND BODIES,2102765577,1000080380
08.01.2018,CHILDREN AND ADULT,FOSTERING FOR YOU LTD,"3,443.39",AGENCY FOSTERING,EXTERNAL AGENCIES AND BODIES,2102765578,1000080380
08.01.2018,CHILDREN AND ADULT,FAITHFUL & GOULD,"16,292.00",CAPITAL PS (SOC SERV),CONSTRUCTION FEES  - EXTERNAL,5902284424,1000061390
08.01.2018,CHILDREN AND ADULT,REDACTED PERSONAL DATA,-766.49,FRIENDS & FAMILY FOSTERING,PAYMENTS TO CARERS,2102765540,REDACTED
08.01.2018,CHILDREN AND ADULT,REDACTED PERSONAL DATA,329.81,FRIENDS & FAMILY FOSTERING,PAYMENTS TO CARERS,2102655866,REDACTED
08.01.2018,CHILDREN AND ADULT,REDACTED PERSONAL DATA,436.68,FRIENDS & FAMILY FOSTERING,PAYMENTS TO CARERS,2102765541,REDACTED
08.01.2018,CHILDREN'S SERVICES,KENT COUNTY COUNCIL - LASER,"2,700.71",BUILDING SUMNER,ELECTRICITY,5902284363,1000012926
08.01.2018,CHILDREN'S SERVICES,REDACTED PERSONAL DATA,"1,020.00",CARE GRPS  4 TO 6,OTHER PAYMENTS FOR CLIENTS,2102765552,REDACTED
08.01.2018,CHILDREN'S SERVICES,REDACTED PERSONAL DATA,300,DISABILITY & HIV,ADDITIONAL PAYMENTS TO AGENCIES/CARERS,2102765549,REDACTED
08.01.2018,CHILDREN'S SERVICES,REDACTED PERSONAL DATA,"1,142.01",DISABILITY & HIV,PAYMENTS TO CARERS,2102765544,REDACTED
08.01.2018,CHILDREN'S SERVICES,REDACTED PERSONAL DATA,-971.47,DISABILITY & HIV,PAYMENTS TO CARERS,2102465947,REDACTED
08.01.2018,CHILDREN'S SERVICES,REDACTED PERSONAL DATA,450.9,DISABILITY & HIV,ADDITIONAL PAYMENTS TO AGENCIES/CARERS,2102465946,REDACTED
08.01.2018,CHILDREN'S SERVICES,REDACTED PERSONAL DATA,520.57,DISABILITY & HIV,PAYMENTS TO CARERS,2102765546,REDACTED
08.01.2018,CHILDREN'S SERVICES,REDACTED PERSONAL DATA,-858.12,DISABILITY & HIV,PAYMENTS TO CARERS,2102765550,REDACTED
08.01.2018,CHILDREN'S SERVICES,REDACTED PERSONAL DATA,858.12,DISABILITY & HIV,PAYMENTS TO CARERS,2102674756,REDACTED
08.01.2018,CHILDREN'S SERVICES,WILLISPALMER,252,FAMILY ASSESSMENTS,RESIDENTIAL CARE,5902284448,1000056409
08.01.2018,CHILDREN'S SERVICES,CARTER BROWN THE EXPERT SERVICE LTD,508.27,FAMILY ASSESSMENTS,RESIDENTIAL CARE,5902284459,1000076652
08.01.2018,CHILDREN'S SERVICES,CARTER BROWN THE EXPERT SERVICE LTD,"2,094.69",FAMILY ASSESSMENTS,RESIDENTIAL CARE,5902284456,1000076652
08.01.2018,CHILDREN'S SERVICES,DAYBREAK FAMILY GROUP CONFERENCES,"5,913.93",FAMILY GROUP CONFERENCES,EXTERNAL AGENCIES AND BODIES,5902284406,1000072832
08.01.2018,CHILDREN'S SERVICES,TFL TELESALES / OYSTER FULFILMENT,320,MANAGEMENT,PUBLIC TRANSPORT,5902284430,1000059727
08.01.2018,CHILDREN'S SERVICES,PEOPLE PLUS,509.32,PLACEMENTS FOR CHILDREN WITH SPEC NEEDS,PAYMENTS TO CLIENTS (DIRECT PAYMENTS),2102765788,1000061886
08.01.2018,CHILDREN'S SERVICES,PEOPLE PLUS,509.32,PLACEMENTS FOR CHILDREN WITH SPEC NEEDS,PAYMENTS TO CLIENTS (DIRECT PAYMENTS),2102765790,1000061886
08.01.2018,CHILDREN'S SERVICES,THE DRIVE CARE HOMES LTD,"12,198.76",RESIDENTIAL,RESIDENTIAL CARE,2102765647,1000003889
08.01.2018,CHILDREN'S SERVICES,THE DRIVE CARE HOMES LTD,"12,198.76",RESIDENTIAL,RESIDENTIAL CARE,2102765778,1000003889
08.01.2018,CHILDREN'S SERVICES,THE DRIVE CARE HOMES LTD,"13,176.24",RESIDENTIAL,RESIDENTIAL CARE,2102765651,1000003889
08.01.2018,CHILDREN'S SERVICES,PLUS ONE LTD,"2,984.23",RESIDENTIAL,RESIDENTIAL CARE,2102765642,1000013874
08.01.2018,CHILDREN'S SERVICES,PLUS ONE LTD,"16,381.28",RESIDENTIAL,RESIDENTIAL CARE,2102765634,1000013874
08.01.2018,CHILDREN'S SERVICES,SANKOFA CARE LTD,"10,800.00",RESIDENTIAL,RESIDENTIAL CARE,2102765780,1000030717
08.01.2018,CHILDREN'S SERVICES,FOOTSTEPS CARE LTD,"16,006.96",RESIDENTIAL,RESIDENTIAL CARE,2102765643,1000045464
08.01.2018,CHILDREN'S SERVICES,NEW HORIZONS CHILD CARE LTD,"3,500.00",RESIDENTIAL,RESIDENTIAL CARE,2102765653,1000051063
08.01.2018,CHILDREN'S SERVICES,NEW HORIZONS CHILD CARE LTD,"7,542.84",RESIDENTIAL,RESIDENTIAL CARE,2102765782,1000051063
08.01.2018,CHILDREN'S SERVICES,NEW HORIZONS CHILD CARE LTD,"17,271.34",RESIDENTIAL,RESIDENTIAL CARE,2102765645,1000051063
08.01.2018,CHILDREN'S SERVICES,NEW HORIZONS CHILD CARE LTD,"19,928.66",RESIDENTIAL,RESIDENTIAL CARE,2102765779,1000051063
08.01.2018,CHILDREN'S SERVICES,NORTH LAKES CHILDRENS SERVICES,"9,767.17",RESIDENTIAL,RESIDENTIAL CARE,2102765635,1000059568
08.01.2018,CHILDREN'S SERVICES,LIONCARE LIMITED,"16,029.21",RESIDENTIAL,RESIDENTIAL CARE,2102765629,1000065330
08.01.2018,CHILDREN'S SERVICES,HOLIBROOK HOUSE LTD,"11,185.71",RESIDENTIAL,RESIDENTIAL CARE,2102765786,1000067873
08.01.2018,CHILDREN'S SERVICES,ESLAND SOUTH LTD,"29,892.86",RESIDENTIAL,RESIDENTIAL CARE,2102765650,1000074184
08.01.2018,CHILDREN'S SERVICES,CAMBIAN CHILDCARE LTD,"-7,657.12",RESIDENTIAL,RESIDENTIAL CARE,2102764236,1000075351
08.01.2018,CHILDREN'S SERVICES,CAMBIAN CHILDCARE LTD,"14,835.67",RESIDENTIAL,RESIDENTIAL CARE,2102765631,1000075351
08.01.2018,CHILDREN'S SERVICES,CAMBIAN CHILDCARE LTD,"21,257.01",RESIDENTIAL,RESIDENTIAL CARE,2102765637,1000075351
08.01.2018,CHILDREN'S SERVICES,CHILDHOOD FIRST,"19,042.86",RESIDENTIAL,RESIDENTIAL CARE,2102765644,1000076330
08.01.2018,CHILDREN'S SERVICES,CHILDHOOD FIRST,"19,716.00",RESIDENTIAL,RESIDENTIAL CARE,2102765648,1000076330
08.01.2018,CHILDREN'S SERVICES,CREATING CARE CHOICES LTD,"18,600.00",RESIDENTIAL,RESIDENTIAL CARE,2102765783,1000076738
08.01.2018,CHILDREN'S SERVICES,CREATING CARE CHOICES LTD,"18,784.25",RESIDENTIAL,RESIDENTIAL CARE,2102765784,1000076738
08.01.2018,CHILDREN'S SERVICES,MEADOWS CARE LTD,"17,271.43",RESIDENTIAL,RESIDENTIAL CARE,2102765638,1000077238
08.01.2018,CHILDREN'S SERVICES,MEADOWS CARE LTD,"17,271.43",RESIDENTIAL,RESIDENTIAL CARE,2102765646,1000077238
08.01.2018,CHILDREN'S SERVICES,HILLCREST CHILDRENS SERVICES LTD,"16,430.00",RESIDENTIAL,RESIDENTIAL CARE,2102765652,1000077489
08.01.2018,CHILDREN'S SERVICES,PRESTIGE ADOLESCENT CARE & EDUCATION LTD,"15,278.66",RESIDENTIAL,RESIDENTIAL CARE,2102765640,1000077596
08.01.2018,CHILDREN'S SERVICES,SPORTFIT SHORT BREAK CARE LTD,"10,230.00",RESIDENTIAL,RESIDENTIAL CARE,2102765641,1000078113
08.01.2018,CHILDREN'S SERVICES,INMIND CHILDRENS SERVICES LTD,"32,992.99",RESIDENTIAL,RESIDENTIAL CARE,2102765639,1000078280
08.01.2018,CHILDREN'S SERVICES,REAMCARE LTD,"18,157.13",RESIDENTIAL,RESIDENTIAL CARE,2102765785,1000078284
08.01.2018,CHILDREN'S SERVICES,THE AMICUS COMMUNITY (ARUNDEL) LTD,"18,821.34",RESIDENTIAL,RESIDENTIAL CARE,2102765632,1000079012
08.01.2018,CHILDREN'S SERVICES,THE AMICUS COMMUNITY (ARUNDEL) LTD,"20,570.67",RESIDENTIAL,RESIDENTIAL CARE,2102765633,1000079012
08.01.2018,CHILDREN'S SERVICES,ALLIANCE CARE & EDUCATION LTD,"20,880.71",RESIDENTIAL,RESIDENTIAL CARE,2102765630,1000079956
08.01.2018,CHILDREN'S SERVICES,ALLIANCE CARE & EDUCATION LTD,"20,880.71",RESIDENTIAL,RESIDENTIAL CARE,2102765636,1000079956
08.01.2018,CHILDREN'S SERVICES,KATTZ LTD,"30,111.30",RESIDENTIAL,RESIDENTIAL CARE,2102765781,1000080147
08.01.2018,CHILDREN'S SERVICES,KATTZ LTD,"31,115.01",RESIDENTIAL,RESIDENTIAL CARE,2102765777,1000080147
08.01.2018,CHILDREN'S SERVICES,ACORN HOMES (UK) LTD,"10,850.00",RESIDENTIAL,RESIDENTIAL CARE,2102765649,1000080423
08.01.2018,CHILDREN'S SERVICES,ALERE TOXICOLOGY PLC,359.6,S & FAM SUPP - PRAC GRP C SET 20-22,OTHER PAYMENTS FOR CLIENTS,5902284450,1000073381
08.01.2018,CHILDREN'S SERVICES,CARE O LINE,508.75,S & FAM SUPP - PRAC GRP D SET 23-25,OTHER PAYMENTS FOR CLIENTS,2102765771,11241743
08.01.2018,CHILDREN'S SERVICES,CARE O LINE,618.75,S & FAM SUPP - PRAC GRP D SET 23-25,OTHER PAYMENTS FOR CLIENTS,2102765773,11241743
08.01.2018,CHILDREN'S SERVICES,CARE O LINE,618.75,S & FAM SUPP - PRAC GRP D SET 23-25,OTHER PAYMENTS FOR CLIENTS,2102765775,11241743
08.01.2018,CHILDREN'S SERVICES,ANDREW RELIABLE REMOVAL,300,S & FAM SUPP - PRAC GRP D SET 23-25,OTHER PAYMENTS FOR CLIENTS,5902284478,1000071141
08.01.2018,CHILDREN'S SERVICES,ALERE TOXICOLOGY PLC,442.4,S & FAM SUPP - PRAC GRP E SET 26-28,OTHER PAYMENTS FOR CLIENTS,5902284454,1000073381
08.01.2018,CHILDREN'S SERVICES,CARE O LINE,336.32,S & FAM SUPP - PRAC GRP F SET 29-31,OTHER PAYMENTS FOR CLIENTS,2102765776,11241743
08.01.2018,CHILDREN'S SERVICES,ANDREW RELIABLE REMOVAL,300,S & FAM SUPP - PRAC GRP F SET 29-31,OTHER PAYMENTS FOR CLIENTS,5902284485,1000071141
08.01.2018,CHILDREN'S SERVICES,CITYGLEN LTD,"1,350.00",S24 CLA,EXTERNAL AGENCIES AND BODIES,5902284393,1000026239
08.01.2018,CHILDREN'S SERVICES,CITYGLEN LTD,"1,350.00",S24 CLA,EXTERNAL AGENCIES AND BODIES,5902284397,1000026239
08.01.2018,CHILDREN'S SERVICES,CITYGLEN LTD,"1,350.00",S24 CLA,EXTERNAL AGENCIES AND BODIES,5902284401,1000026239
08.01.2018,CHILDREN'S SERVICES,CITYGLEN LTD,"1,395.00",S24 CLA,EXTERNAL AGENCIES AND BODIES,5902284391,1000026239
08.01.2018,CHILDREN'S SERVICES,CITYGLEN LTD,"1,395.00",S24 CLA,EXTERNAL AGENCIES AND BODIES,5902284394,1000026239
08.01.2018,CHILDREN'S SERVICES,CITYGLEN LTD,"1,395.00",S24 CLA,EXTERNAL AGENCIES AND BODIES,5902284398,1000026239
08.01.2018,CHILDREN'S SERVICES,CITYGLEN LTD,"1,395.00",S24 CLA,EXTERNAL AGENCIES AND BODIES,5902284399,1000026239
08.01.2018,CHILDREN'S SERVICES,ASSOCIATED CARE SERVICES LTD,"1,417.14",S24 CLA,EXTERNAL AGENCIES AND BODIES,2102765663,1000070299
08.01.2018,CHILDREN'S SERVICES,BRIDGING THE GAP,"1,925.72",S24 CLA,EXTERNAL AGENCIES AND BODIES,2102765657,1000073662
08.01.2018,CHILDREN'S SERVICES,FINEFAIR LTD,"-5,652.26",S24 CLA,EXTERNAL AGENCIES AND BODIES,2102761439,1000075570
08.01.2018,CHILDREN'S SERVICES,FINEFAIR LTD,700.16,S24 CLA,EXTERNAL AGENCIES AND BODIES,2102765654,1000075570
08.01.2018,CHILDREN'S SERVICES,FINEFAIR LTD,"1,687.33",S24 CLA,EXTERNAL AGENCIES AND BODIES,2102765656,1000075570
08.01.2018,CHILDREN'S SERVICES,FINEFAIR LTD,"1,687.33",S24 CLA,EXTERNAL AGENCIES AND BODIES,2102765659,1000075570
08.01.2018,CHILDREN'S SERVICES,FINEFAIR LTD,"1,687.33",S24 CLA,EXTERNAL AGENCIES AND BODIES,2102765660,1000075570
08.01.2018,CHILDREN'S SERVICES,FINEFAIR LTD,"1,687.33",S24 CLA,EXTERNAL AGENCIES AND BODIES,2102765662,1000075570
08.01.2018,CHILDREN'S SERVICES,FINEFAIR LTD,"1,687.33",S24 CLA,EXTERNAL AGENCIES AND BODIES,2102765665,1000075570
08.01.2018,CHILDREN'S SERVICES,FINEFAIR LTD,"1,894.72",S24 CLA,EXTERNAL AGENCIES AND BODIES,2102765668,1000075570
08.01.2018,CHILDREN'S SERVICES,FINEFAIR LTD,"2,121.60",S24 CLA,EXTERNAL AGENCIES AND BODIES,2102761454,1000075570
08.01.2018,CHILDREN'S SERVICES,FINEFAIR LTD,"2,192.32",S24 CLA,EXTERNAL AGENCIES AND BODIES,2102765655,1000075570
08.01.2018,CHILDREN'S SERVICES,FINEFAIR LTD,"3,298.09",S24 CLA,EXTERNAL AGENCIES AND BODIES,2102765661,1000075570
08.01.2018,CHILDREN'S SERVICES,INTERSERVE HEALTHCARE,351.15,SPECIALIST CARE,SECTION 17 PAYMENTS TO AGENCIES/CARERS,2102765682,1000049612
08.01.2018,CHILDREN'S SERVICES,CONTACT PROFESSIONALS,380,SPECIALIST CARE,SECTION 17 PAYMENTS TO AGENCIES/CARERS,2102765689,1000057263
08.01.2018,CHILDREN'S SERVICES,CONTACT PROFESSIONALS,513,SPECIALIST CARE,SECTION 17 PAYMENTS TO AGENCIES/CARERS,2102765687,1000057263
08.01.2018,CHILDREN'S SERVICES,AFFINITY FOSTERING SERVICES LTD,"1,749.33",STAYING PUT,EXTERNAL AGENCIES AND BODIES,2102765666,1000073184
08.01.2018,CHILDREN'S SERVICES,AFFINITY FOSTERING SERVICES LTD,"1,749.33",STAYING PUT,EXTERNAL AGENCIES AND BODIES,2102765667,1000073184
08.01.2018,CHILDREN'S SERVICES,REDACTED PERSONAL DATA,285.72,STAYING PUT,PAYMENTS TO CARERS,2102765542,REDACTED
08.01.2018,CHILDREN'S SERVICES,PROPERTY ACE UK LTD,"1,992.86",UASC SECTION 24,RESIDENTIAL CARE,2102765664,1000077593
08.01.2018,COMMUNITIES,APPLEGARTH HOUSE COOPERATIVE LTD,"23,400.25",APPLEGARTH HOUSE CO-OP,M&M ALLOWANCE CO-OPS,5902284543,1296074
08.01.2018,COMMUNITIES,COMMUNITY SOUTHWARK,"105,932.50",CVS & VOLUNTEERING,GRANTS,5902284372,1000018147
08.01.2018,COMMUNITIES,COMMUNITY SOUTHWARK,"30,000.00",HEALTHWATCH,GRANTS,5902284378,1000018147
08.01.2018,COMMUNITIES,OPEN COMMUNITIES LTD,"7,475.00",RESIDENT INVOLVEMENT TEAM,PROFESSIONAL FEES,5902284371,1000065800
08.01.2018,CUSTOMER EXPERIENCE HGF,NORTHGATE PUBLIC SERVICES (UK) LTD,730.01,BLUE BADGES,MATERIALS,5902284419,1000037405
08.01.2018,ENVIRONMENT AND LEISURE,FITZPATRICK WOOLMER DESIGN & PUBLISHING LTD,"2,749.00",CAPITAL PS (LEISURE),CONSTRUCTION FEES  - EXTERNAL,5902284416,1000044126
08.01.2018,ENVIRONMENT AND LEISURE,INTO SERVICES LONDON LTD,"1,000.00",CAPITAL PS (LEISURE),CONST'N MAIN CONTRACT - NON CERTIFICATED,5902284369,1000059328
08.01.2018,ENVIRONMENT AND LEISURE,ELLIOTT J - DESIGN,400,CAPITAL PS (LEISURE),CONSTRUCTION FEES  - EXTERNAL,5902284415,1000076437
08.01.2018,ENVIRONMENT AND LEISURE,ERECT ARCHITECTURE LTD,"3,500.00",CAPITAL PS (LEISURE),CONSTRUCTION FEES  - EXTERNAL,5902284331,1000078487
08.01.2018,ENVIRONMENT AND SOCIAL REGENERATION,A T & T (GB LTD ),704,STORES/LOGISTICS,CREDITORS -GR/IR CLEARING ACCOUNT,5902284375,1000078342
08.01.2018,ENVIRONMENT AND SOCIAL REGENERATION,A T & T (GB LTD ),"1,128.00",STORES/LOGISTICS,CREDITORS -GR/IR CLEARING ACCOUNT,5902284374,1000078342
08.01.2018,ENVIRONMENT DIRECTORATE,KENT COUNTY COUNCIL - LASER,648.42,COLUMNS - MINOR ROADS,SOUTHWARK DIRECT CHARGES,5902284411,1000012926
08.01.2018,ENVIRONMENT DIRECTORATE,GREENHAM TRADING LTD,304.22,ESTATE CLEANING-GENERAL,MATERIALS,5902284400,1000006610
08.01.2018,ENVIRONMENT DIRECTORATE,GREENHAM TRADING LTD,"1,710.54",ESTATE CLEANING-GENERAL,MATERIALS,5902284491,1000006610
08.01.2018,ENVIRONMENT DIRECTORATE,THE T.P. PARTNERSHIP,445,ESTATE CLEANING-GENERAL,OTHER CONTRACTORS,5902284395,1000045906
08.01.2018,ENVIRONMENT DIRECTORATE,CONWAY AECOM LTD,"1,304.72",FLOOD RISK MANAGEMENT,HIGHWAYS TERM CONTRACT,5902284559,1000071205
08.01.2018,ENVIRONMENT DIRECTORATE,CONWAY AECOM LTD,"1,522.72",FLOOD RISK MANAGEMENT,HIGHWAYS TERM CONTRACT,5902284559,1000071205
08.01.2018,ENVIRONMENT DIRECTORATE,CONWAY AECOM LTD,"2,661.12",FLOOD RISK MANAGEMENT,HIGHWAYS TERM CONTRACT,5902284405,1000071205
08.01.2018,ENVIRONMENT DIRECTORATE,SOUTHWARK NEWSPAPER LTD,276,HIGHWAYS DEVELOPMENT,MARKETING & PUBLICITY SERVICES,5902284550,1556957
08.01.2018,ENVIRONMENT DIRECTORATE,SOUTHWARK NEWSPAPER LTD,288,HIGHWAYS DEVELOPMENT,MARKETING & PUBLICITY SERVICES,5902284552,1556957
08.01.2018,ENVIRONMENT DIRECTORATE,SAFER LONDON BUSINESS,390,JETS NORTH TEAM,OP LEASE/HIRE CHARGES:PLANT/EQUIP/FURNIT,5902284422,1000076641
08.01.2018,ENVIRONMENT DIRECTORATE,ENVIRO TECHNOLOGY SERVICES PLC,"1,650.00",POLLUTION CONTROL,EQUIPMENT PURCHASE & REPAIR,5902284505,1000005024
08.01.2018,ENVIRONMENT DIRECTORATE,CADLINE LTD,795,PROJECT SUPPORT,SOFTWARE,5902284442,1000052959
08.01.2018,ENVIRONMENT DIRECTORATE,CADLINE LTD,"8,820.00",PROJECT SUPPORT,SOFTWARE,5902284442,1000052959
08.01.2018,ENVIRONMENT DIRECTORATE,EDF ENERGY PLC,-466.81,STREET TRADING A/C,CATERING MATERIALS & SUPPLIES,5902284274,1008746
08.01.2018,ENVIRONMENT DIRECTORATE,SOUTHWARK NEWSPAPER LTD,288,STREET WORKS OVERHEADS,MARKETING & PUBLICITY SERVICES,5902284445,1556957
08.01.2018,ENVIRONMENT DIRECTORATE,SOUTHWARK NEWSPAPER LTD,288,STREET WORKS OVERHEADS,MARKETING & PUBLICITY SERVICES,5902284449,1556957
08.01.2018,ENVIRONMENT DIRECTORATE,SOUTHWARK NEWSPAPER LTD,288,STREET WORKS OVERHEADS,MARKETING & PUBLICITY SERVICES,5902284462,1556957
08.01.2018,ENVIRONMENT DIRECTORATE,SOUTHWARK NEWSPAPER LTD,288,STREET WORKS OVERHEADS,MARKETING & PUBLICITY SERVICES,5902284472,1556957
08.01.2018,ENVIRONMENT DIRECTORATE,SOUTHWARK NEWSPAPER LTD,288,STREET WORKS OVERHEADS,MARKETING & PUBLICITY SERVICES,5902284506,1556957
08.01.2018,ENVIRONMENT DIRECTORATE,SOUTHWARK NEWSPAPER LTD,288,STREET WORKS OVERHEADS,MARKETING & PUBLICITY SERVICES,5902284507,1556957
08.01.2018,ENVIRONMENT DIRECTORATE,SOUTHWARK NEWSPAPER LTD,288,STREET WORKS OVERHEADS,MARKETING & PUBLICITY SERVICES,5902284508,1556957
08.01.2018,ENVIRONMENT DIRECTORATE,SOUTHWARK NEWSPAPER LTD,288,STREET WORKS OVERHEADS,MARKETING & PUBLICITY SERVICES,5902284510,1556957
08.01.2018,ENVIRONMENT DIRECTORATE,SOUTHWARK NEWSPAPER LTD,300,STREET WORKS OVERHEADS,MARKETING & PUBLICITY SERVICES,5902284455,1556957
08.01.2018,ENVIRONMENT DIRECTORATE,SOUTHWARK NEWSPAPER LTD,312,STREET WORKS OVERHEADS,MARKETING & PUBLICITY SERVICES,5902284515,1556957
08.01.2018,ENVIRONMENT DIRECTORATE,SOUTHWARK NEWSPAPER LTD,324,STREET WORKS OVERHEADS,MARKETING & PUBLICITY SERVICES,5902284431,1556957
08.01.2018,ENVIRONMENT DIRECTORATE,SOUTHWARK NEWSPAPER LTD,324,STREET WORKS OVERHEADS,MARKETING & PUBLICITY SERVICES,5902284438,1556957
08.01.2018,ENVIRONMENT DIRECTORATE,SOUTHWARK NEWSPAPER LTD,336,STREET WORKS OVERHEADS,MARKETING & PUBLICITY SERVICES,5902284512,1556957
08.01.2018,F & C S EXCLUDING CORPORATE BUDGETS,WILKIN CHAPMAN,350,COUNCIL TAX,LEGAL FEES & COURT COSTS,5902284545,1000052509
08.01.2018,F & C S EXCLUDING CORPORATE BUDGETS,WILKIN CHAPMAN,446.63,COUNCIL TAX,LEGAL FEES & COURT COSTS,5902284531,1000052509
08.01.2018,F & C S EXCLUDING CORPORATE BUDGETS,EDF ENERGY PLC,-253.39,PAYMENTS CONTROL,OFFICE EXPENSES,2102766009,1008746
08.01.2018,F & C S EXCLUDING CORPORATE BUDGETS,VALUEADDING.COM LTD,712.5,PROJECTS,OTHER CONTRACTORS,5902284425,1000066730
08.01.2018,F & C S EXCLUDING CORPORATE BUDGETS,VALUEADDING.COM LTD,"4,604.95",PROJECTS,OTHER CONTRACTORS,5902284425,1000066730
08.01.2018,HOUSING HRA,WATERSLADE LTD,800,CAPITAL PS (HRA),CONSTRUCTION FEES  - EXTERNAL,5902284392,1000075795
08.01.2018,HOUSING HRA,PACE JEFFORD MOORE ARCHITECTS LLP,"30,041.03",CAPITAL PS (HRA),CONSTRUCTION FEES  - EXTERNAL,5902284497,1000078692
08.01.2018,HOUSING STRATEGY AND OPTIONS,RUBICON PROPERTY (SHRUBBERY LTD),"1,224.48",HOMELESS PROJECTS,GRANTS,5902284410,1000080428
08.01.2018,LEISURE DIRECTORATE,VIVEDIA LIMITED,517,CREMATORIUM,OP LEASE/HIRE CHARGES:PLANT/EQUIP/FURNIT,5902284349,1000064867
08.01.2018,LEISURE DIRECTORATE,EDF ENERGY PLC,307.58,DULWICH AREA TEAM,ELECTRICITY,5902284466,1008746
08.01.2018,LEISURE DIRECTORATE,EDF ENERGY PLC,"1,059.67",PARKS SERVICES DEVELOPMENT,ELECTRICITY,5902284541,1008746
08.01.2018,LEISURE DIRECTORATE,EDF ENERGY PLC,253.39,SOUTHWARK AREA TEAM,ELECTRICITY,5902282265,1008746
08.01.2018,LEISURE DIRECTORATE,KENT COUNTY COUNCIL - LASER,776.07,SOUTHWARK AREA TEAM,ELECTRICITY,5902284492,1000012926
08.01.2018,LEISURE DIRECTORATE,ASKEWS & HOLTS LIBRARY SERVICES LTD,414.6,STOCK SERVICES,BOOKS & PUBLICATIONS,5902284440,1494168
08.01.2018,LEISURE DIRECTORATE,ASKEWS & HOLTS LIBRARY SERVICES LTD,"2,694.71",STOCK SERVICES,BOOKS & PUBLICATIONS,5902284471,1494168
08.01.2018,LEISURE DIRECTORATE,BOLINDA UK LTD,"5,000.00",STOCK SERVICES,BOOKS & PUBLICATIONS,5902284432,1000075655
08.01.2018,MODERNISATION HGF,TAVISTOCK & PORTMAN NHS FT,700,CSW - PROFESSIONAL DEVELOPMENT,TRAINING,5902284562,1991321
08.01.2018,MODERNISATION HGF,TAVISTOCK & PORTMAN NHS FT,700,CSW - PROFESSIONAL DEVELOPMENT,TRAINING,5902284562,1991321
08.01.2018,MODERNISATION HGF,GENERAL DYNAMICS INFORMATION TECHNOLOGY,"3,539.50",SYSTEMS,TELEPHONES (LAND LINES),5902284501,1000043058
08.01.2018,MODERNISATION HGF,GENERAL DYNAMICS INFORMATION TECHNOLOGY,"59,149.00",SYSTEMS,TELEPHONES (LAND LINES),5902284498,1000043058
08.01.2018,MODERNISATION HGF,SABIO LTD,"7,798.29",SYSTEMS,TELEPHONES (LAND LINES),5902284503,1000069680
08.01.2018,REGENERATION,DR MICHAEL LEARY-OWHIN,"1,662.50",PROFESSIONAL SERVICES (GENERAL),PROFESSIONAL FEES,5902284426,1000080138
08.01.2018,RESIDENT SERVICES,CONWAY AECOM LTD,"3,507.20",PARKING CONTROL,OTHER CONTRACTORS,5902284390,1000071205
08.01.2018,SOUTHWARK BUILDING SERVICES,OCO LIMITED,417.75,R & M OVERHEADS,OTHER R&M,5902284475,1006066
08.01.2018,SOUTHWARK BUILDING SERVICES,HOWDENS JOINERY CO,310.2,WALWORTH TM 1 DAY TO DAY - CARPENTER,MATERIALS,5902284482,1000027491
08.01.2018,SOUTHWARK BUILDING SERVICES,PEARSON GLAZING LIMITED,280,WALWORTH TM 2 DAY TO DAY - GLAZIER,MATERIALS,5902284437,1891977
09.01.2018,ADULT SOCIAL CARE,REDACTED PERSONAL DATA,600,APPOINTEESHIPS,OTHER PAYMENTS FOR CLIENTS,5902284675,REDACTED
09.01.2018,ADULT SOCIAL CARE,REDACTED PERSONAL DATA,264.8,APPOINTEESHIPS,OTHER PAYMENTS FOR CLIENTS,5902284674,REDACTED
09.01.2018,ADULT SOCIAL CARE,PAULWAYS KENNELS,330,HOSPITAL DISCHARGE TEAM,MISCELLANEOUS EXPENSES,5902284753,1068767
09.01.2018,ADULT SOCIAL CARE,PAULWAYS KENNELS,380,HOSPITAL DISCHARGE TEAM,MISCELLANEOUS EXPENSES,5902284751,1068767
09.01.2018,ADULT SOCIAL CARE,CHOICE SUPPORT,293.92,LD LTS 18-64,SUPPORTED LIVING,2102766336,1104183
09.01.2018,ADULT SOCIAL CARE,CHOICE SUPPORT,293.92,LD LTS 18-64,SUPPORTED LIVING,2102766349,1104183
09.01.2018,ADULT SOCIAL CARE,CARE DIRECT UK LTD,337.86,MEM LTS 65+,HOMECARE - C&V,2102766314,1000066322
09.01.2018,ADULT SOCIAL CARE,YOUTH GRACES (UK) LTD,261.98,MEM LTS 65+,HOMECARE - SPOT,2102766140,1000072524
09.01.2018,ADULT SOCIAL CARE,CARE DIRECT UK LTD,372.33,MH LTS 65+,HOMECARE - SPOT,2102766330,1000066322
09.01.2018,ADULT SOCIAL CARE,YOUTH GRACES (UK) LTD,256.41,MH LTS 65+,HOMECARE - SPOT,2102766175,1000072524
09.01.2018,ADULT SOCIAL CARE,CAPITAL HOMECARE (UK) LTD,566.58,PHY LTS 18-64,HOMECARE - SPOT,2102766331,1000042589
09.01.2018,ADULT SOCIAL CARE,CAPITAL HOMECARE (UK) LTD,566.58,PHY LTS 18-64,HOMECARE - SPOT,2102766334,1000042589
09.01.2018,ADULT SOCIAL CARE,CAPITAL HOMECARE (UK) LTD,566.58,PHY LTS 18-64,HOMECARE - SPOT,2102766337,1000042589
09.01.2018,ADULT SOCIAL CARE,CAPITAL HOMECARE (UK) LTD,566.58,PHY LTS 18-64,HOMECARE - SPOT,2102766339,1000042589
09.01.2018,ADULT SOCIAL CARE,CAPITAL HOMECARE (UK) LTD,566.58,PHY LTS 18-64,HOMECARE - SPOT,2102766340,1000042589
09.01.2018,ADULT SOCIAL CARE,CAPITAL HOMECARE (UK) LTD,566.58,PHY LTS 18-64,HOMECARE - SPOT,2102766345,1000042589
09.01.2018,ADULT SOCIAL CARE,CAPITAL HOMECARE (UK) LTD,566.58,PHY LTS 18-64,HOMECARE - SPOT,2102766350,1000042589
09.01.2018,ADULT SOCIAL CARE,CARE DIRECT UK LTD,262.01,PHY LTS 18-64,HOMECARE - SPOT,2102766043,1000066322
09.01.2018,ADULT SOCIAL CARE,CARE DIRECT UK LTD,268.91,PHY LTS 18-64,HOMECARE - SPOT,2102766069,1000066322
09.01.2018,ADULT SOCIAL CARE,CARE DIRECT UK LTD,310.28,PHY LTS 18-64,HOMECARE - SPOT,2102766039,1000066322
09.01.2018,ADULT SOCIAL CARE,CARE DIRECT UK LTD,727.42,PHY LTS 18-64,HOMECARE - SPOT,2102766291,1000066322
09.01.2018,ADULT SOCIAL CARE,YOUTH GRACES (UK) LTD,261.98,PHY LTS 18-64,HOMECARE - SPOT,2102766148,1000072524
09.01.2018,ADULT SOCIAL CARE,YOUTH GRACES (UK) LTD,386.12,PHY LTS 18-64,HOMECARE - C&V,2102766185,1000072524
09.01.2018,ADULT SOCIAL CARE,YOUTH GRACES (UK) LTD,413.68,PHY LTS 18-64,HOMECARE - C&V,2102766109,1000072524
09.01.2018,ADULT SOCIAL CARE,YOUTH GRACES (UK) LTD,434.44,PHY LTS 18-64,HOMECARE - SPOT,2102766186,1000072524
09.01.2018,ADULT SOCIAL CARE,WESTMINSTER HOMECARE LTD,573.2,PHY LTS 18-64,HOMECARE - C&V,2102766344,1000075287
09.01.2018,ADULT SOCIAL CARE,LAMBETH CHINESE COMMUNITY ASSOCIATION,646.3,PHY LTS 65+,HOMECARE - SPOT,2102766341,11117038
09.01.2018,ADULT SOCIAL CARE,LAMBETH CHINESE COMMUNITY ASSOCIATION,646.3,PHY LTS 65+,HOMECARE - SPOT,2102766352,11117038
09.01.2018,ADULT SOCIAL CARE,LAMBETH CHINESE COMMUNITY ASSOCIATION,800.85,PHY LTS 65+,HOMECARE - SPOT,2102766332,11117038
09.01.2018,ADULT SOCIAL CARE,LAMBETH CHINESE COMMUNITY ASSOCIATION,800.85,PHY LTS 65+,HOMECARE - SPOT,2102766335,11117038
09.01.2018,ADULT SOCIAL CARE,LAMBETH CHINESE COMMUNITY ASSOCIATION,"2,360.40",PHY LTS 65+,HOMECARE - SPOT,2102766353,11117038
09.01.2018,ADULT SOCIAL CARE,CAPITAL HOMECARE (UK) LTD,"1,699.74",PHY LTS 65+,HOMECARE - SPOT,2102766333,1000042589
09.01.2018,ADULT SOCIAL CARE,CAPITAL HOMECARE (UK) LTD,"1,699.74",PHY LTS 65+,HOMECARE - SPOT,2102766343,1000042589
09.01.2018,ADULT SOCIAL CARE,CAPITAL HOMECARE (UK) LTD,"1,699.74",PHY LTS 65+,HOMECARE - SPOT,2102766351,1000042589
09.01.2018,ADULT SOCIAL CARE,CARE DIRECT UK LTD,265.46,PHY LTS 65+,HOMECARE - SPOT,2102766017,1000066322
09.01.2018,ADULT SOCIAL CARE,CARE DIRECT UK LTD,265.46,PHY LTS 65+,HOMECARE - SPOT,2102766289,1000066322
09.01.2018,ADULT SOCIAL CARE,CARE DIRECT UK LTD,268.91,PHY LTS 65+,HOMECARE - SPOT,2102766045,1000066322
09.01.2018,ADULT SOCIAL CARE,CARE DIRECT UK LTD,272.35,PHY LTS 65+,HOMECARE - SPOT,2102766326,1000066322
09.01.2018,ADULT SOCIAL CARE,CARE DIRECT UK LTD,286.14,PHY LTS 65+,HOMECARE - C&V,2102766322,1000066322
09.01.2018,ADULT SOCIAL CARE,CARE DIRECT UK LTD,306.83,PHY LTS 65+,HOMECARE - SPOT,2102766273,1000066322
09.01.2018,ADULT SOCIAL CARE,CARE DIRECT UK LTD,342.78,PHY LTS 65+,HOMECARE - SPOT,2102766057,1000066322
09.01.2018,ADULT SOCIAL CARE,CARE DIRECT UK LTD,386.12,PHY LTS 65+,HOMECARE - SPOT,2102766284,1000066322
09.01.2018,ADULT SOCIAL CARE,CARE DIRECT UK LTD,399.91,PHY LTS 65+,HOMECARE - SPOT,2102766019,1000066322
09.01.2018,ADULT SOCIAL CARE,CARE DIRECT UK LTD,406.81,PHY LTS 65+,HOMECARE - SPOT,2102766010,1000066322
09.01.2018,ADULT SOCIAL CARE,CARE DIRECT UK LTD,427.49,PHY LTS 65+,HOMECARE - SPOT,2102766328,1000066322
09.01.2018,ADULT SOCIAL CARE,CARE DIRECT UK LTD,434.39,PHY LTS 65+,HOMECARE - SPOT,2102766040,1000066322
09.01.2018,ADULT SOCIAL CARE,CARE DIRECT UK LTD,434.39,PHY LTS 65+,HOMECARE - SPOT,2102766270,1000066322
09.01.2018,ADULT SOCIAL CARE,CARE DIRECT UK LTD,434.39,PHY LTS 65+,HOMECARE - SPOT,2102766300,1000066322
09.01.2018,ADULT SOCIAL CARE,CARE DIRECT UK LTD,472.31,PHY LTS 65+,HOMECARE - SPOT,2102766306,1000066322
09.01.2018,ADULT SOCIAL CARE,CARE DIRECT UK LTD,479.2,PHY LTS 65+,HOMECARE - SPOT,2102766282,1000066322
09.01.2018,ADULT SOCIAL CARE,CARE DIRECT UK LTD,482.65,PHY LTS 65+,HOMECARE - SPOT,2102766038,1000066322
09.01.2018,ADULT SOCIAL CARE,CARE DIRECT UK LTD,482.65,PHY LTS 65+,HOMECARE - SPOT,2102766044,1000066322
09.01.2018,ADULT SOCIAL CARE,CARE DIRECT UK LTD,482.65,PHY LTS 65+,HOMECARE - SPOT,2102766068,1000066322
09.01.2018,ADULT SOCIAL CARE,CARE DIRECT UK LTD,503.34,PHY LTS 65+,HOMECARE - C&V,2102766056,1000066322
09.01.2018,ADULT SOCIAL CARE,CARE DIRECT UK LTD,530.92,PHY LTS 65+,HOMECARE - SPOT,2102766293,1000066322
09.01.2018,ADULT SOCIAL CARE,CARE DIRECT UK LTD,551.6,PHY LTS 65+,HOMECARE - SPOT,2102766301,1000066322
09.01.2018,ADULT SOCIAL CARE,CARE DIRECT UK LTD,689.5,PHY LTS 65+,HOMECARE - SPOT,2102766023,1000066322
09.01.2018,ADULT SOCIAL CARE,CARE DIRECT UK LTD,723.98,PHY LTS 65+,HOMECARE - SPOT,2102766286,1000066322
09.01.2018,ADULT SOCIAL CARE,CARE DIRECT UK LTD,723.98,PHY LTS 65+,HOMECARE - SPOT,2102766303,1000066322
09.01.2018,ADULT SOCIAL CARE,YOUTH GRACES (UK) LTD,262.12,PHY LTS 65+,HOMECARE - SPOT,2102766144,1000072524
09.01.2018,ADULT SOCIAL CARE,YOUTH GRACES (UK) LTD,282.66,PHY LTS 65+,HOMECARE - SPOT,2102766167,1000072524
09.01.2018,ADULT SOCIAL CARE,YOUTH GRACES (UK) LTD,399.91,PHY LTS 65+,HOMECARE - SPOT,2102766131,1000072524
09.01.2018,ADULT SOCIAL CARE,YOUTH GRACES (UK) LTD,434.56,PHY LTS 65+,HOMECARE - SPOT,2102766150,1000072524
09.01.2018,ADULT SOCIAL CARE,YOUTH GRACES (UK) LTD,503.41,PHY LTS 65+,HOMECARE - SPOT,2102766130,1000072524
09.01.2018,ADULT SOCIAL CARE,YOUTH GRACES (UK) LTD,555.1,PHY LTS 65+,HOMECARE - C&V,2102766127,1000072524
09.01.2018,ADULT SOCIAL CARE,YOUTH GRACES (UK) LTD,710.26,PHY LTS 65+,HOMECARE - SPOT,2102766123,1000072524
09.01.2018,ADULT SOCIAL CARE,WESTMINSTER HOMECARE LTD,747.93,PHY LTS 65+,HOMECARE - SPOT,2102766338,1000075287
09.01.2018,ADULT SOCIAL CARE,WESTMINSTER HOMECARE LTD,880.88,PHY LTS 65+,HOMECARE - C&V,2102766342,1000075287
09.01.2018,ASSET MANAGEMENT,STANNAH LIFT SERVICES LTD,"5,235.00",ADAPTATIONS,BUILDING R&M,5902284750,1063595
09.01.2018,ASSET MANAGEMENT,TOTAL HYGIENE LTD,"3,715.00",ADAPTATIONS,BUILDING R&M,5902284742,1793628
09.01.2018,ASSET MANAGEMENT,HIGHER ELEVATION LTD,"6,111.25",ADAPTATIONS,BUILDING R&M,5902284736,1000067328
09.01.2018,ASSET MANAGEMENT,ADRIAN MOODY,391.69,ADAPTATIONS,BUILDING R&M,5902284657,1000080297
09.01.2018,ASSET MANAGEMENT,ADRIAN MOODY,402.48,ADAPTATIONS,BUILDING R&M,5902284658,1000080297
09.01.2018,ASSET MANAGEMENT,ADRIAN MOODY,402.48,ADAPTATIONS,BUILDING R&M,5902284659,1000080297
09.01.2018,ASSET MANAGEMENT,ADRIAN MOODY,"2,707.00",ADAPTATIONS,BUILDING R&M,5902284646,1000080297
09.01.2018,ASSET MANAGEMENT,LAWTECH GROUP LTD,"16,000.00",HIP MAJOR WORKS,PLANNED MAINTENANCE,2102766003,3000001646
09.01.2018,CENTRAL FUNCTIONS,ENGIE REGENERATION (APOLLO) LTD,"10,766.68",LEDBURY ESTATE,OTHER R&M,2102766000,4000449
09.01.2018,CENTRAL FUNCTIONS,ENGIE REGENERATION (APOLLO) LTD,"26,222.88",LEDBURY ESTATE,OTHER R&M,2102766002,4000449
09.01.2018,CENTRAL FUNCTIONS,ENGIE REGENERATION (APOLLO) LTD,"38,026.55",LEDBURY ESTATE,OTHER R&M,2102765999,4000449
09.01.2018,CENTRAL FUNCTIONS,ENGIE REGENERATION (APOLLO) LTD,"57,377.25",LEDBURY ESTATE,OTHER R&M,2102766001,4000449
09.01.2018,CHIEF EXECUTIVE,LONDON LETTERBOX MARKETING,408.83,CAPITAL PS (REGEN),CONSTRUCTION FEES  - EXTERNAL,5902284597,1000044844
09.01.2018,CHIEF EXECUTIVE,CONWAY AECOM LTD,"1,762.11",CAPITAL PS (REGEN),CONSTRUCTION MAIN CONTRACT,5902284765,1000071205
09.01.2018,CHIEF EXECUTIVE,CONWAY AECOM LTD,"3,953.07",CAPITAL PS (REGEN),CONSTR'N SUB CONTRACT - NON CERTIFICATED,5902284772,1000071205
09.01.2018,CHIEF EXECUTIVE,CONWAY AECOM LTD,"4,797.47",CAPITAL PS (REGEN),CONSTR'N SUB CONTRACT - NON CERTIFICATED,5902284768,1000071205
09.01.2018,CHIEF EXECUTIVE,CONWAY AECOM LTD,"4,932.65",CAPITAL PS (REGEN),CONSTRUCTION MAIN CONTRACT -CERTIFICATED,5902284777,1000071205
09.01.2018,CHIEF EXECUTIVE,CONWAY AECOM LTD,"8,120.77",CAPITAL PS (REGEN),CONSTRUCTION MAIN CONTRACT -CERTIFICATED,5902284770,1000071205
09.01.2018,CHIEF EXECUTIVE'S OFFICE,TIME & TALENTS ASSOCIATION,"4,500.00",BUSINESS SUPPORT,GRANTS,5902284616,1530109
09.01.2018,CHIEF EXECUTIVE'S OFFICE,CARE TRADE CHARITABLE TRUST,"17,500.00",CHIEF EXEC'S OFFICE,GRANTS,5902284759,1000067322
09.01.2018,CHILDREN AND ADULT,CROHAM SERVICES FOR CHILDREN,"3,649.85",AGENCY FOSTERING,EXTERNAL AGENCIES AND BODIES,2102766073,1556859
09.01.2018,CHILDREN AND ADULT,CROHAM SERVICES FOR CHILDREN,"3,649.85",AGENCY FOSTERING,EXTERNAL AGENCIES AND BODIES,2102766087,1556859
09.01.2018,CHILDREN AND ADULT,SUPPORTED FOSTERING SERVICES,"2,995.71",AGENCY FOSTERING,EXTERNAL AGENCIES AND BODIES,2102766103,1927554
09.01.2018,CHILDREN AND ADULT,SUPPORTED FOSTERING SERVICES,"3,095.57",AGENCY FOSTERING,EXTERNAL AGENCIES AND BODIES,2102766104,1927554
09.01.2018,CHILDREN AND ADULT,BANYA FAMILY PLACEMENT AGENCY LTD,"3,607.47",AGENCY FOSTERING,EXTERNAL AGENCIES AND BODIES,2102766075,11328315
09.01.2018,CHILDREN AND ADULT,BANYA FAMILY PLACEMENT AGENCY LTD,"3,607.47",AGENCY FOSTERING,EXTERNAL AGENCIES AND BODIES,2102766086,11328315
09.01.2018,CHILDREN AND ADULT,BANYA FAMILY PLACEMENT AGENCY LTD,"3,607.47",AGENCY FOSTERING,EXTERNAL AGENCIES AND BODIES,2102766099,11328315
09.01.2018,CHILDREN AND ADULT,GREATER LONDON FOSTERING,"3,188.35",AGENCY FOSTERING,EXTERNAL AGENCIES AND BODIES,2102766072,1000029184
09.01.2018,CHILDREN AND ADULT,GREATER LONDON FOSTERING,"3,220.28",AGENCY FOSTERING,EXTERNAL AGENCIES AND BODIES,2102766079,1000029184
09.01.2018,CHILDREN AND ADULT,GREATER LONDON FOSTERING,"3,286.00",AGENCY FOSTERING,EXTERNAL AGENCIES AND BODIES,2102766091,1000029184
09.01.2018,CHILDREN AND ADULT,GREATER LONDON FOSTERING,"3,286.00",AGENCY FOSTERING,EXTERNAL AGENCIES AND BODIES,2102766093,1000029184
09.01.2018,CHILDREN AND ADULT,GREATER LONDON FOSTERING,"3,286.00",AGENCY FOSTERING,EXTERNAL AGENCIES AND BODIES,2102766102,1000029184
09.01.2018,CHILDREN AND ADULT,GREATER LONDON FOSTERING,"4,424.01",AGENCY FOSTERING,EXTERNAL AGENCIES AND BODIES,2102766081,1000029184
09.01.2018,CHILDREN AND ADULT,NATIONAL FOSTERING AGENCY,426.42,AGENCY FOSTERING,EXTERNAL AGENCIES AND BODIES,2102766078,1000038868
09.01.2018,CHILDREN AND ADULT,NATIONAL FOSTERING AGENCY,"1,358.88",AGENCY FOSTERING,EXTERNAL AGENCIES AND BODIES,2102766084,1000038868
09.01.2018,CHILDREN AND ADULT,NATIONAL FOSTERING AGENCY,"3,231.47",AGENCY FOSTERING,EXTERNAL AGENCIES AND BODIES,2102766080,1000038868
09.01.2018,CHILDREN AND ADULT,NATIONAL FOSTERING AGENCY,"3,520.67",AGENCY FOSTERING,EXTERNAL AGENCIES AND BODIES,2102766076,1000038868
09.01.2018,CHILDREN AND ADULT,NATIONAL FOSTERING AGENCY,"4,406.34",AGENCY FOSTERING,EXTERNAL AGENCIES AND BODIES,2102766082,1000038868
09.01.2018,CHILDREN AND ADULT,NATIONAL FOSTERING AGENCY,"4,406.34",AGENCY FOSTERING,EXTERNAL AGENCIES AND BODIES,2102766085,1000038868
09.01.2018,CHILDREN AND ADULT,NATIONAL FOSTERING AGENCY,"4,406.34",AGENCY FOSTERING,EXTERNAL AGENCIES AND BODIES,2102766088,1000038868
09.01.2018,CHILDREN AND ADULT,NATIONAL FOSTERING AGENCY,"4,406.34",AGENCY FOSTERING,EXTERNAL AGENCIES AND BODIES,2102766089,1000038868
09.01.2018,CHILDREN AND ADULT,NATIONAL FOSTERING AGENCY,"4,406.34",AGENCY FOSTERING,EXTERNAL AGENCIES AND BODIES,2102766090,1000038868
09.01.2018,CHILDREN AND ADULT,NATIONAL FOSTERING AGENCY,"4,406.34",AGENCY FOSTERING,EXTERNAL AGENCIES AND BODIES,2102766094,1000038868
09.01.2018,CHILDREN AND ADULT,NATIONAL FOSTERING AGENCY,"4,406.34",AGENCY FOSTERING,EXTERNAL AGENCIES AND BODIES,2102766096,1000038868
09.01.2018,CHILDREN AND ADULT,NATIONAL FOSTERING AGENCY,"4,406.34",AGENCY FOSTERING,EXTERNAL AGENCIES AND BODIES,2102766097,1000038868
09.01.2018,CHILDREN AND ADULT,NATIONAL FOSTERING AGENCY,"4,406.34",AGENCY FOSTERING,EXTERNAL AGENCIES AND BODIES,2102766100,1000038868
09.01.2018,CHILDREN AND ADULT,NATIONAL FOSTERING AGENCY,"4,406.34",AGENCY FOSTERING,EXTERNAL AGENCIES AND BODIES,2102766101,1000038868
09.01.2018,CHILDREN AND ADULT,NATIONAL FOSTERING AGENCY,"4,627.68",AGENCY FOSTERING,EXTERNAL AGENCIES AND BODIES,2102766083,1000038868
09.01.2018,CHILDREN AND ADULT,NATIONAL FOSTERING AGENCY,"5,212.34",AGENCY FOSTERING,EXTERNAL AGENCIES AND BODIES,2102766074,1000038868
09.01.2018,CHILDREN AND ADULT,FITZGERALD FOSTERING & CONSULTANCY,"3,120.00",AGENCY FOSTERING,EXTERNAL AGENCIES AND BODIES,2102766095,1000075307
09.01.2018,CHILDREN AND ADULT,ORANGE GROVE FOSTERCARE LTD,"-1,276.00",AGENCY FOSTERING,EXTERNAL AGENCIES AND BODIES,2102766092,1000078716
09.01.2018,CHILDREN AND ADULT,ORANGE GROVE FOSTERCARE LTD,"1,972.00",AGENCY FOSTERING,EXTERNAL AGENCIES AND BODIES,2102766077,1000078716
09.01.2018,CHILDREN AND ADULT,ORANGE GROVE FOSTERCARE LTD,"3,596.00",AGENCY FOSTERING,EXTERNAL AGENCIES AND BODIES,2102766098,1000078716
09.01.2018,CHILDREN AND ADULT,UK FOSTERING LTD,"5,314.33",AGENCY FOSTERING,EXTERNAL AGENCIES AND BODIES,2102766071,1000080478
09.01.2018,CHILDREN AND ADULT,AHR ARCHITECTS LTD,"4,939.00",CAPITAL PS (EDUCATION),CONSTRUCTION FEES - ARCHITECT,5902284752,1000052423
09.01.2018,CHILDREN AND ADULT,PROPERTY FACILITIES GROUP PLC,"10,040.00",CAPITAL PS (EDUCATION),CONSTRUCTION,2102766004,3000001420
09.01.2018,CHILDREN AND ADULT,PROPERTY FACILITIES GROUP PLC,"32,358.42",CAPITAL PS (EDUCATION),CONSTRUCTION,2102766005,3000001420
09.01.2018,CHILDREN AND ADULT,CBS MAINTENANCE SERVICES LTD,"1,430.00",CAPITAL PS (EDUCATION),CONSTRUCTION MAIN CONTRACT -CERTIFICATED,2102765997,3000001518
09.01.2018,CHILDREN AND ADULT,GRAEME ASH (SHOPFITTERS) LTD,"199,792.32",CAPITAL PS (EDUCATION),CONSTRUCTION MAIN CONTRACT -CERTIFICATED,2102765998,3000001926
09.01.2018,CHILDREN AND ADULT,4SONS CARE ASSESSMENT LTD,416,SAFEGUARDING TEAM,OTHER CONTRACTORS,5902284709,1000074727
09.01.2018,CHILDREN AND ADULT,ROMEDICAL LTD,559.77,SAFEGUARDING TEAM,OTHER CONTRACTORS,5902284603,1000076318
09.01.2018,CHILDREN AND ADULT,ROMEDICAL LTD,"1,093.27",SAFEGUARDING TEAM,OTHER CONTRACTORS,5902284600,1000076318
09.01.2018,CHILDREN AND ADULT,LUCAS CONSULT LTD,530.6,SAFEGUARDING TEAM,OTHER CONTRACTORS,5902284746,1000078082
09.01.2018,CHILDREN'S SERVICES,HOLMDENE HOUSING LTD,450,S24 CLA,EXTERNAL AGENCIES AND BODIES,2102766217,1000032598
09.01.2018,CHILDREN'S SERVICES,HOLMDENE HOUSING LTD,"1,850.00",S24 CLA,EXTERNAL AGENCIES AND BODIES,2102766216,1000032598
09.01.2018,CHILDREN'S SERVICES,HOLMDENE HOUSING LTD,"1,850.00",S24 CLA,EXTERNAL AGENCIES AND BODIES,2102766230,1000032598
09.01.2018,CHILDREN'S SERVICES,HOLMDENE HOUSING LTD,"2,350.00",S24 CLA,EXTERNAL AGENCIES AND BODIES,2102766261,1000032598
09.01.2018,CHILDREN'S SERVICES,LOOK AHEAD CARE AND SUPPORT LTD,"1,816.64",S24 CLA,EXTERNAL AGENCIES AND BODIES,2102766205,1000047299
09.01.2018,CHILDREN'S SERVICES,LOOK AHEAD CARE AND SUPPORT LTD,"1,816.64",S24 CLA,EXTERNAL AGENCIES AND BODIES,2102766219,1000047299
09.01.2018,CHILDREN'S SERVICES,LOOK AHEAD CARE AND SUPPORT LTD,"1,816.64",S24 CLA,EXTERNAL AGENCIES AND BODIES,2102766241,1000047299
09.01.2018,CHILDREN'S SERVICES,LOOK AHEAD CARE AND SUPPORT LTD,"2,890.44",S24 CLA,EXTERNAL AGENCIES AND BODIES,2102766248,1000047299
09.01.2018,CHILDREN'S SERVICES,LOOK AHEAD CARE AND SUPPORT LTD,"3,380.76",S24 CLA,EXTERNAL AGENCIES AND BODIES,2102766258,1000047299
09.01.2018,CHILDREN'S SERVICES,CARE R US LTD,"2,626.13",S24 CLA,EXTERNAL AGENCIES AND BODIES,2102766250,1000053515
09.01.2018,CHILDREN'S SERVICES,TLK PROPERTY & INVESTMENT LTD,"1,116.00",S24 CLA,EXTERNAL AGENCIES AND BODIES,2102766207,1000065661
09.01.2018,CHILDREN'S SERVICES,PURPLE PEBBLES(CHILD CARE) SERVICES,"-1,357.17",S24 CLA,EXTERNAL AGENCIES AND BODIES,2102766240,1000070705
09.01.2018,CHILDREN'S SERVICES,PURPLE PEBBLES(CHILD CARE) SERVICES,-557.25,S24 CLA,EXTERNAL AGENCIES AND BODIES,2102766235,1000070705
09.01.2018,CHILDREN'S SERVICES,PURPLE PEBBLES(CHILD CARE) SERVICES,-337.08,S24 CLA,EXTERNAL AGENCIES AND BODIES,2102766209,1000070705
09.01.2018,CHILDREN'S SERVICES,PURPLE PEBBLES(CHILD CARE) SERVICES,280,S24 CLA,EXTERNAL AGENCIES AND BODIES,2102766232,1000070705
09.01.2018,CHILDREN'S SERVICES,PURPLE PEBBLES(CHILD CARE) SERVICES,350,S24 CLA,EXTERNAL AGENCIES AND BODIES,2102766214,1000070705
09.01.2018,CHILDREN'S SERVICES,PURPLE PEBBLES(CHILD CARE) SERVICES,350,S24 CLA,EXTERNAL AGENCIES AND BODIES,2102766218,1000070705
09.01.2018,CHILDREN'S SERVICES,PURPLE PEBBLES(CHILD CARE) SERVICES,350,S24 CLA,EXTERNAL AGENCIES AND BODIES,2102766237,1000070705
09.01.2018,CHILDREN'S SERVICES,PURPLE PEBBLES(CHILD CARE) SERVICES,350,S24 CLA,EXTERNAL AGENCIES AND BODIES,2102766242,1000070705
09.01.2018,CHILDREN'S SERVICES,PURPLE PEBBLES(CHILD CARE) SERVICES,350,S24 CLA,EXTERNAL AGENCIES AND BODIES,2102766247,1000070705
09.01.2018,CHILDREN'S SERVICES,PURPLE PEBBLES(CHILD CARE) SERVICES,350,S24 CLA,EXTERNAL AGENCIES AND BODIES,2102766249,1000070705
09.01.2018,CHILDREN'S SERVICES,PURPLE PEBBLES(CHILD CARE) SERVICES,350,S24 CLA,EXTERNAL AGENCIES AND BODIES,2102766259,1000070705
09.01.2018,CHILDREN'S SERVICES,PURPLE PEBBLES(CHILD CARE) SERVICES,350,S24 CLA,EXTERNAL AGENCIES AND BODIES,2102766265,1000070705
09.01.2018,CHILDREN'S SERVICES,PURPLE PEBBLES(CHILD CARE) SERVICES,475,S24 CLA,EXTERNAL AGENCIES AND BODIES,2102766244,1000070705
09.01.2018,CHILDREN'S SERVICES,PURPLE PEBBLES(CHILD CARE) SERVICES,819.28,S24 CLA,EXTERNAL AGENCIES AND BODIES,2102766229,1000070705
09.01.2018,CHILDREN'S SERVICES,PURPLE PEBBLES(CHILD CARE) SERVICES,"1,217.86",S24 CLA,EXTERNAL AGENCIES AND BODIES,2102766208,1000070705
09.01.2018,CHILDREN'S SERVICES,PURPLE PEBBLES(CHILD CARE) SERVICES,"1,217.86",S24 CLA,EXTERNAL AGENCIES AND BODIES,2102766224,1000070705
09.01.2018,CHILDREN'S SERVICES,PURPLE PEBBLES(CHILD CARE) SERVICES,"1,240.00",S24 CLA,EXTERNAL AGENCIES AND BODIES,2102766220,1000070705
09.01.2018,CHILDREN'S SERVICES,PURPLE PEBBLES(CHILD CARE) SERVICES,"1,284.29",S24 CLA,EXTERNAL AGENCIES AND BODIES,2102766260,1000070705
09.01.2018,CHILDREN'S SERVICES,PURPLE PEBBLES(CHILD CARE) SERVICES,"1,328.57",S24 CLA,EXTERNAL AGENCIES AND BODIES,2102766211,1000070705
09.01.2018,CHILDREN'S SERVICES,PURPLE PEBBLES(CHILD CARE) SERVICES,"1,328.57",S24 CLA,EXTERNAL AGENCIES AND BODIES,2102766236,1000070705
09.01.2018,CHILDREN'S SERVICES,PURPLE PEBBLES(CHILD CARE) SERVICES,"1,328.57",S24 CLA,EXTERNAL AGENCIES AND BODIES,2102766239,1000070705
09.01.2018,CHILDREN'S SERVICES,PURPLE PEBBLES(CHILD CARE) SERVICES,"1,350.71",S24 CLA,EXTERNAL AGENCIES AND BODIES,2102766233,1000070705
09.01.2018,CHILDREN'S SERVICES,PURPLE PEBBLES(CHILD CARE) SERVICES,"1,439.29",S24 CLA,EXTERNAL AGENCIES AND BODIES,2102766228,1000070705
09.01.2018,CHILDREN'S SERVICES,PURPLE PEBBLES(CHILD CARE) SERVICES,"1,439.29",S24 CLA,EXTERNAL AGENCIES AND BODIES,2102766262,1000070705
09.01.2018,CHILDREN'S SERVICES,PURPLE PEBBLES(CHILD CARE) SERVICES,"1,771.43",S24 CLA,EXTERNAL AGENCIES AND BODIES,2102766255,1000070705
09.01.2018,CHILDREN'S SERVICES,NETPEX LTD CORPORATE SERVICES,"3,835.80",S24 CLA,EXTERNAL AGENCIES AND BODIES,2102766253,1000076073
09.01.2018,CHILDREN'S SERVICES,NETPEX LTD CORPORATE SERVICES,"5,464.50",S24 CLA,EXTERNAL AGENCIES AND BODIES,2102766204,1000076073
09.01.2018,CHILDREN'S SERVICES,NETPEX LTD CORPORATE SERVICES,"6,231.60",S24 CLA,EXTERNAL AGENCIES AND BODIES,2102766226,1000076073
09.01.2018,CHILDREN'S SERVICES,HOLMDENE HOUSING LTD,"5,350.00",SEMI INDEPENDENT,EXTERNAL AGENCIES AND BODIES,2102766195,1000032598
09.01.2018,CHILDREN'S SERVICES,STEP AHEAD SERVICES LTD,"2,014.29",SEMI INDEPENDENT,EXTERNAL AGENCIES AND BODIES,2102766202,1000036544
09.01.2018,CHILDREN'S SERVICES,LOOK AHEAD CARE AND SUPPORT LTD,"3,380.76",SEMI INDEPENDENT,EXTERNAL AGENCIES AND BODIES,2102766264,1000047299
09.01.2018,CHILDREN'S SERVICES,CONTACT PROFESSIONALS,475,SEMI INDEPENDENT,EXTERNAL AGENCIES AND BODIES,2102766200,1000057263
09.01.2018,CHILDREN'S SERVICES,RELA SUPPORT SERVICES LTD,"3,600.00",SEMI INDEPENDENT,EXTERNAL AGENCIES AND BODIES,2102766201,1000073128
09.01.2018,CHILDREN'S SERVICES,NETPEX LTD CORPORATE SERVICES,289.5,SEMI INDEPENDENT,OTHER PAYMENTS FOR CLIENTS,2102766194,1000076073
09.01.2018,CHILDREN'S SERVICES,NETPEX LTD CORPORATE SERVICES,"1,587.19",SEMI INDEPENDENT,EXTERNAL AGENCIES AND BODIES,2102766197,1000076073
09.01.2018,CHILDREN'S SERVICES,NETPEX LTD CORPORATE SERVICES,"4,500.00",SEMI INDEPENDENT,EXTERNAL AGENCIES AND BODIES,2102766196,1000076073
09.01.2018,CHILDREN'S SERVICES,SILVER BIRCH CARE LTD,"2,121.43",SEMI INDEPENDENT,EXTERNAL AGENCIES AND BODIES,2102766212,1000076525
09.01.2018,CHILDREN'S SERVICES,CAMERON SUPPORT SERVICES LTD,"4,227.85",SEMI INDEPENDENT,EXTERNAL AGENCIES AND BODIES,2102766193,1000079059
09.01.2018,CHILDREN'S SERVICES,CAMERON SUPPORT SERVICES LTD,"4,227.85",SEMI INDEPENDENT,EXTERNAL AGENCIES AND BODIES,2102766199,1000079059
09.01.2018,CHILDREN'S SERVICES,NATIONAL FOSTERING AGENCY,300,STAYING PUT,EXTERNAL AGENCIES AND BODIES,2102766234,1000038868
09.01.2018,CHILDREN'S SERVICES,NATIONAL FOSTERING AGENCY,720,STAYING PUT,EXTERNAL AGENCIES AND BODIES,2102766254,1000038868
09.01.2018,CHILDREN'S SERVICES,NATIONAL FOSTERING AGENCY,840,STAYING PUT,EXTERNAL AGENCIES AND BODIES,2102766257,1000038868
09.01.2018,CHILDREN'S SERVICES,NATIONAL FOSTERING AGENCY,"1,680.00",STAYING PUT,EXTERNAL AGENCIES AND BODIES,2102766227,1000038868
09.01.2018,CHILDREN'S SERVICES,NATIONAL FOSTERING AGENCY,"1,860.00",STAYING PUT,EXTERNAL AGENCIES AND BODIES,2102766213,1000038868
09.01.2018,CHILDREN'S SERVICES,NATIONAL FOSTERING AGENCY,"1,860.00",STAYING PUT,EXTERNAL AGENCIES AND BODIES,2102766243,1000038868
09.01.2018,CHILDREN'S SERVICES,COMPASS FOSTERING LONDON LTD,-775.32,STAYING PUT,EXTERNAL AGENCIES AND BODIES,2102766245,1000057908
09.01.2018,CHILDREN'S SERVICES,COMPASS FOSTERING LONDON LTD,"1,848.84",STAYING PUT,EXTERNAL AGENCIES AND BODIES,2102766210,1000057908
09.01.2018,CHILDREN'S SERVICES,SOUTH OF THE RIVER INVESTMENTS LTD,"3,738.60",TEMPORARY ACCOMMODATION,EXTERNAL AGENCIES AND BODIES,5902284739,1000073638
09.01.2018,CHILDREN'S SERVICES,A & M PROPERTY AND CONSTRUCTION LTD,"1,085.00",UASC SECTION 24,EXTERNAL AGENCIES AND BODIES,2102766263,1000014564
09.01.2018,CHILDREN'S SERVICES,HOLMDENE HOUSING LTD,975,UASC SECTION 24,EXTERNAL AGENCIES AND BODIES,2102766251,1000032598
09.01.2018,CHILDREN'S SERVICES,HOLMDENE HOUSING LTD,"1,850.00",UASC SECTION 24,EXTERNAL AGENCIES AND BODIES,2102766215,1000032598
09.01.2018,CHILDREN'S SERVICES,HOLMDENE HOUSING LTD,"1,850.00",UASC SECTION 24,EXTERNAL AGENCIES AND BODIES,2102766231,1000032598
09.01.2018,CHILDREN'S SERVICES,HOLMDENE HOUSING LTD,"1,850.00",UASC SECTION 24,EXTERNAL AGENCIES AND BODIES,2102766246,1000032598
09.01.2018,CHILDREN'S SERVICES,HOLMDENE HOUSING LTD,"1,850.00",UASC SECTION 24,EXTERNAL AGENCIES AND BODIES,2102766252,1000032598
09.01.2018,CHILDREN'S SERVICES,HOLMDENE HOUSING LTD,"1,850.00",UASC SECTION 24,EXTERNAL AGENCIES AND BODIES,2102766256,1000032598
09.01.2018,CHILDREN'S SERVICES,HOLMDENE HOUSING LTD,"2,800.00",UASC SECTION 24,EXTERNAL AGENCIES AND BODIES,2102766222,1000032598
09.01.2018,CHILDREN'S SERVICES,LOOK AHEAD CARE AND SUPPORT LTD,"1,816.64",UASC SECTION 24,EXTERNAL AGENCIES AND BODIES,2102766206,1000047299
09.01.2018,CHILDREN'S SERVICES,PURPLE PEBBLES(CHILD CARE) SERVICES,350,UASC SECTION 24,EXTERNAL AGENCIES AND BODIES,2102766223,1000070705
09.01.2018,CHILDREN'S SERVICES,PURPLE PEBBLES(CHILD CARE) SERVICES,"1,284.29",UASC SECTION 24,EXTERNAL AGENCIES AND BODIES,2102766225,1000070705
09.01.2018,CHILDREN'S SERVICES,PURPLE PEBBLES(CHILD CARE) SERVICES,"1,727.14",UASC SECTION 24,EXTERNAL AGENCIES AND BODIES,2102766221,1000070705
09.01.2018,CHILDREN'S SERVICES,HOLMDENE HOUSING LTD,"1,850.00",UNACCOMPANIED ASYLUM CHILDREN 16-17,EXTERNAL AGENCIES AND BODIES,2102766192,1000032598
09.01.2018,COMMUNITIES,KENNINGTON PARK HSE MGMT CO-OP,"16,092.00",KENNINGTON PK CO-OP,M&M ALLOWANCE CO-OPS,5902284368,1000056189
09.01.2018,COMMUNITIES,ACE FAST LETTINGS LTD,"1,085.00",NO RECOURSE TO PUBLIC FUNDS,ACCOMMODATION CHARGES,5902284799,1000076780
09.01.2018,COMMUNITIES,STYLES HOUSE TMO,"17,650.75",STYLES HOUSE TMO,M&M ALLOWANCE CO-OPS,5902284574,1000072012
09.01.2018,CUSTOMER EXPERIENCE,PLAN LONDON LTD,"1,750.00",SALES & ACQUISITIONS,PROFESSIONAL FEES,5902284721,1000056065
09.01.2018,CUSTOMER EXPERIENCE HGF,SOUTH OF THE RIVER INVESTMENTS LTD,"9,000.00",NIGHTLY TA (NSC),EXTERNAL AGENCIES AND BODIES,5902284802,1000073638
09.01.2018,CUSTOMER EXPERIENCE HGF,S A PROPERTY MANAGEMENT LTD,"12,848.00",NIGHTLY TA (NSC),EXTERNAL AGENCIES AND BODIES,5902284755,1000075764
09.01.2018,CUSTOMER EXPERIENCE HGF,S A PROPERTY MANAGEMENT LTD,"18,645.00",NIGHTLY TA (NSC),EXTERNAL AGENCIES AND BODIES,5902284748,1000075764
09.01.2018,CUSTOMER EXPERIENCE HGF,APEX HOUSING SOLUTIONS LTD,"3,268.00",NIGHTLY TA (NSC),EXTERNAL AGENCIES AND BODIES,5902284745,1000079786
09.01.2018,ENVIRONMENT AND LEISURE,GROUND CONTROL LIMITED,"99,600.93",CAPITAL PS (LEISURE),CONSTRUCTION FEES  - EXTERNAL,2102766008,3000001551
09.01.2018,ENVIRONMENT AND SOCIAL REGENERATION,EYRE & ELLISTON LTD,272.3,STORES/LOGISTICS,CREDITORS -GR/IR CLEARING ACCOUNT,5902284666,1000056664
09.01.2018,ENVIRONMENT AND SOCIAL REGENERATION,EYRE & ELLISTON LTD,325,STORES/LOGISTICS,CREDITORS -GR/IR CLEARING ACCOUNT,5902284667,1000056664
09.01.2018,ENVIRONMENT AND SOCIAL REGENERATION,EYRE & ELLISTON LTD,395,STORES/LOGISTICS,CREDITORS -GR/IR CLEARING ACCOUNT,5902284666,1000056664
09.01.2018,ENVIRONMENT AND SOCIAL REGENERATION,EYRE & ELLISTON LTD,430,STORES/LOGISTICS,CREDITORS -GR/IR CLEARING ACCOUNT,5902284667,1000056664
09.01.2018,ENVIRONMENT AND SOCIAL REGENERATION,EYRE & ELLISTON LTD,610,STORES/LOGISTICS,CREDITORS -GR/IR CLEARING ACCOUNT,5902284667,1000056664
09.01.2018,ENVIRONMENT AND SOCIAL REGENERATION,EYRE & ELLISTON LTD,"1,194.80",STORES/LOGISTICS,CREDITORS -GR/IR CLEARING ACCOUNT,5902284666,1000056664
09.01.2018,ENVIRONMENT DIRECTORATE,ARNOLD CLARK VEHICLE MANAGEMENT,-319.73,CAR LEASING CTRL A/C,VEHICLE LEASING CHARGES,5902284800,1000079116
09.01.2018,ENVIRONMENT DIRECTORATE,ARNOLD CLARK VEHICLE MANAGEMENT,319.73,CAR LEASING CTRL A/C,VEHICLE LEASING CHARGES,5902284786,1000079116
09.01.2018,ENVIRONMENT DIRECTORATE,LONDON HIRE LIMITED,-356,COMMERCIAL VEH CTRL A/C,HIRED VEHICLES,5902284766,1383812
09.01.2018,ENVIRONMENT DIRECTORATE,LONDON HIRE LIMITED,645,COMMERCIAL VEH CTRL A/C,HIRED VEHICLES,5902284696,1383812
09.01.2018,ENVIRONMENT DIRECTORATE,LONDON HIRE LIMITED,675,COMMERCIAL VEH CTRL A/C,HIRED VEHICLES,5902284694,1383812
09.01.2018,ENVIRONMENT DIRECTORATE,LONDON HIRE LIMITED,679,COMMERCIAL VEH CTRL A/C,HIRED VEHICLES,5902284756,1383812
09.01.2018,ENVIRONMENT DIRECTORATE,LONDON HIRE LIMITED,"1,068.51",COMMERCIAL VEH CTRL A/C,HIRED VEHICLES,5902284683,1383812
09.01.2018,ENVIRONMENT DIRECTORATE,LONDON HIRE LIMITED,"1,120.00",COMMERCIAL VEH CTRL A/C,HIRED VEHICLES,5902284758,1383812
09.01.2018,ENVIRONMENT DIRECTORATE,LONDON HIRE LIMITED,"2,578.02",COMMERCIAL VEH CTRL A/C,HIRED VEHICLES,5902284690,1383812
09.01.2018,ENVIRONMENT DIRECTORATE,LONDON HIRE LIMITED,"6,231.50",COMMERCIAL VEH CTRL A/C,HIRED VEHICLES,5902284691,1383812
09.01.2018,ENVIRONMENT DIRECTORATE,LONDON HIRE LIMITED,"19,008.50",COMMERCIAL VEH CTRL A/C,HIRED VEHICLES,5902284764,1383812
09.01.2018,ENVIRONMENT DIRECTORATE,LONDON HIRE LIMITED,"29,116.45",COMMERCIAL VEH CTRL A/C,HIRED VEHICLES,5902284762,1383812
09.01.2018,ENVIRONMENT DIRECTORATE,SCOT GROUP LIMITED,264.32,COMMERCIAL VEH CTRL A/C,HIRED VEHICLES,5902284796,1709512
09.01.2018,ENVIRONMENT DIRECTORATE,SCOT GROUP LIMITED,294,COMMERCIAL VEH CTRL A/C,HIRED VEHICLES,5902284792,1709512
09.01.2018,ENVIRONMENT DIRECTORATE,SCOT GROUP LIMITED,378.56,COMMERCIAL VEH CTRL A/C,HIRED VEHICLES,5902284797,1709512
09.01.2018,ENVIRONMENT DIRECTORATE,SCOT GROUP LIMITED,504.56,COMMERCIAL VEH CTRL A/C,HIRED VEHICLES,5902284783,1709512
09.01.2018,ENVIRONMENT DIRECTORATE,DAWSON RENTALS BUS & COACH LTD,335,COMMERCIAL VEH CTRL A/C,HIRED VEHICLES,5902284700,1000042174
09.01.2018,ENVIRONMENT DIRECTORATE,DAWSON RENTALS BUS & COACH LTD,335,COMMERCIAL VEH CTRL A/C,HIRED VEHICLES,5902284704,1000042174
09.01.2018,ENVIRONMENT DIRECTORATE,NORTHGATE VEHICLE HIRE (SOUTH EAST),260,COMMERCIAL VEH CTRL A/C,HIRED VEHICLES,5902284741,1000044807
09.01.2018,ENVIRONMENT DIRECTORATE,NORTHGATE VEHICLE HIRE (SOUTH EAST),467.87,COMMERCIAL VEH CTRL A/C,HIRED VEHICLES,5902284740,1000044807
09.01.2018,ENVIRONMENT DIRECTORATE,NORTHGATE VEHICLE HIRE (SOUTH EAST),467.87,COMMERCIAL VEH CTRL A/C,HIRED VEHICLES,5902284743,1000044807
09.01.2018,ENVIRONMENT DIRECTORATE,GULLIVERS TRUCK HIRE LTD,265,COMMERCIAL VEH CTRL A/C,HIRED VEHICLES,5902284718,1000052656
09.01.2018,ENVIRONMENT DIRECTORATE,GULLIVERS TRUCK HIRE LTD,265,COMMERCIAL VEH CTRL A/C,HIRED VEHICLES,5902284722,1000052656
09.01.2018,ENVIRONMENT DIRECTORATE,GULLIVERS TRUCK HIRE LTD,265,COMMERCIAL VEH CTRL A/C,HIRED VEHICLES,5902284723,1000052656
09.01.2018,ENVIRONMENT DIRECTORATE,GULLIVERS TRUCK HIRE LTD,915,COMMERCIAL VEH CTRL A/C,HIRED VEHICLES,5902284725,1000052656
09.01.2018,ENVIRONMENT DIRECTORATE,DAGENHAM MOTORS,364,COMMERCIAL VEH CTRL A/C,HIRED VEHICLES,5902284705,1000065891
09.01.2018,ENVIRONMENT DIRECTORATE,DAWSON RENTALS SWEEPERS,"2,100.00",COMMERCIAL VEH CTRL A/C,HIRED VEHICLES,5902284681,1000068168
09.01.2018,ENVIRONMENT DIRECTORATE,DAWSON RENTALS SWEEPERS,"2,100.00",COMMERCIAL VEH CTRL A/C,HIRED VEHICLES,5902284684,1000068168
09.01.2018,ENVIRONMENT DIRECTORATE,DAWSON RENTALS SWEEPERS,"2,100.00",COMMERCIAL VEH CTRL A/C,HIRED VEHICLES,5902284686,1000068168
09.01.2018,ENVIRONMENT DIRECTORATE,DAWSON RENTALS SWEEPERS,"2,100.00",COMMERCIAL VEH CTRL A/C,HIRED VEHICLES,5902284689,1000068168
09.01.2018,ENVIRONMENT DIRECTORATE,CLOSE BROTHERS VEHICLE HIRE LTD,256.2,COMMERCIAL VEH CTRL A/C,HIRED VEHICLES,5902284710,1000074394
09.01.2018,ENVIRONMENT DIRECTORATE,CLOSE BROTHERS VEHICLE HIRE LTD,351.75,COMMERCIAL VEH CTRL A/C,HIRED VEHICLES,5902284707,1000074394
09.01.2018,ENVIRONMENT DIRECTORATE,CALLOW MASTER LOCKSMITHS,325.96,ENGINEERING CRAFTS,OTHER CONTRACTORS,5902284586,11179552
09.01.2018,ENVIRONMENT DIRECTORATE,AGENTIS WORKWEAR LTD,"1,195.65",MANAGEMENT TEAM,"CLOTHING, UNIFORMS & LAUNDRY",5902284608,1000065561
09.01.2018,ENVIRONMENT DIRECTORATE,CONTEGO SAFETY SOLUTIONS LTD,"1,891.25",MANAGEMENT TEAM,MATERIALS,5902284615,1000077673
09.01.2018,F & C S EXCLUDING CORPORATE BUDGETS,NORTHGATE PUBLIC SERVICES (UK) LTD,"9,656.96",ADMINISTRATIVE SUPPORT,POSTAGES,5902284763,1000037405
09.01.2018,F & C S EXCLUDING CORPORATE BUDGETS,DSI BILLING SERVICES LTD,"2,269.09",ADMINISTRATIVE SUPPORT,POSTAGES,5902284754,1000058640
09.01.2018,F & C S EXCLUDING CORPORATE BUDGETS,CAPITA BUSINESS SERVICES LTD,"5,718.51",CAPITA,OTHER CONTRACTORS,5902284776,1000049446
09.01.2018,F & C S EXCLUDING CORPORATE BUDGETS,CAPITA BUSINESS SERVICES LTD,"71,750.48",CAPITA,OTHER CONTRACTORS,5902284779,1000049446
09.01.2018,F & C S EXCLUDING CORPORATE BUDGETS,BDO LLP,431.81,INTERNAL AUDIT CONTRACTS,PAYMENTS FOR FINANCIAL SERVICES,5902284747,1000057898
09.01.2018,F & C S EXCLUDING CORPORATE BUDGETS,BDO LLP,"21,618.44",INTERNAL AUDIT CONTRACTS,PAYMENTS FOR FINANCIAL SERVICES,5902284747,1000057898
09.01.2018,HOUSING GENERAL FUND,SLIEVERUE PROJECT MANAGEMENT LTD,"1,000.00",CAPITAL PS (HOUSING GF),CONSTRUCTION,2102766006,3000002030
09.01.2018,HOUSING GENERAL FUND,SLIEVERUE PROJECT MANAGEMENT LTD,"3,700.00",CAPITAL PS (HOUSING GF),CONSTRUCTION,2102766006,3000002030
09.01.2018,HOUSING GENERAL FUND,SLIEVERUE PROJECT MANAGEMENT LTD,"4,200.00",CAPITAL PS (HOUSING GF),CONSTRUCTION,2102766006,3000002030
09.01.2018,HOUSING GENERAL FUND,SLIEVERUE PROJECT MANAGEMENT LTD,"10,500.00",CAPITAL PS (HOUSING GF),CONSTRUCTION,2102766006,3000002030
09.01.2018,HOUSING GENERAL FUND,SLIEVERUE PROJECT MANAGEMENT LTD,"14,500.00",CAPITAL PS (HOUSING GF),CONSTRUCTION,2102766006,3000002030
09.01.2018,HOUSING HRA,CALFORD SEADEN LLP,"20,688.15",CAPITAL PS (HRA),CONSTRUCTION FEES  - EXTERNAL,5902284622,1061592
09.01.2018,HOUSING HRA,BEAUMONT LEGAL,"30,000.00",CAPITAL PS (HRA),CAPITAL GRANTS,2102766357,1000055419
09.01.2018,LEISURE DIRECTORATE,STANBURY BUILDING SERVICES LTD,545,CEMETERIES,OTHER R&M,2102766007,3000001967
09.01.2018,LEISURE DIRECTORATE,RED R DESIGN,325,COMMUNITY SPORTS DEVELOPMENT,MARKETING & PUBLICITY SERVICES,5902284611,1000035984
09.01.2018,LEISURE DIRECTORATE,EDF ENERGY PLC,"1,060.18",PARKS SERVICES DEVELOPMENT,ELECTRICITY,5902284569,1008746
09.01.2018,LEISURE DIRECTORATE,EDF ENERGY PLC,"1,060.18",PARKS SERVICES DEVELOPMENT,ELECTRICITY,5902284572,1008746
09.01.2018,LEISURE DIRECTORATE,EDF ENERGY PLC,"1,060.18",PARKS SERVICES DEVELOPMENT,ELECTRICITY,5902284576,1008746
09.01.2018,LEISURE DIRECTORATE,BOLINDA UK LTD,"5,000.00",STOCK SERVICES,SUBSCRIPTIONS,5902284706,1000075655
09.01.2018,MODERNISATION HGF,SODEXHO PASS LTD,-656,CHILDCARE VOUCHERS,OTHER EMPLOYEE EXPENSES,5902284692,1000048650
09.01.2018,MODERNISATION HGF,SODEXHO PASS LTD,692.58,CHILDCARE VOUCHERS,OTHER EMPLOYEE EXPENSES,5902284682,1000048650
09.01.2018,MODERNISATION HGF,SODEXHO PASS LTD,"23,086.06",CHILDCARE VOUCHERS,OTHER EMPLOYEE EXPENSES,5902284682,1000048650
09.01.2018,MODERNISATION HGF,SHERRIDAN HUGHES,950,OCCUPATIONAL ASSESSMENT,CONSULTANTS SERVICES,5902284738,1000074250
09.01.2018,MODERNISATION HGF,ANTALIS LTD,"1,166.28",QUEENS RD 1 (BLOCK F),STATIONERY,5902284749,1000066919
09.01.2018,PLANNING AND TRANSPORT,WAGSTAFFS DESIGN LTD,"6,800.00",PLANNING POLICY TEAM,CONSULTANTS SERVICES,5902284711,1000077793
09.01.2018,PLANNING AND TRANSPORT,CONWAY AECOM LTD,"8,836.90",TRANSPORT POLICY AND PROGRAMS,CONSULTANTS SERVICES,5902284731,1000071205
09.01.2018,REGENERATION,NIKKI SPENCER LTD,"1,750.00",MASTER PLAN-H/WAY & TRANS INTERCHANGE,MARKETING & PUBLICITY SERVICES,5902284587,1000071795
09.01.2018,RESIDENT SERVICES,VIBRANT ENERGY MATTERS LTD,"1,317.60",ENERGY MANAGEMENT,PROFESSIONAL FEES,5902284642,1000068154
09.01.2018,RESIDENT SERVICES,VIBRANT ENERGY MATTERS LTD,"1,659.20",ENERGY MANAGEMENT,PROFESSIONAL FEES,5902284635,1000068154
09.01.2018,SOUTHWARK BUILDING SERVICES,TASCOR SERVICES LTD,"1,164.00",DEPOT COSTS,TRAINING,5902284732,1000079497
10.01.2018,ADULT SOCIAL CARE,THAMES REACH,"1,010.50",LD/MH/SM MANAGEMENT,HIRE OF FACILITIES AND EQUIPMENT,5902284888,1723415
10.01.2018,ASSET MANAGEMENT,ADRIAN MOODY,392,ADAPTATIONS,BUILDING R&M,5902284882,1000080297
10.01.2018,ASSET MANAGEMENT,ADRIAN MOODY,417.05,ADAPTATIONS,BUILDING R&M,5902284879,1000080297
10.01.2018,ASSET MANAGEMENT,A & E ELKINS LTD,"2,348.79",DISREPAIR,BUILDING R&M,5902285140,1000013068
10.01.2018,CENTRAL FUNCTIONS,EXPRESS DRAINAGE SOLUTION,"3,500.00",GARAGE REPAIRS,PROFESSIONAL FEES,5902284832,1000079307
10.01.2018,CENTRAL FUNCTIONS,EDF ENERGY PLC,274.04,HEATING ACCOUNT,ELECTRICITY,5902284839,1008746
10.01.2018,CENTRAL FUNCTIONS,VEOLIA ES (UK)LTD,"151,714.99",HEATING ACCOUNT,GAS,5902284804,1824835
10.01.2018,CENTRAL FUNCTIONS,AMPHLETT LISSIMORE SOLCITORS,"9,259.63",HOME OWNERSHIP INCOME,HOUSING RESIDENTIAL RENTS,2102766810,1398651
10.01.2018,CENTRAL FUNCTIONS,KATY L SAMWELL,553.25,HOME OWNERSHIP INCOME,HOUSING RESIDENTIAL RENTS,2102766824,1000070042
10.01.2018,CENTRAL FUNCTIONS,TIM BURTON,"2,533.39",HOME OWNERSHIP INCOME,HOUSING RESIDENTIAL RENTS,2102766823,1000076696
10.01.2018,CHILDREN AND ADULT,MLM CONSULTING ENGINEERS LTD,"4,480.00",CAPITAL PS (EDUCATION),CONSTRUCTION FEES,5902284834,1000059806
10.01.2018,CHILDREN AND ADULT,REDACTED PERSONAL DATA,268.36,RESIDENCE ORDERS,PAYMENTS TO CARERS,2102766725,REDACTED
10.01.2018,CHILDREN AND ADULT,REDACTED PERSONAL DATA,269.08,RESIDENCE ORDERS,PAYMENTS TO CARERS,2102766675,REDACTED
10.01.2018,CHILDREN AND ADULT,REDACTED PERSONAL DATA,264.16,RESIDENCE ORDERS,PAYMENTS TO CARERS,2102766648,REDACTED
10.01.2018,CHILDREN AND ADULT,REDACTED PERSONAL DATA,433.36,SPECIAL GUARDIANSHIP,PAYMENTS TO CARERS,2102766759,REDACTED
10.01.2018,CHILDREN AND ADULT,REDACTED PERSONAL DATA,263.71,SPECIAL GUARDIANSHIP,PAYMENTS TO CARERS,2102766755,REDACTED
10.01.2018,CHILDREN AND ADULT,REDACTED PERSONAL DATA,276.1,SPECIAL GUARDIANSHIP,PAYMENTS TO CARERS,2102766691,REDACTED
10.01.2018,CHILDREN AND ADULT,REDACTED PERSONAL DATA,269.08,SPECIAL GUARDIANSHIP,PAYMENTS TO CARERS,2102766695,REDACTED
10.01.2018,CHILDREN AND ADULT,REDACTED PERSONAL DATA,269.08,SPECIAL GUARDIANSHIP,PAYMENTS TO CARERS,2102766569,REDACTED
10.01.2018,CHILDREN AND ADULT,REDACTED PERSONAL DATA,350,SPECIAL GUARDIANSHIP,PAYMENTS TO CARERS,2102766606,REDACTED
10.01.2018,CHILDREN AND ADULT,REDACTED PERSONAL DATA,354.59,SPECIAL GUARDIANSHIP,PAYMENTS TO CARERS,2102766577,REDACTED
10.01.2018,CHILDREN AND ADULT,REDACTED PERSONAL DATA,525,SPECIAL GUARDIANSHIP,PAYMENTS TO CARERS,2102766697,REDACTED
10.01.2018,CHILDREN AND ADULT,REDACTED PERSONAL DATA,525,SPECIAL GUARDIANSHIP,PAYMENTS TO CARERS,2102766716,REDACTED
10.01.2018,CHILDREN AND ADULT,REDACTED PERSONAL DATA,525,SPECIAL GUARDIANSHIP,PAYMENTS TO CARERS,2102766751,REDACTED
10.01.2018,CHILDREN AND ADULT,REDACTED PERSONAL DATA,303.97,SPECIAL GUARDIANSHIP,PAYMENTS TO CARERS,2102766468,REDACTED
10.01.2018,CHILDREN AND ADULT,REDACTED PERSONAL DATA,268.36,SPECIAL GUARDIANSHIP,PAYMENTS TO CARERS,2102766458,REDACTED
10.01.2018,CHILDREN AND ADULT,REDACTED PERSONAL DATA,269.08,SPECIAL GUARDIANSHIP,PAYMENTS TO CARERS,2102766574,REDACTED
10.01.2018,CHILDREN'S SERVICES,ALBION PRIMARY SCHOOL,"5,498.75",ALBION JMI,HIGH NEEDS - TOP UP FUNDING,5902284890,5001000000
10.01.2018,CHILDREN'S SERVICES,ALBION PRIMARY SCHOOL,"11,527.00",ALBION JMI,EARLY YEARS - 3 AND 4 YEAR OLDS,5902284892,5001000000
10.01.2018,CHILDREN'S SERVICES,ALBION PRIMARY SCHOOL,"152,350.55",ALBION JMI,SCHOOLS CAPITATION,5902284891,5001000000
10.01.2018,CHILDREN'S SERVICES,ALFRED SALTER PRIMARY SCHOOL,"13,555.00",ALFRED SALTER PRIMARY,EARLY YEARS - 3 AND 4 YEAR OLDS,5902284895,5001000005
10.01.2018,CHILDREN'S SERVICES,ALFRED SALTER PRIMARY SCHOOL,"21,738.75",ALFRED SALTER PRIMARY,HIGH NEEDS - TOP UP FUNDING,5902284893,5001000005
10.01.2018,CHILDREN'S SERVICES,ALFRED SALTER PRIMARY SCHOOL,"177,333.35",ALFRED SALTER PRIMARY,SCHOOLS CAPITATION,5902284894,5001000005
10.01.2018,CHILDREN'S SERVICES,BELLENDEN PRIMARY SCHOOL,"6,759.00",BELLENDEN JMI,HIGH NEEDS - TOP UP FUNDING,5902284896,5001000007
10.01.2018,CHILDREN'S SERVICES,BELLENDEN PRIMARY SCHOOL,"9,468.00",BELLENDEN JMI,EARLY YEARS - 3 AND 4 YEAR OLDS,5902284898,5001000007
10.01.2018,CHILDREN'S SERVICES,BELLENDEN PRIMARY SCHOOL,"106,331.04",BELLENDEN JMI,SCHOOLS CAPITATION,5902284897,5001000007
10.01.2018,CHILDREN'S SERVICES,BEORMUND PRIMARY SCHOOL,"71,622.67",BEORMUND SCHOOL,HIGH NEEDS - BASE FUNDING,5902284899,5001000008
10.01.2018,CHILDREN'S SERVICES,BESSEMER GRANGE PRIMARY SCHOOL,"6,558.00",BESSEMER GRNGE PRIMARY,HIGH NEEDS - TOP UP FUNDING,5902284900,5001000009
10.01.2018,CHILDREN'S SERVICES,BESSEMER GRANGE PRIMARY SCHOOL,"19,366.00",BESSEMER GRNGE PRIMARY,EARLY YEARS - 3 AND 4 YEAR OLDS,5902284902,5001000009
10.01.2018,CHILDREN'S SERVICES,BESSEMER GRANGE PRIMARY SCHOOL,"229,624.19",BESSEMER GRNGE PRIMARY,SCHOOLS CAPITATION,5902284901,5001000009
10.01.2018,CHILDREN'S SERVICES,BOUCHER C OF E PRIMARY SCHOOL,"4,238.00",BOUTCHER GRANGE JMI,HIGH NEEDS - TOP UP FUNDING,5902284904,5001000011
10.01.2018,CHILDREN'S SERVICES,BOUCHER C OF E PRIMARY SCHOOL,"96,275.90",BOUTCHER GRANGE JMI,SCHOOLS CAPITATION,5902284905,5001000011
10.01.2018,CHILDREN'S SERVICES,BRUNSWICK PARK PRIMARY SCHOOL,"13,568.00",BRUNSWICK PARK JM,EARLY YEARS - 3 AND 4 YEAR OLDS,5902284910,5001000013
10.01.2018,CHILDREN'S SERVICES,BRUNSWICK PARK PRIMARY SCHOOL,"14,834.17",BRUNSWICK PARK JM,HIGH NEEDS - TOP UP FUNDING,5902284907,5001000013
10.01.2018,CHILDREN'S SERVICES,BRUNSWICK PARK PRIMARY SCHOOL,"16,666.67",BRUNSWICK PARK JM,HIGH NEEDS - TOP UP FUNDING,5902284908,5001000013
10.01.2018,CHILDREN'S SERVICES,BRUNSWICK PARK PRIMARY SCHOOL,"21,645.00",BRUNSWICK PARK JM,HIGH NEEDS - TOP UP FUNDING,5902284906,5001000013
10.01.2018,CHILDREN'S SERVICES,BRUNSWICK PARK PRIMARY SCHOOL,"211,245.23",BRUNSWICK PARK JM,SCHOOLS CAPITATION,5902284909,5001000013
10.01.2018,CHILDREN'S SERVICES,CASTLE WATER LTD,"1,126.54",BUILDING SUMNER,WATER,5902285104,1000078867
10.01.2018,CHILDREN'S SERVICES,CAMELOT PRIMARY SCHOOL,"9,536.25",CAMELOT JMI,HIGH NEEDS - TOP UP FUNDING,5902284911,5001000014
10.01.2018,CHILDREN'S SERVICES,CAMELOT PRIMARY SCHOOL,"11,160.00",CAMELOT JMI,EARLY YEARS - 3 AND 4 YEAR OLDS,5902284913,5001000014
10.01.2018,CHILDREN'S SERVICES,CAMELOT PRIMARY SCHOOL,"222,700.93",CAMELOT JMI,SCHOOLS CAPITATION,5902284912,5001000014
10.01.2018,CHILDREN'S SERVICES,CATHEDRAL SCHOOL OF ST SAVIOUR & MARY,"7,829.00",CATHDRL SCH OF ST,EARLY YEARS - 3 AND 4 YEAR OLDS,5902285081,5001000088
10.01.2018,CHILDREN'S SERVICES,CATHEDRAL SCHOOL OF ST SAVIOUR & MARY,"85,260.21",CATHDRL SCH OF ST,SCHOOLS CAPITATION,5902285080,5001000088
10.01.2018,CHILDREN'S SERVICES,OFFICE DEPOT UK LTD,-938.16,CENTRAL SUPPORT,STATIONERY,5902283263,1109426
10.01.2018,CHILDREN'S SERVICES,CHARLES DICKENS PRIMARY SCHOOL,"3,380.00",CHARLES DICKENS JMI,HIGH NEEDS - TOP UP FUNDING,5902284914,5001000015
10.01.2018,CHILDREN'S SERVICES,CHARLES DICKENS PRIMARY SCHOOL,"12,327.00",CHARLES DICKENS JMI,EARLY YEARS - 3 AND 4 YEAR OLDS,5902284916,5001000015
10.01.2018,CHILDREN'S SERVICES,CHARLES DICKENS PRIMARY SCHOOL,"169,824.70",CHARLES DICKENS JMI,SCHOOLS CAPITATION,5902284915,5001000015
10.01.2018,CHILDREN'S SERVICES,CHARLOTTE  SHARMAN PRIMARY SCHOOL,"5,298.00",CHARLOTTE SHARMAN JMI,HIGH NEEDS - TOP UP FUNDING,5902284917,5001000016
10.01.2018,CHILDREN'S SERVICES,CHARLOTTE  SHARMAN PRIMARY SCHOOL,"8,904.00",CHARLOTTE SHARMAN JMI,EARLY YEARS - 3 AND 4 YEAR OLDS,5902284919,5001000016
10.01.2018,CHILDREN'S SERVICES,CHARLOTTE  SHARMAN PRIMARY SCHOOL,"136,815.15",CHARLOTTE SHARMAN JMI,SCHOOLS CAPITATION,5902284918,5001000016
10.01.2018,CHILDREN'S SERVICES,CHERRY GARDEN SCHOOL,"117,658.00",CHERRY GARDEN,HIGH NEEDS - BASE FUNDING,5902284925,5001000020
10.01.2018,CHILDREN'S SERVICES,COBOURG PRIMARY SCHOOL,"2,119.00",COBURG JMI,HIGH NEEDS - TOP UP FUNDING,5902284926,5001000021
10.01.2018,CHILDREN'S SERVICES,COBOURG PRIMARY SCHOOL,"10,964.00",COBURG JMI,EARLY YEARS - 3 AND 4 YEAR OLDS,5902284928,5001000021
10.01.2018,CHILDREN'S SERVICES,COBOURG PRIMARY SCHOOL,"179,251.41",COBURG JMI,SCHOOLS CAPITATION,5902284927,5001000021
10.01.2018,CHILDREN'S SERVICES,COMBER GROVE PRIMARY SCHOOL,"6,357.50",COMBER GROVE PRIMARY,HIGH NEEDS - TOP UP FUNDING,5902284929,5001000022
10.01.2018,CHILDREN'S SERVICES,COMBER GROVE PRIMARY SCHOOL,"10,423.00",COMBER GROVE PRIMARY,EARLY YEARS - 3 AND 4 YEAR OLDS,5902284931,5001000022
10.01.2018,CHILDREN'S SERVICES,COMBER GROVE PRIMARY SCHOOL,"132,874.90",COMBER GROVE PRIMARY,SCHOOLS CAPITATION,5902284930,5001000022
10.01.2018,CHILDREN'S SERVICES,CRAMPTON PRIMARY SCHOOL,"8,878.00",CRAMPTON JMI,HIGH NEEDS - TOP UP FUNDING,5902284932,5001000023
10.01.2018,CHILDREN'S SERVICES,CRAMPTON PRIMARY SCHOOL,"93,970.06",CRAMPTON JMI,SCHOOLS CAPITATION,5902284933,5001000023
10.01.2018,CHILDREN'S SERVICES,CRAWFORD PRIMARY SCHOOL,"4,640.00",CRAWFORD JMI,HIGH NEEDS - TOP UP FUNDING,5902284934,5001000024
10.01.2018,CHILDREN'S SERVICES,CRAWFORD PRIMARY SCHOOL,"13,988.00",CRAWFORD JMI,EARLY YEARS - 3 AND 4 YEAR OLDS,5902284936,5001000024
10.01.2018,CHILDREN'S SERVICES,CRAWFORD PRIMARY SCHOOL,"218,025.97",CRAWFORD JMI,SCHOOLS CAPITATION,5902284935,5001000024
10.01.2018,CHILDREN'S SERVICES,DULWICH WOOD CHILDRENS CENTRE,"3,420.00",D.WOOD - CENTRAL,"SCHOOLS CAPITATION, STANDARDS FUND",2102766369,5001000099
10.01.2018,CHILDREN'S SERVICES,DULWICH WOOD CHILDRENS CENTRE,"53,378.21",D.WOOD - CENTRAL,EARLY YEARS - 3 AND 4 YEAR OLDS,5902285094,5001000099
10.01.2018,CHILDREN'S SERVICES,DOG KENNEL HILL PRIMARY SCHOOL,"9,938.00",DOG KENNEL HILL JMI,HIGH NEEDS - TOP UP FUNDING,5902284937,5001000025
10.01.2018,CHILDREN'S SERVICES,DOG KENNEL HILL PRIMARY SCHOOL,"14,897.00",DOG KENNEL HILL JMI,EARLY YEARS - 3 AND 4 YEAR OLDS,5902284939,5001000025
10.01.2018,CHILDREN'S SERVICES,DOG KENNEL HILL PRIMARY SCHOOL,"178,472.36",DOG KENNEL HILL JMI,SCHOOLS CAPITATION,5902284938,5001000025
10.01.2018,CHILDREN'S SERVICES,DULWICH VILLAGE CE INFANTS SCHOOL,"1,060.00",DULWICH VILLAGE I,HIGH NEEDS - TOP UP FUNDING,5902284940,5001000027
10.01.2018,CHILDREN'S SERVICES,DULWICH VILLAGE CE INFANTS SCHOOL,"103,300.65",DULWICH VILLAGE I,SCHOOLS CAPITATION,5902284941,5001000027
10.01.2018,CHILDREN'S SERVICES,YOUTHINMIND LTD,285,EDUCATIONAL PSYCHOLOGY - SEND,OP LEASE/HIRE CHARGES:PLANT/EQUIP/FURNIT,5902285205,1000080456
10.01.2018,CHILDREN'S SERVICES,ENGLISH MARTYRS RC PRIMARY SCHOOL,"5,498.75",ENGLISH MARTYRS JMI,HIGH NEEDS - TOP UP FUNDING,5902284948,5001000030
10.01.2018,CHILDREN'S SERVICES,ENGLISH MARTYRS RC PRIMARY SCHOOL,"10,126.00",ENGLISH MARTYRS JMI,EARLY YEARS - 3 AND 4 YEAR OLDS,5902284950,5001000030
10.01.2018,CHILDREN'S SERVICES,ENGLISH MARTYRS RC PRIMARY SCHOOL,"159,582.36",ENGLISH MARTYRS JMI,SCHOOLS CAPITATION,5902284949,5001000030
10.01.2018,CHILDREN'S SERVICES,PHOENIX PRIMARY SCHOOL,"12,458.75",EVELINE LOWE JMI,HIGH NEEDS - TOP UP FUNDING,5902284952,5001000032
10.01.2018,CHILDREN'S SERVICES,PHOENIX PRIMARY SCHOOL,"14,987.00",EVELINE LOWE JMI,EARLY YEARS - 3 AND 4 YEAR OLDS,5902284954,5001000032
10.01.2018,CHILDREN'S SERVICES,PHOENIX PRIMARY SCHOOL,"218,777.29",EVELINE LOWE JMI,SCHOOLS CAPITATION,5902284953,5001000032
10.01.2018,CHILDREN'S SERVICES,FRIARS PRIMARY SCHOOL,"3,178.75",FRIARS SCHOOL,HIGH NEEDS - TOP UP FUNDING,5902284955,5001000033
10.01.2018,CHILDREN'S SERVICES,FRIARS PRIMARY SCHOOL,"4,673.00",FRIARS SCHOOL,EARLY YEARS - 3 AND 4 YEAR OLDS,5902284957,5001000033
10.01.2018,CHILDREN'S SERVICES,FRIARS PRIMARY SCHOOL,"88,561.40",FRIARS SCHOOL,SCHOOLS CAPITATION,5902284956,5001000033
10.01.2018,CHILDREN'S SERVICES,GOODRICH PRIMARY SCHOOL,"9,737.00",GOODRICH JMI,HIGH NEEDS - TOP UP FUNDING,5902284942,5001000028
10.01.2018,CHILDREN'S SERVICES,GOODRICH PRIMARY SCHOOL,"25,167.00",GOODRICH JMI,EARLY YEARS - 3 AND 4 YEAR OLDS,5902284944,5001000028
10.01.2018,CHILDREN'S SERVICES,GOODRICH PRIMARY SCHOOL,"236,365.67",GOODRICH JMI,SCHOOLS CAPITATION,5902284943,5001000028
10.01.2018,CHILDREN'S SERVICES,GRANGE PRIMARY SCHOOL,"4,238.00",GRANGE JMI,HIGH NEEDS - TOP UP FUNDING,5902284945,5001000029
10.01.2018,CHILDREN'S SERVICES,GRANGE PRIMARY SCHOOL,"6,375.00",GRANGE JMI,EARLY YEARS - 3 AND 4 YEAR OLDS,5902284947,5001000029
10.01.2018,CHILDREN'S SERVICES,GRANGE PRIMARY SCHOOL,"161,509.60",GRANGE JMI,SCHOOLS CAPITATION,5902284946,5001000029
10.01.2018,CHILDREN'S SERVICES,THE GROVE CHILDRENS CENTRE,"5,426.43",GROVE - CENTRAL,EARLY YEARS - 3 AND 4 YEAR OLDS,5902285083,5001000090
10.01.2018,CHILDREN'S SERVICES,THE GROVE CHILDRENS CENTRE,"14,820.00",GROVE - CENTRAL,"SCHOOLS CAPITATION, STANDARDS FUND",2102766374,5001000090
10.01.2018,CHILDREN'S SERVICES,THE GROVE CHILDRENS CENTRE,"36,497.57",GROVE - CENTRAL,EARLY YEARS - 3 AND 4 YEAR OLDS,5902285082,5001000090
10.01.2018,CHILDREN'S SERVICES,EVELINA HOSPITAL SCHOOL,"78,912.40",GUYS,HIGH NEEDS - BASE FUNDING,5902284951,5001000031
10.01.2018,CHILDREN'S SERVICES,HAYMERLE SCHOOL,"178,956.50",HAYMERLE SCH,HIGH NEEDS - BASE FUNDING,5902284984,5001000045
10.01.2018,CHILDREN'S SERVICES,HEBER PRIMARY SCHOOL,"6,558.00",HEBER JMI,HIGH NEEDS - TOP UP FUNDING,5902284958,5001000035
10.01.2018,CHILDREN'S SERVICES,HEBER PRIMARY SCHOOL,"10,254.00",HEBER JMI,EARLY YEARS - 3 AND 4 YEAR OLDS,5902284960,5001000035
10.01.2018,CHILDREN'S SERVICES,HEBER PRIMARY SCHOOL,"161,277.28",HEBER JMI,SCHOOLS CAPITATION,5902284959,5001000035
10.01.2018,CHILDREN'S SERVICES,HIGHSHORE SCHOOL,"15,000.00",HIGHSHORE,HIGH NEEDS - BASE FUNDING,5902284986,5001000046
10.01.2018,CHILDREN'S SERVICES,HIGHSHORE SCHOOL,"237,625.00",HIGHSHORE,HIGH NEEDS - BASE FUNDING,5902284985,5001000046
10.01.2018,CHILDREN'S SERVICES,HOLLYDALE PRIMARY SCHOOL,"3,178.75",HOLLYDALE JMI,HIGH NEEDS - TOP UP FUNDING,5902284961,5001000036
10.01.2018,CHILDREN'S SERVICES,HOLLYDALE PRIMARY SCHOOL,"113,927.50",HOLLYDALE JMI,SCHOOLS CAPITATION,5902284962,5001000036
10.01.2018,CHILDREN'S SERVICES,ACCESS MOBILITY TRANSPORT LTD,"26,599.60",HOME 2 SCHOOL TRANSPORT,CAB FARES,5902285228,1000074637
10.01.2018,CHILDREN'S SERVICES,REDACTED PERSONAL DATA,490,HOME 2 SCHOOL TRANSPORT,OTHER PAYMENTS FOR CLIENTS,5902284857,REDACTED
10.01.2018,CHILDREN'S SERVICES,REDACTED PERSONAL DATA,882,HOME 2 SCHOOL TRANSPORT,OTHER PAYMENTS FOR CLIENTS,5902284857,REDACTED
10.01.2018,CHILDREN'S SERVICES,ILDERTON PRIMARY SCHOOL,"2,119.00",ILDERTON JMI,HIGH NEEDS - TOP UP FUNDING,5902284963,5001000037
10.01.2018,CHILDREN'S SERVICES,ILDERTON PRIMARY SCHOOL,"8,858.00",ILDERTON JMI,EARLY YEARS - 3 AND 4 YEAR OLDS,5902284965,5001000037
10.01.2018,CHILDREN'S SERVICES,ILDERTON PRIMARY SCHOOL,"170,753.34",ILDERTON JMI,SCHOOLS CAPITATION,5902284964,5001000037
10.01.2018,CHILDREN'S SERVICES,IVYDALE PRIMARY SCHOOL,"7,618.00",IVYDALE JMI,HIGH NEEDS - TOP UP FUNDING,5902284966,5001000038
10.01.2018,CHILDREN'S SERVICES,IVYDALE PRIMARY SCHOOL,"13,855.00",IVYDALE JMI,EARLY YEARS - 3 AND 4 YEAR OLDS,5902284968,5001000038
10.01.2018,CHILDREN'S SERVICES,IVYDALE PRIMARY SCHOOL,"194,644.25",IVYDALE JMI,SCHOOLS CAPITATION,5902284967,5001000038
10.01.2018,CHILDREN'S SERVICES,JOHN RUSKIN PRIMARY SCHOOL,"9,006.00",JOHN RUSKIN JMI,HIGH NEEDS - TOP UP FUNDING,5902284969,5001000040
10.01.2018,CHILDREN'S SERVICES,JOHN RUSKIN PRIMARY SCHOOL,"11,856.25",JOHN RUSKIN JMI,HIGH NEEDS - TOP UP FUNDING,5902284970,5001000040
10.01.2018,CHILDREN'S SERVICES,JOHN RUSKIN PRIMARY SCHOOL,"18,537.00",JOHN RUSKIN JMI,EARLY YEARS - 3 AND 4 YEAR OLDS,5902284973,5001000040
10.01.2018,CHILDREN'S SERVICES,JOHN RUSKIN PRIMARY SCHOOL,"20,000.00",JOHN RUSKIN JMI,HIGH NEEDS - TOP UP FUNDING,5902284971,5001000040
10.01.2018,CHILDREN'S SERVICES,JOHN RUSKIN PRIMARY SCHOOL,"179,916.43",JOHN RUSKIN JMI,SCHOOLS CAPITATION,5902284972,5001000040
10.01.2018,CHILDREN'S SERVICES,KEYWORTH PRIMARY SCHOOL,"5,498.75",KEYWORTH JMI,HIGH NEEDS - TOP UP FUNDING,5902284974,5001000041
10.01.2018,CHILDREN'S SERVICES,KEYWORTH PRIMARY SCHOOL,"12,520.00",KEYWORTH JMI,EARLY YEARS - 3 AND 4 YEAR OLDS,5902284976,5001000041
10.01.2018,CHILDREN'S SERVICES,KEYWORTH PRIMARY SCHOOL,"168,705.55",KEYWORTH JMI,SCHOOLS CAPITATION,5902284975,5001000041
10.01.2018,CHILDREN'S SERVICES,KINTORE WAY CHILDRENS CENTRE,"94,487.52",KINTORE WAY CENTRAL,EARLY YEARS - 3 AND 4 YEAR OLDS,5902284987,5001000047
10.01.2018,CHILDREN'S SERVICES,DULWICH WOOD PRIMARY SCHOOL,"5,298.00",LANGBOURNE JMI,HIGH NEEDS - TOP UP FUNDING,5902284977,5001000042
10.01.2018,CHILDREN'S SERVICES,DULWICH WOOD PRIMARY SCHOOL,"134,171.33",LANGBOURNE JMI,SCHOOLS CAPITATION,5902284978,5001000042
10.01.2018,CHILDREN'S SERVICES,ARGOS BUSINESS SOLUTIONS LTD,-321.37,LEAVING CARE GRANT,OTHER PAYMENTS FOR CLIENTS,5902284261,1000001734
10.01.2018,CHILDREN'S SERVICES,LYNDHURST PRIMARY SCHOOL,"3,178.75",LYNDHURST JMI,HIGH NEEDS - TOP UP FUNDING,5902284980,5001000043
10.01.2018,CHILDREN'S SERVICES,LYNDHURST PRIMARY SCHOOL,"8,432.50",LYNDHURST JMI,HIGH NEEDS - TOP UP FUNDING,5902284979,5001000043
10.01.2018,CHILDREN'S SERVICES,LYNDHURST PRIMARY SCHOOL,"9,729.00",LYNDHURST JMI,EARLY YEARS - 3 AND 4 YEAR OLDS,5902284983,5001000043
10.01.2018,CHILDREN'S SERVICES,LYNDHURST PRIMARY SCHOOL,"10,000.00",LYNDHURST JMI,HIGH NEEDS - TOP UP FUNDING,5902284981,5001000043
10.01.2018,CHILDREN'S SERVICES,LYNDHURST PRIMARY SCHOOL,"158,776.34",LYNDHURST JMI,SCHOOLS CAPITATION,5902284982,5001000043
10.01.2018,CHILDREN'S SERVICES,BETHLEM & MAUDSLEY HOSPITAL SCHOOL,"104,356.30",MAUDSLEY & BETHLEM,HIGH NEEDS - BASE FUNDING,5902284903,5001000010
10.01.2018,CHILDREN'S SERVICES,MICHAEL FARADAY PRIMARY SCHOOL,"7,417.00",MICHAEL FARADAY JMI,HIGH NEEDS - TOP UP FUNDING,5902284988,5001000048
10.01.2018,CHILDREN'S SERVICES,MICHAEL FARADAY PRIMARY SCHOOL,"15,630.00",MICHAEL FARADAY JMI,EARLY YEARS - 3 AND 4 YEAR OLDS,5902284990,5001000048
10.01.2018,CHILDREN'S SERVICES,MICHAEL FARADAY PRIMARY SCHOOL,"178,043.86",MICHAEL FARADAY JMI,SCHOOLS CAPITATION,5902284989,5001000048
10.01.2018,CHILDREN'S SERVICES,NELL GWYNN NURSERY SCHOOL,"17,100.00",N.GWYNN - CENTRAL,"SCHOOLS CAPITATION, STANDARDS FUND",2102766370,5001000049
10.01.2018,CHILDREN'S SERVICES,NELL GWYNN NURSERY SCHOOL,"70,427.69",N.GWYNN - CENTRAL,EARLY YEARS - 3 AND 4 YEAR OLDS,5902284991,5001000049
10.01.2018,CHILDREN'S SERVICES,NOTRE DAME RC GIRLS SCHOOL,"6,357.50",NOTRE DAME SCHOOL,HIGH NEEDS - TOP UP FUNDING,5902284992,5001000050
10.01.2018,CHILDREN'S SERVICES,NOTRE DAME RC GIRLS SCHOOL,"404,314.63",NOTRE DAME SCHOOL,SCHOOLS CAPITATION,5902284993,5001000050
10.01.2018,CHILDREN'S SERVICES,OLIVER GOLDSMITH PRIMARY SCHOOL,"9,079.00",OLIVER GOLDSMITH JM,HIGH NEEDS - TOP UP FUNDING,5902284994,5001000051
10.01.2018,CHILDREN'S SERVICES,OLIVER GOLDSMITH PRIMARY SCHOOL,"13,141.00",OLIVER GOLDSMITH JM,EARLY YEARS - 3 AND 4 YEAR OLDS,5902284996,5001000051
10.01.2018,CHILDREN'S SERVICES,OLIVER GOLDSMITH PRIMARY SCHOOL,"185,257.56",OLIVER GOLDSMITH JM,SCHOOLS CAPITATION,5902284995,5001000051
10.01.2018,CHILDREN'S SERVICES,OFFICE DEPOT UK LTD,766.45,PARENTING TEAM,STATIONERY,5902283836,1109426
10.01.2018,CHILDREN'S SERVICES,PETER HILLS CE SCHOOL,"2,119.00",PETER HILLS JMI,HIGH NEEDS - TOP UP FUNDING,5902284997,5001000053
10.01.2018,CHILDREN'S SERVICES,PETER HILLS CE SCHOOL,"6,052.00",PETER HILLS JMI,EARLY YEARS - 3 AND 4 YEAR OLDS,5902284999,5001000053
10.01.2018,CHILDREN'S SERVICES,PETER HILLS CE SCHOOL,"84,628.14",PETER HILLS JMI,SCHOOLS CAPITATION,5902284998,5001000053
10.01.2018,CHILDREN'S SERVICES,PILGRIM'S WAY PRIMARY SCHOOL,"5,498.75",PILGRIMS WAY JMI,HIGH NEEDS - TOP UP FUNDING,5902285000,5001000054
10.01.2018,CHILDREN'S SERVICES,PILGRIM'S WAY PRIMARY SCHOOL,"12,964.00",PILGRIMS WAY JMI,EARLY YEARS - 3 AND 4 YEAR OLDS,5902285002,5001000054
10.01.2018,CHILDREN'S SERVICES,PILGRIM'S WAY PRIMARY SCHOOL,"100,385.76",PILGRIMS WAY JMI,SCHOOLS CAPITATION,5902285001,5001000054
10.01.2018,CHILDREN'S SERVICES,RYE OAK PRIMARY SCHOOL,"57,750.00",PUPIL PREMIUM,"SCHOOLS CAPITATION, STANDARDS FUND",2102766375,5001000059
10.01.2018,CHILDREN'S SERVICES,PURPLE PEBBLES(CHILD CARE) SERVICES,-792.44,RESOURCE PANEL,SECTION 17 PAYMENTS TO AGENCIES/CARERS,5902284504,1000070705
10.01.2018,CHILDREN'S SERVICES,PURPLE PEBBLES(CHILD CARE) SERVICES,"1,284.29",RESOURCE PANEL,SECTION 17 PAYMENTS TO AGENCIES/CARERS,5902284473,1000070705
10.01.2018,CHILDREN'S SERVICES,RIVERSIDE PRIMARY SCHOOL,"1,060.00",RIVERSIDE JMI,HIGH NEEDS - TOP UP FUNDING,5902285003,5001000056
10.01.2018,CHILDREN'S SERVICES,RIVERSIDE PRIMARY SCHOOL,"6,357.00",RIVERSIDE JMI,EARLY YEARS - 3 AND 4 YEAR OLDS,5902285005,5001000056
10.01.2018,CHILDREN'S SERVICES,RIVERSIDE PRIMARY SCHOOL,"137,816.81",RIVERSIDE JMI,SCHOOLS CAPITATION,5902285004,5001000056
10.01.2018,CHILDREN'S SERVICES,ROBERT BROWNING PRIMARY SCHOOL,"5,298.00",ROBERT BROWNING JMI,HIGH NEEDS - TOP UP FUNDING,5902285006,5001000057
10.01.2018,CHILDREN'S SERVICES,ROBERT BROWNING PRIMARY SCHOOL,"10,943.00",ROBERT BROWNING JMI,EARLY YEARS - 3 AND 4 YEAR OLDS,5902285008,5001000057
10.01.2018,CHILDREN'S SERVICES,ROBERT BROWNING PRIMARY SCHOOL,"142,428.42",ROBERT BROWNING JMI,SCHOOLS CAPITATION,5902285007,5001000057
10.01.2018,CHILDREN'S SERVICES,ROTHERHITHE PRIMARY SCHOOL,"5,298.00",ROTHERHITHE JMI,HIGH NEEDS - TOP UP FUNDING,5902285009,5001000058
10.01.2018,CHILDREN'S SERVICES,ROTHERHITHE PRIMARY SCHOOL,"12,577.00",ROTHERHITHE JMI,EARLY YEARS - 3 AND 4 YEAR OLDS,5902285011,5001000058
10.01.2018,CHILDREN'S SERVICES,ROTHERHITHE PRIMARY SCHOOL,"203,905.37",ROTHERHITHE JMI,SCHOOLS CAPITATION,5902285010,5001000058
10.01.2018,CHILDREN'S SERVICES,RYE OAK PRIMARY SCHOOL,"5,498.75",RYE OAK SCHOOL DFES NO. 2462,HIGH NEEDS - TOP UP FUNDING,5902285013,5001000059
10.01.2018,CHILDREN'S SERVICES,RYE OAK PRIMARY SCHOOL,"12,540.00",RYE OAK SCHOOL DFES NO. 2462,"SCHOOLS CAPITATION, STANDARDS FUND",2102766371,5001000059
10.01.2018,CHILDREN'S SERVICES,RYE OAK PRIMARY SCHOOL,"15,000.00",RYE OAK SCHOOL DFES NO. 2462,HIGH NEEDS - TOP UP FUNDING,5902285014,5001000059
10.01.2018,CHILDREN'S SERVICES,RYE OAK PRIMARY SCHOOL,"20,107.00",RYE OAK SCHOOL DFES NO. 2462,EARLY YEARS - 3 AND 4 YEAR OLDS,5902285016,5001000059
10.01.2018,CHILDREN'S SERVICES,RYE OAK PRIMARY SCHOOL,"21,645.00",RYE OAK SCHOOL DFES NO. 2462,HIGH NEEDS - TOP UP FUNDING,5902285012,5001000059
10.01.2018,CHILDREN'S SERVICES,RYE OAK PRIMARY SCHOOL,"26,220.00",RYE OAK SCHOOL DFES NO. 2462,"SCHOOLS CAPITATION, STANDARDS FUND",2102766367,5001000059
10.01.2018,CHILDREN'S SERVICES,RYE OAK PRIMARY SCHOOL,"162,932.85",RYE OAK SCHOOL DFES NO. 2462,SCHOOLS CAPITATION,5902285015,5001000059
10.01.2018,CHILDREN'S SERVICES,PULSE HEALTHCARE LTD,358.8,SEN TRANSPORT,STATEMENTED FEES,5902285121,1000035063
10.01.2018,CHILDREN'S SERVICES,SOUTHWARK INCLUSIVE LEARNING SERVICE,"14,000.00",SILS KS3,SCHOOLS CAPITATION,5902285096,5001000105
10.01.2018,CHILDREN'S SERVICES,SOUTHWARK INCLUSIVE LEARNING SERVICE,"175,000.00",SILS KS3,HIGH NEEDS - BASE FUNDING,5902285095,5001000105
10.01.2018,CHILDREN'S SERVICES,SNOWSFIELDS PRIMARY SCHOOL,"5,498.75",SNOWSFIELD JMI,HIGH NEEDS - TOP UP FUNDING,5902285018,5001000061
10.01.2018,CHILDREN'S SERVICES,SNOWSFIELDS PRIMARY SCHOOL,"7,546.00",SNOWSFIELD JMI,EARLY YEARS - 3 AND 4 YEAR OLDS,5902285021,5001000061
10.01.2018,CHILDREN'S SERVICES,SNOWSFIELDS PRIMARY SCHOOL,"11,666.67",SNOWSFIELD JMI,HIGH NEEDS - TOP UP FUNDING,5902285019,5001000061
10.01.2018,CHILDREN'S SERVICES,SNOWSFIELDS PRIMARY SCHOOL,"15,632.50",SNOWSFIELD JMI,HIGH NEEDS - TOP UP FUNDING,5902285017,5001000061
10.01.2018,CHILDREN'S SERVICES,SNOWSFIELDS PRIMARY SCHOOL,"90,236.66",SNOWSFIELD JMI,SCHOOLS CAPITATION,5902285020,5001000061
10.01.2018,CHILDREN'S SERVICES,SOUTHWARK PARK PRIMARY SCHOOL,"5,700.00",SOUTHWARK PARK JMI,HIGH NEEDS - TOP UP FUNDING,5902285022,5001000062
10.01.2018,CHILDREN'S SERVICES,SOUTHWARK PARK PRIMARY SCHOOL,"15,138.00",SOUTHWARK PARK JMI,EARLY YEARS - 3 AND 4 YEAR OLDS,5902285024,5001000062
10.01.2018,CHILDREN'S SERVICES,SOUTHWARK PARK PRIMARY SCHOOL,"184,418.62",SOUTHWARK PARK JMI,SCHOOLS CAPITATION,5902285023,5001000062
10.01.2018,CHILDREN'S SERVICES,SPA SCHOOL,"210,497.10",SPA SCHOOL,HIGH NEEDS - BASE FUNDING,5902285025,5001000063
10.01.2018,CHILDREN'S SERVICES,ST ANTHONYS RC SCHOOL,"3,178.75",ST ANTHONY'S RC SCHOOL,HIGH NEEDS - TOP UP FUNDING,5902285026,5001000064
10.01.2018,CHILDREN'S SERVICES,ST ANTHONYS RC SCHOOL,"10,015.00",ST ANTHONY'S RC SCHOOL,EARLY YEARS - 3 AND 4 YEAR OLDS,5902285028,5001000064
10.01.2018,CHILDREN'S SERVICES,ST ANTHONYS RC SCHOOL,"157,720.03",ST ANTHONY'S RC SCHOOL,SCHOOLS CAPITATION,5902285027,5001000064
10.01.2018,CHILDREN'S SERVICES,ST FRANCESCA CABRINI PRIMARY SCHOOL,"4,238.00",ST FRANCESCA CABRINI RC SCHOOL,HIGH NEEDS - TOP UP FUNDING,5902285029,5001000065
10.01.2018,CHILDREN'S SERVICES,ST FRANCESCA CABRINI PRIMARY SCHOOL,"10,285.00",ST FRANCESCA CABRINI RC SCHOOL,EARLY YEARS - 3 AND 4 YEAR OLDS,5902285031,5001000065
10.01.2018,CHILDREN'S SERVICES,ST FRANCESCA CABRINI PRIMARY SCHOOL,"155,509.95",ST FRANCESCA CABRINI RC SCHOOL,SCHOOLS CAPITATION,5902285030,5001000065
10.01.2018,CHILDREN'S SERVICES,ST FRANCIS'S RC PRIMARY SCHOOL,"7,618.00",ST FRANCIS JM,HIGH NEEDS - TOP UP FUNDING,5902285032,5001000067
10.01.2018,CHILDREN'S SERVICES,ST FRANCIS'S RC PRIMARY SCHOOL,"8,002.00",ST FRANCIS JM,EARLY YEARS - 3 AND 4 YEAR OLDS,5902285034,5001000067
10.01.2018,CHILDREN'S SERVICES,ST FRANCIS'S RC PRIMARY SCHOOL,"175,633.29",ST FRANCIS JM,SCHOOLS CAPITATION,5902285033,5001000067
10.01.2018,CHILDREN'S SERVICES,ST GEORGES CE SCHOOL,"5,900.00",ST GEORGES JMI 043,HIGH NEEDS - TOP UP FUNDING,5902285038,5001000069
10.01.2018,CHILDREN'S SERVICES,ST GEORGES CE SCHOOL,"72,525.79",ST GEORGES JMI 043,SCHOOLS CAPITATION,5902285039,5001000069
10.01.2018,CHILDREN'S SERVICES,ST GEORGES RC SCHOOL,"2,119.00",ST GEORGES JMI 340,HIGH NEEDS - TOP UP FUNDING,5902285035,5001000068
10.01.2018,CHILDREN'S SERVICES,ST GEORGES RC SCHOOL,"4,953.00",ST GEORGES JMI 340,EARLY YEARS - 3 AND 4 YEAR OLDS,5902285037,5001000068
10.01.2018,CHILDREN'S SERVICES,ST GEORGES RC SCHOOL,"123,718.27",ST GEORGES JMI 340,SCHOOLS CAPITATION,5902285036,5001000068
10.01.2018,CHILDREN'S SERVICES,ST JAMES CE SCHOOL,"7,818.75",ST JAMES JMI,HIGH NEEDS - TOP UP FUNDING,5902285040,5001000070
10.01.2018,CHILDREN'S SERVICES,ST JAMES CE SCHOOL,"11,400.00",ST JAMES JMI,"SCHOOLS CAPITATION, STANDARDS FUND",2102766372,5001000070
10.01.2018,CHILDREN'S SERVICES,ST JAMES CE SCHOOL,"13,613.00",ST JAMES JMI,EARLY YEARS - 3 AND 4 YEAR OLDS,5902285042,5001000070
10.01.2018,CHILDREN'S SERVICES,ST JAMES CE SCHOOL,"225,622.04",ST JAMES JMI,SCHOOLS CAPITATION,5902285041,5001000070
10.01.2018,CHILDREN'S SERVICES,ST JAMES THE GREAT RC SCHOOL,"8,477.00",ST JAMES RC(ST ALBANS),HIGH NEEDS - TOP UP FUNDING,5902285043,5001000071
10.01.2018,CHILDREN'S SERVICES,ST JAMES THE GREAT RC SCHOOL,"8,511.00",ST JAMES RC(ST ALBANS),EARLY YEARS - 3 AND 4 YEAR OLDS,5902285045,5001000071
10.01.2018,CHILDREN'S SERVICES,ST JAMES THE GREAT RC SCHOOL,"92,310.48",ST JAMES RC(ST ALBANS),SCHOOLS CAPITATION,5902285044,5001000071
10.01.2018,CHILDREN'S SERVICES,ST JOHNS & ST CLEMENTS CE SCHOOL,"3,428.33",ST JOHNS & ST CLEMENTS,HIGH NEEDS - TOP UP FUNDING,5902285048,5001000073
10.01.2018,CHILDREN'S SERVICES,ST JOHNS & ST CLEMENTS CE SCHOOL,"5,833.33",ST JOHNS & ST CLEMENTS,HIGH NEEDS - TOP UP FUNDING,5902285050,5001000073
10.01.2018,CHILDREN'S SERVICES,ST JOHNS & ST CLEMENTS CE SCHOOL,"8,677.50",ST JOHNS & ST CLEMENTS,HIGH NEEDS - TOP UP FUNDING,5902285049,5001000073
10.01.2018,CHILDREN'S SERVICES,ST JOHNS & ST CLEMENTS CE SCHOOL,"170,333.85",ST JOHNS & ST CLEMENTS,SCHOOLS CAPITATION,5902285051,5001000073
10.01.2018,CHILDREN'S SERVICES,ST JOHNS RC PRIMARY SCHOOL,"3,178.75",ST JOHNS (ELMO ROAD),HIGH NEEDS - TOP UP FUNDING,5902285054,5001000075
10.01.2018,CHILDREN'S SERVICES,ST JOHNS RC PRIMARY SCHOOL,"9,351.00",ST JOHNS (ELMO ROAD),EARLY YEARS - 3 AND 4 YEAR OLDS,5902285056,5001000075
10.01.2018,CHILDREN'S SERVICES,ST JOHNS RC PRIMARY SCHOOL,"96,690.82",ST JOHNS (ELMO ROAD),SCHOOLS CAPITATION,5902285055,5001000075
10.01.2018,CHILDREN'S SERVICES,ST JOHNS WALWORTH CE SCHOOL,"1,060.00",ST JOHNS WALWORTH J,HIGH NEEDS - TOP UP FUNDING,5902285046,5001000072
10.01.2018,CHILDREN'S SERVICES,ST JOHNS WALWORTH CE SCHOOL,"92,496.58",ST JOHNS WALWORTH J,SCHOOLS CAPITATION,5902285047,5001000072
10.01.2018,CHILDREN'S SERVICES,ST JOSEPHS RC PRIMARY SCHOOL,"4,439.00",ST JOSEPHS JMI 014B,HIGH NEEDS - TOP UP FUNDING,5902285060,5001000077
10.01.2018,CHILDREN'S SERVICES,ST JOSEPHS RC PRIMARY SCHOOL,"9,316.00",ST JOSEPHS JMI 014B,EARLY YEARS - 3 AND 4 YEAR OLDS,5902285062,5001000077
10.01.2018,CHILDREN'S SERVICES,ST JOSEPHS RC PRIMARY SCHOOL,"133,715.19",ST JOSEPHS JMI 014B,SCHOOLS CAPITATION,5902285061,5001000077
10.01.2018,CHILDREN'S SERVICES,ST JOSEPHS CATHOLIC PRIMARY SCHOOL,"2,119.00",ST JOSEPHS JMI 026,HIGH NEEDS - TOP UP FUNDING,5902285063,5001000078
10.01.2018,CHILDREN'S SERVICES,ST JOSEPHS CATHOLIC PRIMARY SCHOOL,"13,067.00",ST JOSEPHS JMI 026,EARLY YEARS - 3 AND 4 YEAR OLDS,5902285065,5001000078
10.01.2018,CHILDREN'S SERVICES,ST JOSEPHS CATHOLIC PRIMARY SCHOOL,"92,691.04",ST JOSEPHS JMI 026,SCHOOLS CAPITATION,5902285064,5001000078
10.01.2018,CHILDREN'S SERVICES,ST JOSEPHS CATHOLIC SCHOOL,"5,298.00",ST JOSEPHS JMI 0339,HIGH NEEDS - TOP UP FUNDING,5902285057,5001000076
10.01.2018,CHILDREN'S SERVICES,ST JOSEPHS CATHOLIC SCHOOL,"9,720.00",ST JOSEPHS JMI 0339,EARLY YEARS - 3 AND 4 YEAR OLDS,5902285059,5001000076
10.01.2018,CHILDREN'S SERVICES,ST JOSEPHS CATHOLIC SCHOOL,"93,605.20",ST JOSEPHS JMI 0339,SCHOOLS CAPITATION,5902285058,5001000076
10.01.2018,CHILDREN'S SERVICES,ST JUDES CHURCH OF ENGLAND PRIMARY,"2,119.00",ST JUDES SOUTHWARK,HIGH NEEDS - TOP UP FUNDING,5902284923,5001000019
10.01.2018,CHILDREN'S SERVICES,ST JUDES CHURCH OF ENGLAND PRIMARY,"63,870.67",ST JUDES SOUTHWARK,SCHOOLS CAPITATION,5902284924,5001000019
10.01.2018,CHILDREN'S SERVICES,ST MARY MAGDALENE CE SCHOOL,"5,498.75",ST MARY MAGDALENE JMI,HIGH NEEDS - TOP UP FUNDING,5902285066,5001000080
10.01.2018,CHILDREN'S SERVICES,ST MARY MAGDALENE CE SCHOOL,"99,669.93",ST MARY MAGDALENE JMI,SCHOOLS CAPITATION,5902285067,5001000080
10.01.2018,CHILDREN'S SERVICES,ST PAULS CE SCHOOL,"6,558.00",ST PAULS WALWORTH JMI,HIGH NEEDS - TOP UP FUNDING,5902285068,5001000082
10.01.2018,CHILDREN'S SERVICES,ST PAULS CE SCHOOL,"10,978.00",ST PAULS WALWORTH JMI,EARLY YEARS - 3 AND 4 YEAR OLDS,5902285070,5001000082
10.01.2018,CHILDREN'S SERVICES,ST PAULS CE SCHOOL,"133,121.79",ST PAULS WALWORTH JMI,SCHOOLS CAPITATION,5902285069,5001000082
10.01.2018,CHILDREN'S SERVICES,ST PETERS CE SCHOOL,"2,119.00",ST PETERS WALWORTH JMI,HIGH NEEDS - TOP UP FUNDING,5902285071,5001000083
10.01.2018,CHILDREN'S SERVICES,ST PETERS CE SCHOOL,"11,707.00",ST PETERS WALWORTH JMI,EARLY YEARS - 3 AND 4 YEAR OLDS,5902285073,5001000083
10.01.2018,CHILDREN'S SERVICES,ST PETERS CE SCHOOL,"88,256.99",ST PETERS WALWORTH JMI,SCHOOLS CAPITATION,5902285072,5001000083
10.01.2018,CHILDREN'S SERVICES,ST SAVIOURS & ST OLAVES SCHOOL,"4,439.00",ST SAVIOURS & ST OLAVE,HIGH NEEDS - TOP UP FUNDING,5902285074,5001000084
10.01.2018,CHILDREN'S SERVICES,ST SAVIOURS & ST OLAVES SCHOOL,"384,761.31",ST SAVIOURS & ST OLAVE,SCHOOLS CAPITATION,5902285075,5001000084
10.01.2018,CHILDREN'S SERVICES,ST JOSEPHS CATHOLIC INFANTS SCHOOL,"74,001.07",STJOSEPH'S RC CAMBERWELL INFANTS SCHOOL,SCHOOLS CAPITATION,5902284922,5001000018
10.01.2018,CHILDREN'S SERVICES,ST JOSEPHS RC JUNIOR  SCHOOL,"3,178.75",STJOSEPH'S RC CAMBERWELL JUNIOR SCHOOL,HIGH NEEDS - TOP UP FUNDING,5902284920,5001000017
10.01.2018,CHILDREN'S SERVICES,ST JOSEPHS RC JUNIOR  SCHOOL,"107,837.75",STJOSEPH'S RC CAMBERWELL JUNIOR SCHOOL,SCHOOLS CAPITATION,5902284921,5001000017
10.01.2018,CHILDREN'S SERVICES,SUMNER NURSERY,"19,380.00",SUMNER NURSERY SCHOOL,"SCHOOLS CAPITATION, STANDARDS FUND",2102766368,5001000085
10.01.2018,CHILDREN'S SERVICES,SUMNER NURSERY,"54,963.48",SUMNER NURSERY SCHOOL,EARLY YEARS - 3 AND 4 YEAR OLDS,5902285076,5001000085
10.01.2018,CHILDREN'S SERVICES,SURREY SQUARE JUNIOR SCHOOL,"2,280.00",SURREY SQUARE JUNIOR SCHOOL,"SCHOOLS CAPITATION, STANDARDS FUND",2102766373,5001000087
10.01.2018,CHILDREN'S SERVICES,SURREY SQUARE JUNIOR SCHOOL,"8,477.00",SURREY SQUARE JUNIOR SCHOOL,HIGH NEEDS - TOP UP FUNDING,5902285077,5001000087
10.01.2018,CHILDREN'S SERVICES,SURREY SQUARE JUNIOR SCHOOL,"13,407.00",SURREY SQUARE JUNIOR SCHOOL,EARLY YEARS - 3 AND 4 YEAR OLDS,5902285079,5001000087
10.01.2018,CHILDREN'S SERVICES,SURREY SQUARE JUNIOR SCHOOL,"179,172.87",SURREY SQUARE JUNIOR SCHOOL,SCHOOLS CAPITATION,5902285078,5001000087
10.01.2018,CHILDREN'S SERVICES,THE ST THOMAS THE APOSTLE COLLEGE,"7,618.00",THE ST THOMAS THE APOSTLE COLLEGE,HIGH NEEDS - TOP UP FUNDING,5902285052,5001000074
10.01.2018,CHILDREN'S SERVICES,THE ST THOMAS THE APOSTLE COLLEGE,"392,961.39",THE ST THOMAS THE APOSTLE COLLEGE,SCHOOLS CAPITATION,5902285053,5001000074
10.01.2018,CHILDREN'S SERVICES,TOWER BRIDGE PRIMARY SCHOOL,"4,238.00",TOWER BRIDGE JMI,HIGH NEEDS - TOP UP FUNDING,5902285084,5001000095
10.01.2018,CHILDREN'S SERVICES,TOWER BRIDGE PRIMARY SCHOOL,"7,165.00",TOWER BRIDGE JMI,EARLY YEARS - 3 AND 4 YEAR OLDS,5902285086,5001000095
10.01.2018,CHILDREN'S SERVICES,TOWER BRIDGE PRIMARY SCHOOL,"95,933.08",TOWER BRIDGE JMI,SCHOOLS CAPITATION,5902285085,5001000095
10.01.2018,CHILDREN'S SERVICES,TOWNSEND PRIMARY SCHOOL,"7,618.00",TOWNSEND JMI,HIGH NEEDS - TOP UP FUNDING,5902285087,5001000096
10.01.2018,CHILDREN'S SERVICES,TOWNSEND PRIMARY SCHOOL,"8,241.00",TOWNSEND JMI,EARLY YEARS - 3 AND 4 YEAR OLDS,5902285089,5001000096
10.01.2018,CHILDREN'S SERVICES,TOWNSEND PRIMARY SCHOOL,"95,569.00",TOWNSEND JMI,SCHOOLS CAPITATION,5902285088,5001000096
10.01.2018,CHILDREN'S SERVICES,TUKE SCHOOL,"158,114.10",TUKE SCHOOL,HIGH NEEDS - BASE FUNDING,5902285090,5001000097
10.01.2018,CHILDREN'S SERVICES,VICTORY SCHOOL,"2,119.00",VICTORY JMI,HIGH NEEDS - TOP UP FUNDING,5902285091,5001000098
10.01.2018,CHILDREN'S SERVICES,VICTORY SCHOOL,"3,594.00",VICTORY JMI,EARLY YEARS - 3 AND 4 YEAR OLDS,5902285093,5001000098
10.01.2018,CHILDREN'S SERVICES,VICTORY SCHOOL,"77,614.08",VICTORY JMI,SCHOOLS CAPITATION,5902285092,5001000098
10.01.2018,COMMUNITIES,A & M PROPERTY AND CONSTRUCTION LTD,"7,843.00",NO RECOURSE TO PUBLIC FUNDS,ACCOMMODATION CHARGES,5902285148,1000014564
10.01.2018,COMMUNITIES,ALLPAY NET LIMITED,"1,338.45",NO RECOURSE TO PUBLIC FUNDS,PROFESSIONAL FEES,5902285208,1000043001
10.01.2018,COMMUNITIES,PURPLE PEBBLES(CHILD CARE) SERVICES,"5,048.57",NO RECOURSE TO PUBLIC FUNDS,ACCOMMODATION CHARGES,5902284805,1000070705
10.01.2018,COMMUNITIES,CROMWOOD HOUSING,"24,645.00",NO RECOURSE TO PUBLIC FUNDS,ACCOMMODATION CHARGES,5902285109,1000071450
10.01.2018,COMMUNITIES,J & M OASIS LTD,"18,540.00",NO RECOURSE TO PUBLIC FUNDS,ACCOMMODATION CHARGES,5902284816,1000072169
